Workbook

Sheet AER only (hidden)
B1: Data in these columns used for data validation and database purposes.
B2: Date last modified: | C2: 2016-09-06 | D2: added new business names, improved column heading formatting
AC4: FOR ELECTRICITY BUSINESSES ONLY
AC5: Feeder Types | AG5: TasNetworks (D) | AH5: MAIFI flag | AI5: Feeder Names
AC6: CBD | AD6: Urban | AE6: Short rural | AF6: long rural | AG6: EXTRA
B7: dms_TradingName_List | C7: dms_TradingNameFull_List | D7: dms_ABN_List | E7: dms_JurisdictionList | F7: dms_Sector_List | G7: dms_Segment_List | H7: dms_FormControl_List | I7: dms_RPT_List | J7: dms_RPTMonth_List | K7: dms_CRCPlength_List | L7: dms_FRCPlength_List | M7: dms_663_List | N7: dms_DeterminationRef_List | O7: dms_Addr1_List | P7: dms_Addr2_List | Q7: dms_Suburb_List | R7: dms_State_List | S7: dms_PostCode_List | T7: dms_PAddr1_List | U7: dms_PAddr2_List | V7: dms_PSuburb_List | W7: dms_PState_List | X7: dms_PPostCode_List | Y7: dms_ContactName1_List | Z7: dms_ContactPh1_List | AA7: dms_ContactEmail_List | AC7: dms_CBD_flag | AD7: dms_Urban_flag | AE7: dms_ShortRural_flag | AF7: dms_LongRural_flag | AG7: dms_FeederType_5_flag | AH7: dms_MAIFI_flag_List | AI7: dms_FeederName_1 | AJ7: dms_FeederName_2 | AK7: dms_FeederName_3 | AL7: dms_FeederName_4 | AM7: dms_FeederName_5
B8: ActewAGL Distribution | C8: ActewAGL Distribution | D8: 76670568688 | E8: ACT | F8: Electricity | G8: Distribution | H8: Revenue cap | I8: Financial | J8: June | K8: 5 | L8: 5 | M8: 5 | N8: 2014-19 Distribution Determination | O8: 40 Bunda Street | Q8: CANBERRA | R8: ACT | S8: 2600 | T8: GPO BOX 366 | V8: CANBERRA | W8: ACT | X8: 2601 | Y8: Robert Walker | Z8: 02 6248 3847 | AA8: robert.walker@actewagle.com.au | AC8: NO | AD8: YES | AE8: YES | AF8: NO | AG8: NO | AI8: CBD | AJ8: Urban | AK8: Short rural | AL8: Long rural | AN8: ActewAGL Distribution
B9: ActewAGL Distribution (Tx Assets) | C9: ActewAGL Distribution (Tx Assets) | D9: 76670568688 | E9: ACT | F9: Electricity | G9: Distribution | H9: Revenue cap | I9: Financial | J9: June | K9: 5 | L9: 5 | M9: 5 | N9: distribution determination | O9: 40 Bunda Street | Q9: CANBERRA | R9: ACT | S9: 2600 | T9: GPO BOX 366 | V9: CANBERRA | W9: ACT | X9: 2601 | Y9: Robert Walker | Z9: 02 6248 3847 | AA9: robert.walker@actewagle.com.au | AI9: CBD | AJ9: Urban | AK9: Short rural | AL9: Long rural | AN9: ActewAGL Distribution (Tx Assets)
B10: ActewAGL Gas | C10: ActewAGL Gas | D10: 76670568688 | E10: ACT | F10: Gas | G10: Distribution | H10: Weighted average price cap | I10: Financial | J10: June | K10: 5 | L10: 5 | M10: x | O10: 40 Bunda Street | Q10: CANBERRA | R10: ACT | S10: 2600 | T10: GPO BOX 366 | V10: CANBERRA | W10: ACT | X10: 2601 | Y10: Philip Deamer | Z10: 02 6248 3438 | AA10: GasAAReview@actewagl.com.au | AN10: ActewAGL Gas
B11: AGN (Albury) | C11: Australian Gas Networks Limited (reporting data for Albury) | D11: 19078551685 | E11: Vic | F11: Gas | G11: Distribution | H11: Weighted average price cap | I11: Calendar | J11: December | K11: 5 | L11: 5 | M11: x | O11: Level 10 | P11: 81 Flinders Street | Q11: ADELAIDE | R11: SA | S11: 5000 | Z11: 08 8227 1500 | AI11: CBD | AJ11: Urban | AK11: Short rural | AL11: Long rural | AN11: AGN (SA)
B12: AGN (SA) | C12: AGN (SA) | D12: 78551685 | E12: SA | F12: Gas | G12: Distribution | H12: Revenue cap | I12: Financial | J12: June | K12: 5 | L12: 5 | M12: 5 | N12: distribution determination | R12: SA | AN12: AGN (Victoria)
B13: AGN (Victoria) | C13: Australian Gas Networks Limited (reporting data for Victoria) | D13: 19078551685 | E13: Vic | F13: Gas | G13: Distribution | H13: Weighted average price cap | I13: Calendar | J13: December | K13: 5 | L13: 5 | M13: x | O13: Level 10 | P13: 81 Flinders Street | Q13: ADELAIDE | R13: SA | S13: 5000 | Z13: 08 8227 1500 | AN13: AGN (Albury)
B14: Amadeus | C14: APT Pipelines (NT) Pty Ltd | D14: 39009737393 | E14: NT | F14: Gas | G14: Transmission | H14: Weighted average price cap | I14: Financial | J14: June | K14: 5 | L14: 5 | M14: x | N14: n/a | O14: Level 19, HSBC Building | P14: 580 George Street | Q14: SYDNEY | R14: NSW | S14: 2000 | T14: Level 19, HSBC Building | U14: 580 George Street | V14: SYDNEY | W14: NSW | X14: 2000 | Y14: Alexandra Curran | Z14: 02 9275 0020 | AA14: alexandra.curran@apa.com.au | AN14: Amadeus
B15: APA GasNet | C15: APA GasNet Australia (Operations) Pty Ltd | D15: 65083009 | E15: Vic | F15: Gas | G15: Transmission | H15: Weighted average price cap | I15: Calendar | J15: December | K15: 5 | L15: 5 | M15: x | O15: Level 19, HSBC Building | P15: 580 George Street | Q15: SYDNEY | R15: NSW | S15: 2000 | T15: PO Box R41 | V15: ROYAL EXCHANGE | W15: NSW | X15: 1225 | Z15: 02 9693 0000 | AN15: APA GasNet
B16: Ausgrid | C16: Ausgrid | D16: 67505337385 | E16: NSW | F16: Electricity | G16: Distribution | H16: Revenue cap | I16: Financial | J16: June | K16: 5 | L16: 5 | M16: 5 | N16: 2014-19 Distribution Determination | O16: 570 George St | Q16: SYDNEY | R16: NSW | S16: 2000 | Y16: John Thomson | Z16: (02) 9269 2312 | AA16: john.thomson@ausgrid.com.au | AC16: YES | AD16: YES | AE16: YES | AF16: YES | AG16: NO | AI16: CBD | AJ16: Urban | AK16: Short rural | AL16: Long rural | AN16: Ausgrid
B17: Ausgrid (Tx Assets) | C17: Ausgrid (Tx Assets) | D17: 67505337385 | E17: NSW | F17: Electricity | G17: Distribution | H17: Revenue cap | I17: Financial | J17: June | K17: 5 | L17: 5 | M17: 5 | N17: distribution determination | R17: NSW | AI17: CBD | AJ17: Urban | AK17: Short rural | AL17: Long rural | AN17: Ausgrid (Tx Assets)
B18: AusNet (D) | C18: AusNet Services (D) | D18: 91064651118 | E18: Vic | F18: Electricity | G18: Distribution | H18: Revenue cap | I18: Calendar | J18: December | K18: 5 | L18: 5 | M18: 2 | N18: 2016-20 Distribution Determination | O18: Level 32 | P18: 2 Southbank Boulevard | Q18: SOUTHBANK | R18: Vic | S18: 3006 | T18: Locked Bag 14051 | V18: MELBOURNE CITY MAIL CENTRE | W18: VIC | X18: 8001 | Y18: Hannah Williams | Z18: 03 9683 4088 | AA18: hwilliams@powercor.com.au | AD18: YES | AE18: YES | AF18: YES | AG18: NO | AI18: CBD | AJ18: Urban | AK18: Short rural | AL18: Long rural | AN18: AusNet (D)
B19: AusNet (Gas) | C19: AusNet Gas Services | D19: 86015036 | E19: Vic | F19: Gas | G19: Distribution | H19: Weighted average price cap | I19: Calendar | J19: December | K19: 5 | L19: 5 | M19: X | AN19: AusNet (Gas)
B20: AusNet (T) | C20: AusNet (T) | D20: 78079798173 | E20: Vic | F20: Electricity | G20: Transmission | H20: Revenue cap | I20: Financial | J20: March | K20: 5 | L20: 5 | M20: 2 | N20: transmission determination | O20: Level 32 | P20: 2 Southbank Boulevard | Q20: SOUTHBANK | R20: Vic | S20: 3006 | T20: Locked Bag 14051 | V20: MELBOURNE CITY MAIL CENTRE | W20: Vic | X20: 8001 | Y20: Clare Thompson | Z20: 03 9695 6670 | AA20: clare.e.thompson@ausnetservices.com.au | AI20: CBD | AJ20: Urban | AK20: Short rural | AL20: Long rural | AN20: AusNet (T)
B21: Australian Distribution Co. | C21: Australian Distribution Co. | D21: 11222333444 | E21: - | F21: Electricity | G21: Distribution | H21: Revenue cap | I21: Financial | J21: June | K21: 5 | L21: 5 | M21: 2 | N21: distribution determination | O21: 123 Straight Street | Q21: SYDNEY | R21: NSW | S21: 2000 | T21: PO Box 123 | V21: SYDNEY | W21: NSW | X21: 2000 | Y21: Bob Smith | Z21: 02 1234 5678 | AA21: bob@auselec.net.au | AI21: CBD | AJ21: Urban | AK21: Short rural | AL21: Long rural | AN21: Australian Distribution Co.
B22: Australian Distribution Co. (Vic) | C22: Australian Distribution Co. (Victoria) | D22: 11222333444 | E22: Vic | F22: Electricity | G22: Distribution | H22: Revenue cap | I22: Calendar | J22: December | K22: 5 | L22: 5 | M22: 2 | N22: distribution determination | O22: 123 Straight Street | Q22: MELBOURNE | R22: Vic | S22: 3000 | T22: PO Box 123 | V22: MELBOURNE | W22: VIC | X22: 3000 | Y22: Bob Smith | Z22: 02 1234 5678 | AA22: bob@auselec.net.au | AI22: CBD | AJ22: Urban | AK22: Short rural | AL22: Long rural | AN22: Australian Distribution Co. (Vic)
B23: Australian Transmission Co. | C23: Australian Transmission Co. | D23: 11222333444 | E23: - | F23: Electricity | G23: Transmission | H23: Revenue cap | I23: Financial | J23: June | K23: 5 | L23: 5 | M23: 5 | N23: transmission determination | O23: 123 Straight Street | Q23: SYDNEY | R23: NSW | S23: 2000 | T23: PO Box 123 | V23: SYDNEY | W23: NSW | X23: 2000 | Y23: Bob Smith | Z23: 02 1234 5678 | AA23: bob@auselec.net.au | AI23: CBD | AJ23: Urban | AK23: Short rural | AL23: Long rural | AN23: Australian Transmission Co.
B24: CitiPower | C24: CitiPower | D24: 76064651056 | E24: Vic | F24: Electricity | G24: Distribution | H24: Revenue cap | I24: Calendar | J24: December | K24: 5 | L24: 5 | M24: 2 | N24: 2016-20 Distribution Determination | O24: 40 Market Street | Q24: MELBOURNE | R24: Vic | S24: 3000 | T24: Locked Bag 14090 | V24: MELBOURNE | W24: VIC | X24: 8001 | Y24: Hannah Williams | Z24: 03 9683 4088 | AA24: hwilliams@powercor.com.au | AC24: YES | AD24: YES | AE24: NO | AF24: NO | AG24: NO | AI24: CBD | AJ24: Urban | AK24: Short rural | AL24: Long rural | AN24: CitiPower
B25: Directlink | C25: Directlink | D25: 16779340889 | E25: Qld | F25: Electricity | G25: Transmission | H25: Revenue cap | I25: Financial | J25: June | K25: 9 | L25: 5 | M25: 5 | N25: transmission determination | R25: NSW | AI25: CBD | AJ25: Urban | AK25: Short rural | AL25: Long rural | AN25: Directlink
B26: ElectraNet | C26: ElectraNet | D26: 41094482416 | E26: SA | F26: Electricity | G26: Transmission | H26: Revenue cap | I26: Financial | J26: June | K26: 5 | L26: 5 | M26: 5 | N26: transmission determination | O26: 52-55 East Terrace | P26: Rymill Park | Q26: ADELAIDE | R26: SA | S26: 5000 | T26: PO Box 7096 | U26: Hutt Street Post Office | V26: ADELAIDE | W26: SA | X26: 5000 | Y26: Bill Jackson | Z26: 08 8404 7969 | AA26: jackson.bill@electranet.com.au | AI26: CBD | AJ26: Urban | AK26: Short rural | AL26: Long rural | AN26: ElectraNet
B27: Endeavour Energy | C27: Endeavour Energy | D27: 59253130878 | E27: NSW | F27: Electricity | G27: Distribution | H27: Revenue cap | I27: Financial | J27: June | K27: 5 | L27: 5 | M27: 5 | N27: 2014-19 Distribution Determination | O27: 51 Huntingwood Drive | Q27: HUNTINGWOOD | R27: NSW | S27: 2148 | T27: PO Box 811 | V27: SEVEN HILLS | W27: NSW | X27: 1730 | Y27: Jon Hocking | Z27: 02 9853 4386 / 0407 348 156 | AA27: Jon.Hocking@Endeavourenergy.com.au | AC27: NO | AD27: YES | AE27: YES | AF27: YES | AG27: NO | AI27: CBD | AJ27: Urban | AK27: Short rural | AL27: Long rural | AN27: Endeavour Energy
B28: Energex | C28: Energex | D28: 40078849055 | E28: Qld | F28: Electricity | G28: Distribution | H28: Revenue cap | I28: Financial | J28: June | K28: 5 | L28: 5 | M28: 5 | N28: 2015-20 Distribution Determination | O28: 26 Reddacliff Street | Q28: NEWSTEAD | R28: Qld | S28: 4006 | T28: 26 Reddacliff Street | V28: NEWSTEAD | W28: QLD | X28: 4006 | Y28: Nicola Roscoe | Z28: 07 3664 5891 | AA28: nicolaroscoe@energex.com.au | AC28: YES | AD28: YES | AE28: YES | AF28: NO | AG28: NO | AI28: CBD | AJ28: Urban | AK28: Short rural | AL28: Long rural | AN28: Energex
B29: Ergon Energy | C29: Ergon Energy | D29: 50087646062 | E29: Qld | F29: Electricity | G29: Distribution | H29: Revenue cap | I29: Financial | J29: June | K29: 5 | L29: 5 | M29: 5 | N29: 2015-20 Distribution Determination | O29: 22 Walker Street | Q29: TOWNSVILLE | R29: Qld | S29: 4810 | T29: Po Box 264 | V29: FORTITUDE VALLEY | W29: QLD | X29: 4006 | Y29: Jenny Doyle, Group Manager Regulatory Affairs | Z29: (07) 3851 6416 | AA29: jenny.doyle@ergon.com.au | AC29: NO | AD29: YES | AE29: YES | AF29: YES | AG29: NO | AI29: CBD | AJ29: Urban | AK29: Short rural | AL29: Long rural | AN29: Ergon Energy
B30: Essential Energy | C30: Essential Energy | D30: 37428185226 | E30: NSW | F30: Electricity | G30: Distribution | H30: Revenue cap | I30: Financial | J30: June | K30: 5 | L30: 5 | M30: 5 | N30: 2014-19 Distribution Determination | O30: 8 Buller Street | Q30: PORT MACQUARIE | R30: NSW | S30: 2444 | T30: PO Box 5730 | V30: PORT MACQUARIE | W30: NSW | X30: 2444 | Y30: Catherine Waddell | Z30: 02 6338 3553 | AA30: catherine.waddell@essentialenergy.com.au | AE30: YES | AF30: YES | AG30: NO | AI30: CBD | AJ30: Urban | AK30: Short rural | AL30: Long rural | AN30: Essential Energy
B31: Jemena Electricity | C31: Jemena Electricity | D31: 82064651083 | E31: Vic | F31: Electricity | G31: Distribution | H31: Revenue cap | I31: Calendar | J31: December | K31: 5 | L31: 5 | M31: 2 | N31: 2016-20 Distribution Determination | O31: Level 16 | P31: 567 Collins Street | Q31: MELBOURNE | R31: VIC | S31: 3000 | T31: PO Box 16182 | V31: MELBOURNE | W31: VIC | X31: 8001 | Y31: Matthew Serpell | Z31: 03 9173 8231 | AA31: matthew.serpell@jemena.com..au | AE31: YES | AF31: NO | AG31: NO | AI31: CBD | AJ31: Urban | AK31: Short rural | AL31: Long rural | AN31: Jemena Electricity
B32: JGN | C32: Jemena Gas Networks | E32: NSW | F32: Gas | G32: Distribution | H32: Weighted average price cap | I32: Financial | J32: June | K32: 5 | L32: 5 | AN32: JGN
B33: Multinet Gas | C33: Multinet Gas (DB No.1) Pty Ltd (ACN 086 026 986), Multinet Gas (DB No.2) Pty Ltd (ACN 086 230 122) | D33: 86026986 | E33: Vic | F33: Gas | G33: Distribution | H33: Weighted average price cap | I33: Calendar | J33: December | K33: 5 | L33: 5 | M33: x | AN33: Multinet Gas
B34: Murraylink | C34: Murraylink | D34: 79181207909 | E34: SA | F34: Electricity | G34: Transmission | H34: Revenue cap | I34: Financial | J34: June | K34: 5 | L34: 5 | M34: 5 | N34: transmission determination | AI34: CBD | AJ34: Urban | AK34: Short rural | AL34: Long rural | AN34: Murraylink
B35: Powercor Australia | C35: Powercor Australia | D35: 89064651109 | E35: Vic | F35: Electricity | G35: Distribution | H35: Revenue cap | I35: Calendar | J35: December | K35: 5 | L35: 5 | M35: 2 | N35: 2016-20 Distribution Determination | O35: 40 Market Street | Q35: MELBOURNE | R35: Vic | S35: 3000 | T35: Locked bag 14090 | V35: MELBOURNE | W35: VIC | X35: 8001 | Y35: Hannah Williams | Z35: 03 9683 4088 | AA35: hwilliams@powercor.com.au | AE35: YES | AF35: YES | AG35: NO | AI35: CBD | AJ35: Urban | AK35: Short rural | AL35: Long rural | AN35: Powercor Australia
B36: Powerlink | C36: Queensland Electricity Transmission Corporation Limited trading as Powerlink Queensland | D36: 82078849233 | E36: Qld | F36: Electricity | G36: Transmission | H36: Revenue cap | I36: Financial | J36: June | K36: 5 | L36: 5 | M36: 5 | N36: transmission determination | O36: 33 Harold St | Q36: VIRGINIA | R36: Qld | S36: 4014 | T36: PO Box 1193 | V36: VIRGINIA | W36: QLD | X36: 4014 | Y36: Jennifer Harris | Z36: 07 3860 2667 | AA36: jharris@powerlink.com.au | AI36: CBD | AJ36: Urban | AK36: Short rural | AL36: Long rural | AN36: Powerlink
B37: Roma to Brisbane Pipeline | C37: APT Petroleum Pipelines Limited t/a Roma to Brisbane Pipeline | D37: 009 737 393 | E37: Qld | F37: Gas | G37: Transmission | H37: Revenue cap | I37: Financial | J37: June | K37: 5 | L37: 5 | M37: x | N37: n/a | AI37: CBD | AJ37: Urban | AK37: Short rural | AL37: Long rural | AN37: Roma to Brisbane Pipeline
B38: SA Power Networks | C38: SA Power Networks | D38: 13332330749 | E38: SA | F38: Electricity | G38: Distribution | H38: Revenue cap | I38: Financial | J38: June | K38: 5 | L38: 5 | M38: 5 | N38: 2015-20 Distribution Determination | O38: 1 Anzac Highway | Q38: KESWICK | R38: SA | S38: 5035 | T38: GPO Box 77 | V38: ADELAIDE | W38: SA | X38: 5000 | Y38: Damien O'Connor | Z38: 08 8404 5066 | AA38: damien.oconnor@sapowernetworks.com.au | AE38: YES | AF38: YES | AG38: NO | AI38: CBD | AJ38: Urban | AK38: Short rural | AL38: Long rural | AN38: SA Power Networks
B39: TasNetworks (D) | C39: TasNetworks (D) | D39: 24167357299 | E39: Tas | F39: Electricity | G39: Distribution | H39: Revenue cap | I39: Financial | J39: June | K39: 5 | L39: 5 | M39: 5 | N39: distribution determination | O39: 21 Kirksway Place | Q39: HOBART | R39: Tas | S39: 7000 | T39: GPO Box 191 | V39: HOBART | W39: Tas | X39: 7000 | Y39: Leigh Mayne | Z39: 03 6270 3691 | AA39: rrp2012@auroraenergy.com.au | AE39: YES | AF39: YES | AG39: YES | AI39: Critical Infrastructure | AJ39: High density commercial | AK39: Urban | AL39: High density rural | AM39: Low density rural | AN39: TasNetworks (D)
B40: TasNetworks (T) | C40: TasNetworks (T) | D40: 24167357299 | E40: Tas | F40: Electricity | G40: Transmission | H40: Revenue cap | I40: Financial | J40: June | K40: 5 | L40: 5 | M40: 5 | N40: transmission determination | O40: 1-7 Maria Street | Q40: LENAH VALLEY | R40: Tas | S40: 7008 | T40: PO Box 606 | V40: MOONAH | W40: Tas | X40: 7009 | Y40: Heath Dillon | Z40: 03 6274 3664 | AA40: heath.dillon@transend.com.au | AI40: CBD | AJ40: Urban | AK40: Short rural | AL40: Long rural | AN40: TasNetworks (T)
B41: TransGrid | C41: NSW Electricity Networks Operations Pty Ltd trading as TransGrid | D41: 609169959 | E41: NSW | F41: Electricity | G41: Transmission | H41: Revenue cap | I41: Financial | J41: June | K41: 5 | L41: 4 | M41: 5 | N41: transmission determination | O41: 180 Thomas Street | Q41: SYDNEY | R41: NSW | S41: 2000 | T41: PO Box A1000 | V41: SYDNEY SOUTH | W41: NSW | X41: 1235 | Y41: Garrie Chubb | Z41: 0408 210 221 | AA41: garrie.chubb@transgrid.com.au | AI41: CBD | AJ41: Urban | AK41: Short rural | AL41: Long rural | AN41: TransGrid
B42: United Energy | C42: United Energy | D42: 70064651029 | E42: Vic | F42: Electricity | G42: Distribution | H42: Revenue cap | I42: Calendar | J42: December | K42: 5 | L42: 5 | M42: 2 | N42: 2016-20 Distribution Determination | O42: Level 3 | P42: 6 Nexus Court | Q42: MULGRAVE | R42: Vic | S42: 3149 | T42: PO Box 449 | V42: MOUNT WAVERLEY | W42: VIC | X42: 3170 | Y42: Mathew Abraham | Z42: 03 8846 9758 | AA42: mathew.abraham@ue.com.au | AE42: YES | AF42: NO | AG42: NO | AI42: CBD | AJ42: Urban | AK42: Short rural | AL42: Long rural | AN42: United Energy
B43: Western Power (D) | C43: Western Power (D) | D43: 18540492861 | E43: WA | F43: Electricity | G43: Distribution | H43: Revenue cap | I43: Financial | J43: June | K43: 12 | L43: 4 | M43: x | N43: distribution determination | O43: 363 Wellington Street | Q43: PERTH | R43: WA | S43: 6000 | T43: GPO Box L921 | V43: PERTH | W43: WA | X43: 6842 | Y43: Judy Hunter | Z43: 08 9326 6239 | AA43: judy.hunter@westernpower.com.au | AE43: YES | AF43: YES | AG43: NO | AH43: NO | AI43: CBD | AJ43: Urban | AK43: Short rural | AL43: Long rural | AN43: Western Power (D)
B44: Western Power (T) | C44: Western Power (T) | D44: 18540492861 | E44: WA | F44: Electricity | G44: Transmission | H44: Revenue cap | I44: Financial | J44: June | K44: 12 | L44: 4 | M44: x | N44: transmission determination | O44: 363 Wellington Street | Q44: PERTH | R44: WA | S44: 6000 | T44: GPO Box L921 | V44: PERTH | W44: WA | X44: 6842 | Y44: Judy Hunter | Z44: 08 9326 6239 | AA44: judy.hunter@westernpower.com.au | AE44: YES | AF44: YES | AG44: NO | AI44: CBD | AJ44: Urban | AK44: Short rural | AL44: Long rural | AN44: Western Power (T)
W47: For EB & Reset RINs only | AC47: For AARs only
B48: The Reg Year Ending (dms_RYE) must be set to the last year of the regulatory period. For forecast data is is usually (FRCP_y5) for actual it is a single year (CRY). For historical actual data the RYE will need to be set manually in the business details sheet by setting the dms_Multiyear_flag to 1 and putting the correct value in 'dms_Specified_FinalYear. See cells C67:C68 | G48: =IF(dms_RPT="financial",VALUE(LEFT(CRCP_y1,4)-1)&"-"&TEXT(VALUE(RIGHT(CRCP_y1,2)-1),"00"),VALUE(LEFT(CRCP_y1,4)-1)) -> 2011 | N48: Drop down selector box for CA & Reset RINs. | O48: For CA & Reset RINs only | W48: for DNSP only | AC48: For DNSPs only | AI48: Reason for interruption | AJ48: dms_Reason_Interruption_Detailed | AK48: dms_Reason_Interruption
B49: dms_Model_List | C49: DELETE NR 'CRY' IF NOT AN ANNUAL RIN (EB, CA , ARR) | E49: dms_RYE_Formula_Result | N49: dms_0203_ProjectType | O49: dms_020303_01_UOM | P49: dms_020501_01_UOM | Q49: dms_020501_02_UOM | R49: dms_020501_03_UOM | S49: dms_020501_04_UOM | T49: dms_020603_01_UOM | U49: dms_040102_01_UOM | V49: dms_040102_04_UOM | W49: dms_030601_01_UOM | X49: dms_030601_02_UOM | Y49: dms_030701_01_UOM | Z49: dms_030702_01_UOM | AA49: dms_030703_01_UOM | AC49: dms_030605_UOM | AD49: dms_03060703_UOM | AI49: Animal | AJ49: Animal impact | AK49: Animal
B50: ARR | C50: ANNUAL REPORTING STATEMENT | E50: =LEFT(dms_SingleYear_FinalYear_Result,2)&RIGHT(dms_SingleYear_FinalYear_Result,2) -> 2017 | F50: =LEFT(dms_SingleYear_FinalYear_Result,2)&RIGHT(dms_SingleYear_FinalYear_Result,2) | H50: Formula errors are OK | N50: New line on new route - single circuit | O50: Circuit line length in km | P50: 0's | Q50: 0's | R50: 0's | S50: 0's | T50: 0's | U50: 0's | V50: days | W50: minutes/customer | X50: minutes/customer | Y50: Customer / km | Z50: % | AA50: km | AC50: number | AD50: number | AJ50: Animal nesting/burrowing, etc and other | AK50: Asset failure
B51: CA | C51: CATEGORY ANALYSIS | E51: =LEFT(dms_SingleYear_FinalYear_Result,2)&RIGHT(dms_SingleYear_FinalYear_Result,2) -> 2017 | F51: =LEFT(dms_SingleYear_FinalYear_Result,2)&RIGHT(dms_SingleYear_FinalYear_Result,2) | H51: Formula errors are OK | N51: New line on new route - dual circuit | O51: Circuit line length in km | P51: 0's | Q51: 0's | R51: 0's | S51: 0's | T51: 0's | U51: 0's | V51: 0's | W51: minutes/customer | X51: minutes/customer | Y51: MWh/customer | Z51: Number of spans | AC51: number | AD51: number | AJ51: Other | AK51: Other
B52: CPI | C52: CPI | N52: New line on new route - other | O52: Circuit line length in km | P52: MVA added | Q52: MVA added | R52: MVA added | S52: MVA added | T52: 0's | U52: 0's | V52: $0s | W52: interruptions/customer | X52: interruptions/customer | Y52: kVA / customer | Z52: Number of spans | AC52: number | AD52: number | AI52: Asset failure | AJ52: LV | AK52: Overloads
B53: EB | C53: ECONOMIC BENCHMARKING | E53: =LEFT(dms_SingleYear_FinalYear_Result,2)&RIGHT(dms_SingleYear_FinalYear_Result,2) -> 2017 | F53: =LEFT(dms_SingleYear_FinalYear_Result,2)&RIGHT(dms_SingleYear_FinalYear_Result,2) | H53: Formula errors are OK | N53: Line rebuild over existing route - single circuit | O53: Circuit line length in km | P53: 0's | Q53: 0's | R53: 0's | S53: 0's | T53: 0's | U53: $0s | V53: 0's | W53: interruptions/customer | X53: interruptions/customer | Z53: Number of spans | AC53: number | AD53: number | AJ53: Distribution substation | AK53: Planned
B54: PTRM | C54: POST TAX REVENUE MODEL | E54: =LEFT(dms_MultiYear_FinalYear_Result,2)&RIGHT(dms_MultiYear_FinalYear_Result,2) -> 2021 | F54: =LEFT(dms_MultiYear_FinalYear_Result,2)&RIGHT(dms_MultiYear_FinalYear_Result,2) | N54: Line rebuild over existing route - dual circuit | O54: Number | P54: total spend $0s | Q54: total spend $0s | R54: total spend $0s | S54: total spend $0s | T54: (per cent) | Z54: Number of spans | AC54: number | AD54: (per cent) | AJ54: HV | AK54: Network business
B55: Reset | C55: REGULATORY REPORTING STATEMENT | E55: =LEFT(dms_MultiYear_FinalYear_Result,2)&RIGHT(dms_MultiYear_FinalYear_Result,2) -> 2021 | F55: =LEFT(dms_MultiYear_FinalYear_Result,2)&RIGHT(dms_MultiYear_FinalYear_Result,2) | H55: Formula errors are OK | N55: Reconductor - Single circuit | O55: Number | P55: net circuit km added | Q55: net circuit km added | R55: net circuit km added | S55: net circuit km added | Z55: Years | AC55: number | AJ55: Zone substation | AK55: Third party
B56: RFM | C56: ROLL FORWARD MODEL | E56: =LEFT(dms_CRCP_FinalYear_Result,2)&RIGHT(dms_CRCP_FinalYear_Result,2) -> 2017 | F56: =LEFT(dms_CRCP_FinalYear_Result,2)&RIGHT(dms_CRCP_FinalYear_Result,2) | N56: Reconductor - Dual circuit | O56: Number | P56: total spend $0s | Q56: total spend $0s | R56: total spend $0s | S56: total spend $0s | Z56: Years | AC56: number | AJ56: Subtransmission | AK56: Unknown
B57: WACC | C57: WEIGHTED AVERAGE COST OF CAPITAL | E57: =LEFT(dms_MultiYear_FinalYear_Result,2)&RIGHT(dms_MultiYear_FinalYear_Result,2) -> 2021 | F57: =LEFT(dms_MultiYear_FinalYear_Result,2)&RIGHT(dms_MultiYear_FinalYear_Result,2) | N57: Other | P57: net circuit km added | Q57: net circuit km added | R57: net circuit km added | S57: net circuit km added | Z57: Trees | AC57: number | AI57: Other | AJ57: insert description of 'other' | AK57: Vegetation
P58: total spend $0s | Q58: total spend $0s | R58: total spend $0s | S58: total spend $0s | Z58: Trees | AC58: number | AI58: Overloads | AJ58: - | AK58: Weather
B59: dms_DataQuality_List | P59: 0's | R59: $0s | Z59: Defects | AC59: number | AI59: Planned | AJ59: - | AK59: 2 - STPIS Exclusion (3.3)(a)
B60: Actual | P60: 0's | Z60: Defects | AC60: number | AI60: Network business | AJ60: Network error | AK60: 3 - STPIS Exclusion (3.3)(a)
B61: Estimate | P61: 0's | Z61: Spans | AC61: number | AJ61: Switching and protection error | AK61: 4 - STPIS Exclusion (3.3)(a)
B62: Consolidated | P62: $0s | Z62: km | AC62: (per cent) | AI62: Third party | AJ62: Fire | AK62: 5 - STPIS Exclusion (3.3)(a)
B63: Recast | Z63: Spans | AC63: (per cent) | AJ63: Other | AK63: 6 - STPIS Exclusion (3.3)(a)
B64: Public | AJ64: Dig-in | AK64: 7 - STPIS Exclusion (3.3)(a)
AJ65: Unauthorised access
B66: For all files either AER or business needs to be able to specify the type of submission | C66: For PTRM & RFM templates we must provide a choice in case they change their form of control - otherwise it is drawn from the business specific lookup table above. | O66: For PTRM files - this field set the text for the named range "DMS_Xfactor" which in all cases is simply the text "x factors" - this saves putting in each old gas PTRM file | W66: for TNSP only | AJ66: Vehicle impact
B67: dms_SourceList | C67: dms_FormControl_Choices | O67: DMS_Xfactor | W67: dms_030601_01_UOM | Y67: dms_030701_01_UOM | Z67: dms_030702_01_UOM | AI67: Unknown | AJ67: Unknown
B68: After appeal | C68: Revenue cap | O68: x factors | W68: % | Y68: Number of spans | Z68: km | AI68: Vegetation | AJ68: Blow-in/Fall-in - NSP responsibility
B69: Draft decision | C69: Revenue yield | W69: number | Y69: Years | Z69: % | AJ69: Grow-in - NSP responsibility
B70: Final decision | C70: Weighted average price cap | W70: number | Y70: Trees | Z70: km | AJ70: Blow-in/Fall-in - Other responsible party
B71: PTRM update 1 | W71: % | Y71: Defects | Z71: number | AJ71: Grow-in - Other responsible party
B72: PTRM update 2 | W72: number | Y72: Number of spans | AI72: Weather
B73: PTRM update 3 | W73: number | Y73: km | AI73: 2 - STPIS Exclusion (3.3)(a)
B74: PTRM update 4 | W74: % | Y74: km | AI74: 3 - STPIS Exclusion (3.3)(a)
B75: PTRM update 5 | W75: number | Y75: Number of spans | AI75: 4 - STPIS Exclusion (3.3)(a)
B76: PTRM update 6 | W76: number | AI76: 5 - STPIS Exclusion (3.3)(a)
B77: PTRM update 7 | W77: % | AI77: 6 - STPIS Exclusion (3.3)(a)
B78: Regulatory proposal | W78: number | AI78: 7 - STPIS Exclusion (3.3)(a)
B79: Reporting | W79: %
B80: Revised regulatory proposal | W80: number
W81: %
W82: number
B86: These are indeces and lookup values for various dates. All step from the value placed in FRCP_y1 on the business and other details worksheet | L86: These date tables are currently used in the Recast templates to provide column headings and conditional formatting
B87: dms_FRCPlength_Num_List | C87: dms_FinalYear_List | D87: dms_CRCPlength_Num_List | E87: dms_CFinalYear_List | F87: dms_FRCP_years | H87: dms_CRCP_years | J87: dms_CRCP_index | L87: CRY from input cell on business sheet | M87: CRY - financial | N87: dms_FinYears | O87: CRY calendar | P87: dms_CalYears
B88: 1 | C88: dms_FRCP_y1 | D88: 1 | E88: CRCP_y1 | F88: =FRCP_y1 -> 2017-18 | G88: dms_FRCP_y1 | H88: =IF(dms_RPT="financial",VALUE(LEFT(dms_FRCP_y1,4)-1)&"-"&TEXT(VALUE(MID(dms_FRCP_y1,3,2)),"00"),VALUE(LEFT(dms_FRCP_y1,4)-1)) -> 2016 | I88: dms_CRCP_yZ | J88: 1 | L88: =CRY -> 2017 | M88: =VALUE(LEFT(CRY,4))&"-"&TEXT(MID(CRY,3,2)+1,"00") -> 2017-18 | N88: dms_CRYf_y1 | O88: =VALUE(LEFT(CRY,4)+1) -> 2018 | P88: dms_CRYc_y1
B89: 2 | C89: dms_FRCP_y2 | D89: 2 | E89: CRCP_y2 | F89: =IF(dms_RPT="financial",VALUE(LEFT(dms_FRCP_y1,4)+1)&"-"&TEXT(VALUE(RIGHT(dms_FRCP_y1,2)+1),"00"),VALUE(LEFT(dms_FRCP_y1,4)+1)) -> 2018 | G89: dms_FRCP_y2 | H89: =IF(dms_RPT="financial",VALUE(LEFT(dms_CRCP_yZ,4)-1)&"-"&TEXT(VALUE(MID(dms_CRCP_yZ,3,2)),"00"),VALUE(LEFT(dms_CRCP_yZ,4)-1)) -> 2015 | I89: dms_CRCP_yY | J89: 2 | M89: =VALUE(LEFT(dms_CRYf_y1,4)+1)&"-"&TEXT(MID(dms_CRYf_y1,3,2)+2,"00") -> 2018-19 | N89: dms_CRYf_y2 | O89: =VALUE(LEFT(dms_CRYc_y1,4)+1) -> 2019 | P89: dms_CRYc_y2
B90: 3 | C90: dms_FRCP_y3 | D90: 3 | E90: CRCP_y3 | F90: =IF(dms_RPT="financial",VALUE(LEFT(dms_FRCP_y2,4)+1)&"-"&TEXT(VALUE(RIGHT(dms_FRCP_y2,2)+1),"00"),VALUE(LEFT(dms_FRCP_y2,4)+1)) -> 2019 | G90: dms_FRCP_y3 | H90: =IF(dms_RPT="financial",VALUE(LEFT(dms_CRCP_yY,4)-1)&"-"&TEXT(VALUE(MID(dms_CRCP_yY,3,2)),"00"),VALUE(LEFT(dms_CRCP_yY,4)-1)) -> 2014 | I90: dms_CRCP_yX | J90: 3 | M90: =VALUE(LEFT(dms_CRYf_y2,4)+1)&"-"&TEXT(MID(dms_CRYf_y2,3,2)+2,"00") -> 2019-20 | N90: dms_CRYf_y3 | O90: =VALUE(LEFT(dms_CRYc_y2,4)+1) -> 2020 | P90: dms_CRYc_y3
B91: 4 | C91: dms_FRCP_y4 | D91: 4 | E91: CRCP_y4 | F91: =IF(dms_RPT="financial",VALUE(LEFT(dms_FRCP_y3,4)+1)&"-"&TEXT(VALUE(RIGHT(dms_FRCP_y3,2)+1),"00"),VALUE(LEFT(dms_FRCP_y3,4)+1)) -> 2020 | G91: dms_FRCP_y4 | H91: =IF(dms_RPT="financial",VALUE(LEFT(dms_CRCP_yX,4)-1)&"-"&TEXT(VALUE(MID(dms_CRCP_yX,3,2)),"00"),VALUE(LEFT(dms_CRCP_yX,4)-1)) -> 2013 | I91: dms_CRCP_yW | J91: 4 | M91: =VALUE(LEFT(dms_CRYf_y3,4)+1)&"-"&TEXT(MID(dms_CRYf_y3,3,2)+2,"00") -> 2020-21 | N91: dms_CRYf_y4 | O91: =VALUE(LEFT(dms_CRYc_y3,4)+1) -> 2021 | P91: dms_CRYc_y4
B92: 5 | C92: dms_FRCP_y5 | D92: 5 | E92: CRCP_y5 | F92: =IF(dms_RPT="financial",VALUE(LEFT(dms_FRCP_y4,4)+1)&"-"&TEXT(VALUE(RIGHT(dms_FRCP_y4,2)+1),"00"),VALUE(LEFT(dms_FRCP_y4,4)+1)) -> 2021 | G92: dms_FRCP_y5 | H92: =IF(dms_RPT="financial",VALUE(LEFT(dms_CRCP_yW,4)-1)&"-"&TEXT(VALUE(MID(dms_CRCP_yW,3,2)),"00"),VALUE(LEFT(dms_CRCP_yW,4)-1)) -> 2012 | I92: dms_CRCP_yV | J92: 5 | M92: =VALUE(LEFT(dms_CRYf_y4,4)+1)&"-"&TEXT(MID(dms_CRYf_y4,3,2)+2,"00") -> 2021-22 | N92: dms_CRYf_y5 | O92: =VALUE(LEFT(dms_CRYc_y4,4)+1) -> 2022 | P92: dms_CRYc_y5
B93: 6 | C93: dms_FRCP_y6 | D93: 6 | E93: CRCP_y6 | F93: =IF(dms_RPT="financial",VALUE(LEFT(dms_FRCP_y5,4)+1)&"-"&TEXT(VALUE(RIGHT(dms_FRCP_y5,2)+1),"00"),VALUE(LEFT(dms_FRCP_y5,4)+1)) -> 2022 | G93: dms_FRCP_y6 | H93: =IF(dms_RPT="financial",VALUE(LEFT(dms_CRCP_yV,4)-1)&"-"&TEXT(VALUE(MID(dms_CRCP_yV,3,2)),"00"),VALUE(LEFT(dms_CRCP_yV,4)-1)) -> 2011 | I93: dms_CRCP_yU | J93: 6 | M93: =VALUE(LEFT(dms_CRYf_y5,4)+1)&"-"&TEXT(MID(dms_CRYf_y5,3,2)+2,"00") -> 2022-23 | N93: dms_CRYf_y6 | O93: =VALUE(LEFT(dms_CRYc_y5,4)+1) -> 2023 | P93: dms_CRYc_y6
B94: 7 | C94: dms_FRCP_y7 | D94: 7 | E94: CRCP_y7 | F94: =IF(dms_RPT="financial",VALUE(LEFT(dms_FRCP_y6,4)+1)&"-"&TEXT(VALUE(RIGHT(dms_FRCP_y6,2)+1),"00"),VALUE(LEFT(dms_FRCP_y6,4)+1)) -> 2023 | G94: dms_FRCP_y7 | H94: =IF(dms_RPT="financial",VALUE(LEFT(dms_CRCP_yU,4)-1)&"-"&TEXT(VALUE(MID(dms_CRCP_yU,3,2)),"00"),VALUE(LEFT(dms_CRCP_yU,4)-1)) -> 2010 | I94: dms_CRCP_yT | J94: 7 | M94: =VALUE(LEFT(dms_CRYf_y6,4)+1)&"-"&TEXT(MID(dms_CRYf_y6,3,2)+2,"00") -> 2023-24 | N94: dms_CRYf_y7 | O94: =VALUE(LEFT(dms_CRYc_y6,4)+1) -> 2024 | P94: dms_CRYc_y7
B95: 8 | C95: dms_FRCP_y8 | D95: 8 | E95: CRCP_y8 | F95: =IF(dms_RPT="financial",VALUE(LEFT(dms_FRCP_y7,4)+1)&"-"&TEXT(VALUE(RIGHT(dms_FRCP_y7,2)+1),"00"),VALUE(LEFT(dms_FRCP_y7,4)+1)) -> 2024 | G95: dms_FRCP_y8 | H95: =IF(dms_RPT="financial",VALUE(LEFT(dms_CRCP_yT,4)-1)&"-"&TEXT(VALUE(MID(dms_CRCP_yT,3,2)),"00"),VALUE(LEFT(dms_CRCP_yT,4)-1)) -> 2009 | I95: dms_CRCP_yS | J95: 8 | M95: =VALUE(LEFT(dms_CRYf_y7,4)+1)&"-"&TEXT(MID(dms_CRYf_y7,3,2)+2,"00") -> 2024-25 | N95: dms_CRYf_y8 | O95: =VALUE(LEFT(dms_CRYc_y7,4)+1) -> 2025 | P95: dms_CRYc_y8
B96: 9 | C96: dms_FRCP_y9 | D96: 9 | E96: CRCP_y9 | F96: =IF(dms_RPT="financial",VALUE(LEFT(dms_FRCP_y8,4)+1)&"-"&TEXT(VALUE(RIGHT(dms_FRCP_y8,2)+1),"00"),VALUE(LEFT(dms_FRCP_y8,4)+1)) -> 2025 | G96: dms_FRCP_y9 | H96: =IF(dms_RPT="financial",VALUE(LEFT(dms_CRCP_yS,4)-1)&"-"&TEXT(VALUE(MID(dms_CRCP_yS,3,2)),"00"),VALUE(LEFT(dms_CRCP_yS,4)-1)) -> 2008 | I96: dms_CRCP_yR | J96: 9 | M96: =VALUE(LEFT(dms_CRYf_y8,4)+1)&"-"&TEXT(MID(dms_CRYf_y8,3,2)+2,"00") -> 2025-26 | N96: dms_CRYf_y9 | O96: =VALUE(LEFT(dms_CRYc_y8,4)+1) -> 2026 | P96: dms_CRYc_y9
B97: 10 | C97: dms_FRCP_y10 | D97: 10 | E97: CRCP_y10 | F97: =IF(dms_RPT="financial",VALUE(LEFT(dms_FRCP_y9,4)+1)&"-"&TEXT(VALUE(RIGHT(dms_FRCP_y9,2)+1),"00"),VALUE(LEFT(dms_FRCP_y9,4)+1)) -> 2026 | G97: dms_FRCP_y10 | H97: =IF(dms_RPT="financial",VALUE(LEFT(dms_CRCP_yR,4)-1)&"-"&TEXT(VALUE(MID(dms_CRCP_yR,3,2)),"00"),VALUE(LEFT(dms_CRCP_yR,4)-1)) -> 2007 | I97: dms_CRCP_yQ | J97: 10 | M97: =VALUE(LEFT(dms_CRYf_y9,4)+1)&"-"&TEXT(MID(dms_CRYf_y9,3,2)+2,"00") -> 2026-27 | N97: dms_CRYf_y10 | O97: =VALUE(LEFT(dms_CRYc_y9,4)+1) -> 2027 | P97: dms_CRYc_y10
B98: 11 | C98: dms_FRCP_y11 | D98: 11 | E98: CRCP_y11 | F98: =IF(dms_RPT="financial",VALUE(LEFT(dms_FRCP_y10,4)+1)&"-"&TEXT(VALUE(RIGHT(dms_FRCP_y10,2)+1),"00"),VALUE(LEFT(dms_FRCP_y10,4)+1)) -> 2027 | G98: dms_FRCP_y11 | H98: =IF(dms_RPT="financial",VALUE(LEFT(dms_CRCP_yQ,4)-1)&"-"&TEXT(VALUE(MID(dms_CRCP_yQ,3,2)),"00"),VALUE(LEFT(dms_CRCP_yQ,4)-1)) -> 2006 | I98: dms_CRCP_yP | J98: 11 | M98: =VALUE(LEFT(dms_CRYf_y10,4)+1)&"-"&TEXT(MID(dms_CRYf_y10,3,2)+2,"00") -> 2027-28 | N98: dms_CRYf_y11 | O98: =VALUE(LEFT(dms_CRYc_y10,4)+1) -> 2028 | P98: dms_CRYc_y11
B99: 12 | C99: dms_FRCP_y12 | D99: 12 | E99: CRCP_y12 | F99: =IF(dms_RPT="financial",VALUE(LEFT(dms_FRCP_y11,4)+1)&"-"&TEXT(VALUE(RIGHT(dms_FRCP_y11,2)+1),"00"),VALUE(LEFT(dms_FRCP_y11,4)+1)) -> 2028 | G99: dms_FRCP_y12 | H99: =IF(dms_RPT="financial",VALUE(LEFT(dms_CRCP_yP,4)-1)&"-"&TEXT(VALUE(MID(dms_CRCP_yP,3,2)),"00"),VALUE(LEFT(dms_CRCP_yP,4)-1)) -> 2005 | I99: dms_CRCP_yO | J99: 12 | M99: =VALUE(LEFT(dms_CRYf_y11,4)+1)&"-"&TEXT(MID(dms_CRYf_y11,3,2)+2,"00") -> 2028-29 | N99: dms_CRYf_y12 | O99: =VALUE(LEFT(dms_CRYc_y11,4)+1) -> 2029 | P99: dms_CRYc_y12
B100: 13 | C100: dms_FRCP_y13 | D100: 13 | E100: CRCP_y13 | F100: =IF(dms_RPT="financial",VALUE(LEFT(dms_FRCP_y12,4)+1)&"-"&TEXT(VALUE(RIGHT(dms_FRCP_y12,2)+1),"00"),VALUE(LEFT(dms_FRCP_y12,4)+1)) -> 2029 | G100: dms_FRCP_y13 | H100: =IF(dms_RPT="financial",VALUE(LEFT(dms_CRCP_yO,4)-1)&"-"&TEXT(VALUE(MID(dms_CRCP_yO,3,2)),"00"),VALUE(LEFT(dms_CRCP_yO,4)-1)) -> 2004 | I100: dms_CRCP_yN | J100: 13 | M100: =VALUE(LEFT(dms_CRYf_y12,4)+1)&"-"&TEXT(MID(dms_CRYf_y12,3,2)+2,"00") -> 2029-30 | N100: dms_CRYf_y13 | O100: =VALUE(LEFT(dms_CRYc_y12,4)+1) -> 2030 | P100: dms_CRYc_y13
B101: 14 | C101: dms_FRCP_y14 | D101: 14 | E101: CRCP_y14 | F101: =IF(dms_RPT="financial",VALUE(LEFT(dms_FRCP_y13,4)+1)&"-"&TEXT(VALUE(RIGHT(dms_FRCP_y13,2)+1),"00"),VALUE(LEFT(dms_FRCP_y13,4)+1)) -> 2030 | G101: dms_FRCP_y14 | H101: =IF(dms_RPT="financial",VALUE(LEFT(dms_CRCP_yN,4)-1)&"-"&TEXT(VALUE(MID(dms_CRCP_yN,3,2)),"00"),VALUE(LEFT(dms_CRCP_yN,4)-1)) -> 2003 | I101: dms_CRCP_yM | J101: 14 | M101: =VALUE(LEFT(dms_CRYf_y13,4)+1)&"-"&TEXT(MID(dms_CRYf_y13,3,2)+2,"00") -> 2030-31 | N101: dms_CRYf_y14 | O101: =VALUE(LEFT(dms_CRYc_y13,4)+1) -> 2031 | P101: dms_CRYc_y14
B102: 15 | C102: dms_FRCP_y15 | D102: 15 | E102: CRCP_y15 | F102: =IF(dms_RPT="financial",VALUE(LEFT(dms_FRCP_y14,4)+1)&"-"&TEXT(VALUE(RIGHT(dms_FRCP_y14,2)+1),"00"),VALUE(LEFT(dms_FRCP_y14,4)+1)) -> 2031 | G102: dms_FRCP_y15 | H102: =IF(dms_RPT="financial",VALUE(LEFT(dms_CRCP_yM,4)-1)&"-"&TEXT(VALUE(MID(dms_CRCP_yM,3,2)),"00"),VALUE(LEFT(dms_CRCP_yM,4)-1)) -> 2002 | I102: dms_CRCP_yL | J102: 15 | M102: =VALUE(LEFT(dms_CRYf_y14,4)+1)&"-"&TEXT(MID(dms_CRYf_y14,3,2)+2,"00") -> 2031-32 | N102: dms_CRYf_y15 | O102: =VALUE(LEFT(dms_CRYc_y14,4)+1) -> 2032 | P102: dms_CRYc_y15
M103: =VALUE(LEFT(dms_CRYf_y15,4)+1)&"-"&TEXT(MID(dms_CRYf_y15,3,2)+2,"00") -> 2032-33 | N103: dms_CRYf_y16 | O103: =VALUE(LEFT(dms_CRYc_y15,4)+1) -> 2033 | P103: dms_CRYc_y16
B104: These are drop down lists for businesses to select the correct FRCP_y1 on the business and other details worksheet. This also populates the column headings in the worksheets | M104: =VALUE(LEFT(dms_CRYf_y16,4)+1)&"-"&TEXT(MID(dms_CRYf_y16,3,2)+2,"00") -> 2033-34 | N104: dms_CRYf_y17 | O104: =VALUE(LEFT(dms_CRYc_y16,4)+1) -> 2034 | P104: dms_CRYc_y17
B105: dms_RCP_fyear_list | C105: dms_CRY_ListF | D105: dms_CRY_ListC | E105: dms_RCP_cyear_list | F105: dms_FRCP_fyear_list | G105: dms_FRCP_ListF | H105: dms_FRCP_ListC | I105: dms_FRCP_cyear_list | M105: =VALUE(LEFT(dms_CRYf_y17,4)+1)&"-"&TEXT(MID(dms_CRYf_y17,3,2)+2,"00") -> 2034-35 | N105: dms_CRYf_y18 | O105: =VALUE(LEFT(dms_CRYc_y17,4)+1) -> 2035 | P105: dms_CRYc_y18
B106: dms_fy1 | C106: 2006-07 | D106: 2007 | E106: dms_cy1 | F106: dms_frcp_fy1 | G106: 2016-17 | H106: 2017 | I106: dms_crcp_cy1 | M106: =VALUE(LEFT(dms_CRYf_y18,4)+1)&"-"&TEXT(MID(dms_CRYf_y18,3,2)+2,"00") -> 2035-36 | N106: dms_CRYf_y19 | O106: =VALUE(LEFT(dms_CRYc_y18,4)+1) -> 2036 | P106: dms_CRYc_y19
B107: dms_fy2 | C107: 2007-08 | D107: 2008 | E107: dms_cy2 | F107: dms_frcp_fy2 | G107: 2017-18 | H107: 2018 | I107: dms_crcp_cy2 | M107: =VALUE(LEFT(dms_CRYf_y19,4)+1)&"-"&TEXT(MID(dms_CRYf_y19,3,2)+2,"00") -> 2036-37 | N107: dms_CRYf_y20 | O107: =VALUE(LEFT(dms_CRYc_y19,4)+1) -> 2037 | P107: dms_CRYc_y20
B108: dms_fy3 | C108: 2008-09 | D108: 2009 | E108: dms_cy3 | F108: dms_frcp_fy3 | G108: 2018-19 | H108: 2019 | I108: dms_crcp_cy3
B109: dms_fy4 | C109: 2009-10 | D109: 2010 | E109: dms_cy4 | F109: dms_frcp_fy4 | G109: 2019-20 | H109: 2020 | I109: dms_crcp_cy4
B110: dms_fy5 | C110: 2010-11 | D110: 2011 | E110: dms_cy5 | F110: dms_frcp_fy5 | G110: 2020-21 | H110: 2021 | I110: dms_crcp_cy5
B111: dms_fy6 | C111: 2011-12 | D111: 2012 | E111: dms_cy6 | F111: dms_frcp_fy6 | G111: 2021-22 | H111: 2022 | I111: dms_crcp_cy6
B112: dms_fy7 | C112: 2012-13 | D112: 2013 | E112: dms_cy7 | F112: dms_frcp_fy7 | G112: 2022-23 | H112: 2023 | I112: dms_crcp_cy7
B113: dms_fy8 | C113: 2013-14 | D113: 2014 | E113: dms_cy8 | F113: dms_frcp_fy8 | G113: 2023-24 | H113: 2024 | I113: dms_crcp_cy8
B114: dms_fy9 | C114: 2014-15 | D114: 2015 | E114: dms_cy9 | F114: dms_frcp_fy9 | G114: 2024-25 | H114: 2025 | I114: dms_crcp_cy9
B115: dms_fy10 | C115: 2015-16 | D115: 2016 | E115: dms_cy10 | F115: dms_frcp_fy10 | G115: 2025-26 | H115: 2026 | I115: dms_crcp_cy10
B116: dms_fy11 | C116: 2016-17 | D116: 2017 | E116: dms_cy11 | F116: dms_frcp_fy11 | G116: 2026-27 | H116: 2027 | I116: dms_crcp_cy11
B117: dms_fy12 | C117: 2017-18 | D117: 2018 | E117: dms_cy12 | F117: dms_frcp_fy12 | G117: 2027-28 | H117: 2028 | I117: dms_crcp_cy12
B118: dms_fy13 | C118: 2018-19 | D118: 2019 | E118: dms_cy13 | F118: dms_frcp_fy13 | G118: 2028-29 | H118: 2029 | I118: dms_crcp_cy13
B119: dms_fy14 | C119: 2019-20 | D119: 2020 | E119: dms_cy14 | F119: dms_frcp_fy14 | G119: 2029-30 | H119: 2030 | I119: dms_crcp_cy14
B120: dms_fy15 | C120: 2019-20 | D120: 2020 | E120: dms_cy15 | F120: dms_frcp_fy15 | G120: 2030-31 | H120: 2031 | I120: dms_crcp_cy15
B121: dms_fy16 | C121: 2020-21 | D121: 2021 | E121: dms_cy16
B122: dms_fy17 | C122: 2021-22 | D122: 2022 | E122: dms_cy17
B123: dms_fy18 | C123: 2022-23 | D123: 2023 | E123: dms_cy18
B124: dms_fy19 | C124: 2023-24 | D124: 2024 | E124: dms_cy19
B125: dms_fy20 | C125: 2024-25 | D125: 2025 | E125: dms_cy20

Sheet Instructions
B2: Distribution Network Service Provider
B3: Annual Reporting RIN
C4: This template is to be used by AusNet (D) to fulfil its reporting obligations to the AER.
C5: INSTRUCTIONS
C6: Complete the Business & other details worksheet before entering data or values in any other worksheets. The Business & other details worksheet is linked to other worksheets within the workbook and automatically generates certain column headings and conditional formatting.
C8: Identifying CONFIDENTIAL INFORMATION: Please use the macro at the top of each worksheet to identify confidential information.
C9: -Do this by selecting the cell or cells that contain confidential information and then run the Mark selected cells as CONFIDENTIAL macro. This will format the cells a specific colour that is identified by the AER's database which in turn marks that information as confidential. -To reverse this, select the cell or cells and run the Return cells to NON-CONFIDENTIAL macro.
C11: UNITS OF MEASURE All amounts are to be unrounded and reported on a one for one basis: that is 1000 is to be entered as '1000'. Applicable units of measure may be identified in the table column headings or row descriptors.
C13: COLOUR CODING OF INPUT / NON-INPUT CELLS:
D14: Yellow = Input cell (mandatory)
D15: Darker yellow = input cell (mandatory)
D16: Orange = input cell (if data available)
D17: Grey = Not applicable/No inputs required
D18: PLEASE DO NOT ENTER TEXT into cells that are to contain numeric data.
C21: WORKSHEET NAVIGATION Many tables in the worksheets have been "grouped" to allow for easy navigation. To ungroup or group data use the outline symbols in the left margin (for Row groupings) or above the columns (for column groupings).
C23: RETURNING COMPLETED RESPONSES Please return two (2) files to the AER: 1. A confidential version which must contain a complete set of all responses with confidential information marked using the Mark selection CONFIDENTIAL macro and which has been completed using the locked template file provided by the AER. 2. A public version with confidential information either removed completely or aggregated in some form together with writtten consent to disclose the public version of the response. Use the drop down box on the Business and other details worksheet to identify the file as either confidential ('consolidated') or public.
C25: SUBMITTING AMENDED DATA TO THE AER If an NSP wishes to correct data previously submitted to the AER it should resubmit that data using the original completed submission as the starting point. Please make any necessary changes to the data. Data that is not being amended should be left unchanged. NSPs must identify the reason for the amendments in the Amendment Reason box on the Business and other details worksheet. NSPs may provide further details regarding any amendments in the Amendments worksheet. .
C26: NSP may use Amended Data macro to highlight cells that contain amended data. NB: if data is also CONFIDENTIAL, re-apply the Confidentiality macro after applying the Amended macro
C27: Please resubmit two (2) files - a confidential version and a public version of the amended submission to the AER

Sheet Contents
B3: Distribution Network Service Provider
B4: Annual Reporting RIN Template
B5: Table of Contents
C8: Instructions
C9: Business & other details
B12: CATEGORY ANALYSIS | C12: STPIS | D12: STATUTORY ACCOUNTS
B14: 2.11 Labour | C14: 6.2 STPIS Reliability | D14: 8.1 Income
C15: 6.6 STPIS Customer Service | D15: 8.2 Capex
C16: 6.7 STPIS Daily Performance
C17: 6.8 STPIS Exclusions | D17: 8.4 Opex
C18: 6.9 STPIS GSL
B22: NETWORK PERFORMANCE | C22: OTHER INFORMATION | D22: PRICING PROPOSAL
D23: Victorian Businesses Only
B24: 3.6 Quality of services | C24: 7.8 Avoided Cost Payments
B25: 3.6.8 Network-feeders | C25: 7.10 Juris Scheme | D25: 9.5 TUoS
B26: 3.6.9 Network-reliability | C26: 7.11 DMIS-DMIA
C27: 7.12 Safety and Bushfire
C28: 7.13 TARC
B29: PUBLIC LIGHTING
B31: 4.1 Public lighting tariffs

Sheet Business & other details
B1: =IF(dms_DataQuality="backcast",INDEX(dms_Worksheet_List,MATCH(dms_Model,dms_Model_List))&" BACKCAST",INDEX(dms_Worksheet_List,MATCH(dms_Model,dms_Model_List))) -> ANNUAL REPORTING STATEMENT
B2: =INDEX(dms_TradingNameFull_List,MATCH(dms_TradingName,dms_TradingName_List)) -> AusNet Services (D)
B3: =IF(SUM(dms_SingleYear_Model)>0,CRY,CONCATENATE(FRCP_y1," to ",dms_MultiYear_FinalYear_Result)) -> 2017
B4: BUSINESS & OTHER DETAILS
B7: Instructions
B8: Complete the following business details regulatory template before entering data or values in any other regulatory template. This regulatory template is linked to other cells within the spreadsheet and automatically generates column headings and conditional formatting to distinguish business specific input and non-input cells.
B10: SUBMISSION PARTICULARS INPUT SHEETS
B12: ENTITY DETAILS
B14: Short name | C14: AusNet (D) | F14: Select business name from drop down list first
B15: ACN / ABN | C15: =INDEX(dms_ABN_List,MATCH(dms_TradingName,dms_TradingName_List)) -> 91064651118
B18: Business address | C18: Address 1 | E18: =INDEX(dms_Addr1_List,MATCH(dms_TradingName,dms_TradingName_List)) -> Level 32
D19: Address 2 | E19: =IF(ISBLANK(INDEX(dms_Addr2_List,MATCH(dms_TradingName,dms_TradingName_List))),"",INDEX(dms_Addr2_List,MATCH(dms_TradingName,dms_TradingName_List))) -> 2 Southbank Boulevard
C20: Suburb | E20: =INDEX(dms_Suburb_List,MATCH(dms_TradingName,dms_TradingName_List)) -> SOUTHBANK
D21: State | E21: =INDEX(dms_State_List,MATCH(dms_TradingName,dms_TradingName_List)) -> Vic | F21: p/code | G21: =INDEX(dms_PostCode_List,MATCH(dms_TradingName,dms_TradingName_List)) -> 3006
B23: Postal address | C23: Address 1 | E23: =INDEX(dms_PAddr1_List,MATCH(dms_TradingName,dms_TradingName_List)) -> Locked Bag 14051
D24: Address 2 | E24: =IF(ISBLANK(INDEX(dms_PAddr2_List,MATCH(dms_TradingName,dms_TradingName_List))),"",INDEX(dms_PAddr2_List,MATCH(dms_TradingName,dms_TradingName_List))) -> 
C25: Suburb | E25: =INDEX(dms_PSuburb_List,MATCH(dms_TradingName,dms_TradingName_List)) -> MELBOURNE CITY MAIL CENTRE
D26: State | E26: =INDEX(dms_PState_List,MATCH(dms_TradingName,dms_TradingName_List)) -> VIC | F26: p/code | G26: =INDEX(dms_PPostCode_List,MATCH(dms_TradingName,dms_TradingName_List)) -> 8001
B29: Contact name/s | C29: Clare Thompson
B30: Contact phone/s
B31: Contact email address/s
B33: REGULATORY CONTROL PERIODS
B35: Forthcoming regulatory control period | C35: 2017-18 | D35: =dms_FRCP_y2 -> 2018 | E35: =dms_FRCP_y3 -> 2019 | F35: =dms_FRCP_y4 -> 2020 | G35: =dms_FRCP_y5 -> 2021 | H35: =dms_FRCP_y6 -> 2022 | I35: =dms_FRCP_y7 -> 2023 | J35: =dms_FRCP_y8 -> 2024 | K35: =dms_FRCP_y9 -> 2025 | L35: =dms_FRCP_y10 -> 2026
B38: Current regulatory control period | C38: =dms_CRCP_FirstYear_Result -> 2012 | D38: =IF(dms_RPT="financial",VALUE(LEFT(CRCP_y1,4)+1)&"-"&TEXT(MID(CRCP_y1,3,2)+2,"00"),VALUE(LEFT(CRCP_y1,4)+1)) -> 2013 | E38: =IF(dms_RPT="financial",VALUE(LEFT(CRCP_y2,4)+1)&"-"&TEXT(VALUE(MID(CRCP_y2,3,2)+2),"00"),VALUE(LEFT(CRCP_y2,4)+1)) -> 2014 | F38: =IF(dms_RPT="financial",VALUE(LEFT(CRCP_y3,4)+1)&"-"&TEXT(VALUE(MID(CRCP_y3,3,2)+2),"00"),VALUE(LEFT(CRCP_y3,4)+1)) -> 2015 | G38: =IF(dms_RPT="financial",VALUE(LEFT(CRCP_y4,4)+1)&"-"&TEXT(VALUE(MID(CRCP_y4,3,2)+2),"00"),VALUE(LEFT(CRCP_y4,4)+1)) -> 2016 | H38: =IF(dms_RPT="financial",VALUE(LEFT(CRCP_y5,4)+1)&"-"&TEXT(VALUE(MID(CRCP_y5,3,2)+2),"00"),VALUE(LEFT(CRCP_y5,4)+1)) -> 2017 | I38: =IF(dms_RPT="financial",VALUE(LEFT(CRCP_y6,4)+1)&"-"&TEXT(VALUE(MID(CRCP_y6,3,2)+2),"00"),VALUE(LEFT(CRCP_y6,4)+1)) -> 2018 | J38: =IF(dms_RPT="financial",VALUE(LEFT(CRCP_y7,4)+1)&"-"&TEXT(VALUE(MID(CRCP_y7,3,2)+2),"00"),VALUE(LEFT(CRCP_y7,4)+1)) -> 2019 | K38: =IF(dms_RPT="financial",VALUE(LEFT(CRCP_y8,4)+1)&"-"&TEXT(VALUE(MID(CRCP_y8,3,2)+2),"00"),VALUE(LEFT(CRCP_y8,4)+1)) -> 2020 | L38: =IF(dms_RPT="financial",VALUE(LEFT(CRCP_y9,4)+1)&"-"&TEXT(VALUE(MID(CRCP_y9,3,2)+2),"00"),VALUE(LEFT(CRCP_y9,4)+1)) -> 2021
B41: Previous regulatory control period | C41: =IF(dms_RPT="financial",VALUE(LEFT(PRCP_y2,4)-1)&"-"&TEXT(VALUE(MID(PRCP_y2,3,2)),"00"),VALUE(LEFT(PRCP_y2,4)-1)) -> 2007 | D41: =IF(dms_RPT="financial",VALUE(LEFT(PRCP_y3,4)-1)&"-"&TEXT(VALUE(MID(PRCP_y3,3,2)),"00"),VALUE(LEFT(PRCP_y3,4)-1)) -> 2008 | E41: =IF(dms_RPT="financial",VALUE(LEFT(PRCP_y4,4)-1)&"-"&TEXT(VALUE(MID(PRCP_y4,3,2)),"00"),VALUE(LEFT(PRCP_y4,4)-1)) -> 2009 | F41: =IF(dms_RPT="financial",VALUE(LEFT(PRCP_y5,4)-1)&"-"&TEXT(VALUE(RIGHT(PRCP_y5,2)-1),"00"),VALUE(LEFT(PRCP_y5,4)-1)) -> 2010 | G41: =IF(dms_RPT="financial",VALUE(LEFT(CRCP_y1,4)-1)&"-"&TEXT(VALUE(RIGHT(CRCP_y1,2)-1),"00"),VALUE(LEFT(CRCP_y1,4)-1)) -> 2011
B44: Commencing regulatory year | C44: 2017 | D44: CRY
B46: Last completed regulatory year | C46: 2021-22 | D46: dms_FinalYear
B52: Source | C52: Reporting | E52: Please select the correct submission type from the dropdown list.
B53: Data quality (actual, estimate, public, consolidated) | C53: Consolidated
B54: Amended RIN submission - amendment reason | C54: Correction to Capex Movement in Provisions
B55: Submission Date | C55: 19/12/20118 | D55: dms_SubmissionDate | E55: Please enter date this file submitted to AER (dd/mm/yyyy)
B56: EBSS - First application of scheme in forthcoming period? | C56: No
B57: Sector | C57: =INDEX(dms_Sector_List,MATCH(dms_TradingName,dms_TradingName_List)) -> Electricity | D57: dms_Sector | E57: =INDEX(dms_Sector_List,MATCH(dms_TradingName,dms_TradingName_List))
B58: Segment | C58: =INDEX(dms_Segment_List,MATCH(dms_TradingName,dms_TradingName_List)) -> Distribution | D58: dms_Segment | E58: =INDEX(dms_Segment_List,MATCH(dms_TradingName,dms_TradingName_List))
B59: Regulatory Year Ending | C59: =IF(dms_MultiYear_Flag=1,LEFT(dms_Specified_FinalYear,2)&RIGHT(dms_Specified_FinalYear,2),INDEX(dms_RYE_Formula_Result,MATCH(dms_Model,dms_Model_List))) -> 2017 | D59: dms_RYE | E59: =IF(dms_MultiYear_Flag=1,LEFT(dms_Specified_FinalYear,2)&RIGHT(dms_Specified_FinalYear,2),INDEX(dms_RYE_Formula_Result,MATCH(dms_Model,dms_Model_List)))
B60: Reporting Period Type | C60: =INDEX(dms_RPT_List,MATCH(dms_TradingName,dms_TradingName_List)) -> Calendar | D60: dms_RPT | E60: =INDEX(dms_RPT_List,MATCH(dms_TradingName,dms_TradingName_List))
B61: Model or RIN Type | C61: ARR | D61: dms_Model | E61: Drop down selection
B62: Security Classification | C62: Public | D62: dms_Classification | E62: Always Public
B63: Template - version no. | C63: 5 | D63: dms_TemplateNumber
B64: Dollar $ real month | C64: =INDEX(dms_RPTMonth_List,MATCH(dms_TradingName,dms_TradingName_List)) -> December | D64: dms_RPTMonth | E64: =INDEX(dms_RPTMonth_List,MATCH(dms_TradingName,dms_TradingName_List))
B65: Dollar $ real (the last month before the FRCP_y1) | C65: =CONCATENATE(dms_RPTMonth)&" "&VALUE((LEFT(dms_CRCP_FinalYear_Result,2)&RIGHT(dms_CRCP_FinalYear_Result,2))) -> December 2017 | D65: dms_DollarReal | E65: =IF(SUM(dms_SingleYear_Model)>0,CONCATENATE(dms_RPTMonth)&" "&VALUE((LEFT(CRY,2))&RIGHT(CRY,2)),CONCATENATE(dms_RPTMonth)&" "&VALUE((LEFT(dms_CRCP_FinalYear_Result,2)&RIGHT(dms_CRCP_FinalYear_Result,2))))
B66: Form of control | C66: =INDEX(dms_FormControl_List,MATCH(dms_TradingName,dms_TradingName_List)) -> Revenue cap | D66: dms_FormControl | E66: =INDEX(dms_FormControl_List,MATCH(dms_TradingName,dms_TradingName_List))
B67: RIN response - version no. | C67: 1 | D67: dms_RINversion
B68: Jurisdiction | C68: =INDEX(dms_JurisdictionList,MATCH(dms_TradingName,dms_TradingName_List)) -> Vic | D68: dms_Jurisdiction | E68: =INDEX(dms_JurisdictionList,MATCH(dms_TradingName,dms_TradingName_List))
B69: Backcast Multiyear EB, CA or ARR? | C69: 0 | D69: dms_MultiYear_Flag | E69: 1=y, 0-n
C70: 2013 | D70: dms_Specified_FinalYear | E70: The result here is returned to dms_CRCP_FinalYear_Result if dms_MultiYear_Flag is set to 1
B71: Single Year Model T/F | C71: =IF(dms_Model="EB",1,0) -> 0 | D71: dms_EB
C72: =IF(dms_Model="CA",1,0) -> 0 | D72: dms_CA | E72: =dms_SingleYear_Model
C73: =IF(dms_Model="ARR",1,0) -> 1 | D73: dms_ARR
B74: Single Year Final Year Reference | C74: CRY | D74: dms_SingleYear_FinalYear_Ref | E74: This is the reference for EB, CA & ARR RINs
B75: Single Year Final Year Result | C75: =INDIRECT(dms_SingleYear_FinalYear_Ref) -> 2017 | D75: dms_SingleYear_FinalYear_Result | E75: =INDIRECT(dms_SingleYear_FinalYear_Ref) | I75: Formula errors OK
B76: FRCP length in years | C76: =INDEX(dms_FRCPlength_List,MATCH(dms_TradingName,dms_TradingName_List)) -> 5 | D76: dms_FRCPlength_Num | E76: =INDEX(dms_FRCPlength_List,MATCH(dms_TradingName,dms_TradingName_List))
B77: Multi Year Final Year Reference | C77: =INDEX(dms_FinalYear_List,MATCH(dms_FRCPlength_Num,dms_FRCPlength_Num_List)) -> dms_FRCP_y5 | D77: dms_MultiYear_FinalYear_Ref | E77: =INDEX(dms_FinalYear_List,MATCH(dms_FRCPlength_Num,dms_FRCPlength_Num_List))
B78: Multi Year Final Year Result | C78: =IF(dms_MultiYear_Flag=0,INDIRECT(dms_MultiYear_FinalYear_Ref),dms_Specified_FinalYear) -> 2021 | D78: dms_MultiYear_FinalYear_Result | E78: =IF(dms_MultiYear_Flag=0,INDIRECT(dms_MultiYear_FinalYear_Ref),dms_Specified_FinalYear) | I78: Formula errors OK
B79: CRCP length in years | C79: =INDEX(dms_CRCPlength_List,MATCH(dms_TradingName,dms_TradingName_List)) -> 5 | D79: dms_CRCPlength_Num | E79: =INDEX(dms_CRCPlength_List,MATCH(dms_TradingName,dms_TradingName_List))
B80: CRCP Final Year Reference | C80: =INDEX(dms_CFinalYear_List,MATCH(dms_CRCPlength_Num,dms_CRCPlength_Num_List)) -> CRCP_y5 | D80: dms_CRCP_FinalYear_Ref | E80: =INDEX(dms_CFinalYear_List,MATCH(dms_CRCPlength_Num,dms_CRCPlength_Num_List))
B81: CRCP First Year Result | C81: =INDEX(dms_CRCP_years,MATCH(dms_CRCPlength_Num,dms_CRCP_index)) -> 2012 | D81: dms_CRCP_FirstYear_Result | E81: =INDEX(dms_CRCP_years,MATCH(dms_CRCPlength_Num,dms_CRCP_index))
B82: CRCP Final Year Result | C82: =IF(dms_MultiYear_Flag=0,(IF(SUM(dms_SingleYear_Model)>0,CRY,dms_CRCP_yZ)),dms_Specified_FinalYear) -> 2017 | D82: dms_CRCP_FinalYear_Result | E82: =IF(dms_MultiYear_Flag=0,(IF(SUM(dms_SingleYear_Model)>0,CRY,dms_CRCP_yZ)),dms_Specified_FinalYear)
B83: Table 6.6.3 - Public lighting repair - no. business days | C83: =INDEX(dms_663_List,MATCH(dms_TradingName,dms_TradingName_List)) -> 2 | D83: dms_663
B84: Distribution Determination Reference | C84: =INDEX(dms_DeterminationRef_List,MATCH(dms_TradingName,dms_TradingName_List)) -> 2016-20 Distribution Determination | D84: dms_DeterminationRef
B85: Backcast templates only - unit of measure | C85: $0s | D85: dms_Backcast_UOM | E85: If the cover sheet is for Backcast data ensure to apply dms_Backcast_UOM named range to this field. Otherwise, do not apply this named range.
B86: EB/CA Unit of Measure for Monetary Values | C86: $0s | D86: dms_dollar_nom_UOM | E86: If the cover sheet is attached to an EB files make sure this field is set
B88: discard this record? | C88: NO | D88: dms_DISCARD | E88: If record is to be discarded from DB set this flag to YES
B90: USES NAMED RANGES FLAG | C90: yes | D90: dms_Defined_Names_Used

Sheet 2.11 Labour
B1: ANNUAL REPORTING STATEMENT
B2: AusNet (D)
B3: Annual Reporting RIN Response 2017
B4: 2.11 LABOUR
B6: Tables 2.11.1 and 2.11.2 deliberately omitted.
B8: 2.11.3 - LABOUR / NON-LABOUR EXPENDITURE SPLIT
B9: 2.11.3.1 - Opex
C10: 2017
C11: $0's, nominal
C12: Opex
B13: In-house labour expenditure
B14: Labour expenditure outsourced to related parties
B15: Labour expenditure outsourced to unrelated parties
B16: Controllable non-labour expenditure
B17: Uncontrollable non-labour expenditure
B18: Total | C18: 216729106.7
B20: Reconciliation with Opex worksheets - SCS | C20: Opex
B21: Total including margins | C21: 216729106.7 | D21: OK
B24: 2.11.3.2 - Capex
C25: 2017
C26: $0's, nominal
C27: Capex
B28: In-house labour expenditure
B29: Labour expenditure outsourced to related parties
B30: Labour expenditure outsourced to unrelated parties
B31: Controllable non-labour expenditure
B32: Uncontrollable non-labour expenditure
B33: Total | C33: 318943061.5
B35: Reconciliation with Capex & Opex worksheets - SCS | C35: Capex
B36: Total including margins | C36: 318943061.5 | D36: OK

Sheet 3.6 Quality of services
B1: ANNUAL REPORTING STATEMENT
B2: AusNet (D)
B3: Annual Reporting RIN Response 2017
B4: 3.6 QUALITY OF SERVICES
B6: 3.6.5 - QUALITY OF SUPPLY METRICS
D7: Volume
C8: Units | D8: 2017
B9: Over voltage events - due to high voltage injection | C9: number
B10: Customers receiving over-voltage - due to high voltage injection | C10: number
B11: Over voltage events - due to lightning | C11: number
B12: Customers receiving over-voltage - due to lightning | C12: number
B13: Over voltage events - due to voltage regulation or other cause | C13: number
B14: Customers receiving over-voltage - due to voltage regulation or other cause | C14: number
B15: Voltage variations - steady state (zone sub) | C15: number | D15: 663
B16: Voltage variations - one minute (zone sub) | C16: number | D16: 327
B17: Voltage variations - 10 seconds (zone sub) Min<0.7 | C17: number | D17: 619
B18: Voltage variations - 10 seconds (zone sub) Min<0.8 | C18: number | D18: 901
B19: Voltage variations - 10 seconds (zone sub) Min<0.9 | C19: number | D19: 1953
B20: Voltage variations - steady state (feeder) | C20: number | D20: 15389
B21: Voltage variations - % zone subs monitored | C21: (per cent) | D21: 1
B22: Voltage variations - % feeders monitored | C22: (per cent) | D22: 1
B24: 3.6.6 - COMPLAINTS - TECHNICAL QUALITY OF SUPPLY
D25: Volume
C26: Units | D26: 2017
B27: 3.6.6.1 - TECHNICAL QUALITY OF SUPPLY
B28: Number of complaints - technical quality of supply | C28: number | D28: 30
B29: 3.6.6.2 - PERCENTAGE OF COMPLAINTS BY CATEGORY
B30: Low voltage supply | C30: (per cent) | D30: 10
B31: Voltage dips | C31: (per cent) | D31: 10
B32: Voltage swell | C32: (per cent) | D32: 30
B33: Voltage spike (impulsive transient) | C33: (per cent) | D33: 3
B34: Waveform distortion | C34: (per cent) | D34: 3
B35: TV or radio interference | C35: (per cent) | D35: 6
B36: Solar related | C36: (per cent) | D36: 14
B37: Noise from appliances | C37: (per cent) | D37: 0
B38: Other | C38: (per cent) | D38: 24
B39: 3.6.6.3 - PERCENTAGE OF COMPLAINTS BY LIKELY CAUSE
B40: Network equipment faulty | C40: (per cent) | D40: 30
B41: Network interference by NSP equipment | C41: (per cent) | D41: 0
B42: Network interference by another customer | C42: (per cent) | D42: 0
B43: Network limitation | C43: (per cent) | D43: 0
B44: Customer internal problem | C44: (per cent) | D44: 24
B45: No problem identified | C45: (per cent) | D45: 10
B46: Environmental | C46: (per cent) | D46: 0
B47: Other | C47: (per cent) | D47: 36
B51: 3.6.7 - CUSTOMER SERVICE METRICS
D52: Volume
C53: Unit | D53: 2017
B54: 3.6.7.1 - TIMELY PROVISIONS OF SERVICES
B55: Number of connections made | C55: number | D55: 18311
B56: Number of connections not made on or before agreed date | C56: number | D56: 587
B57: 3.6.7.2 - TIMELY REPAIR OF FAULTY STREET LIGHTS
B58: Street lights - average monthly number "out" | C58: number | D58: 6668
B59: Street lights - not repaired by "fix by" date | C59: number | D59: 0
B60: Street lights - average number of days to repair | C60: number | D60: 1.76
B61: Total number of street lights | C61: number | D61: 151414
B62: 3.6.7.3 - CALL CENTRE PERFORMANCE
B63: Calls to call centre fault line | C63: number | D63: 85073
B64: Calls to fault line answered within 30 seconds | C64: number | D64: 72566
B65: Calls to fault line - average waiting time before call answered | C65: number | D65: 22.91
B66: Call centre - number of overload events | C66: number | D66: 2
B67: Percentage of calls abandoned | C67: (per cent) | D67: 0.05038
B68: 3.6.7.4 - NUMBER OF CUSTOMER COMPLAINTS
B69: Complaint - reliability of supply | C69: number | D69: 131
B70: Complaint - technical quality of supply | C70: number | D70: 39
B71: Complaint - administrative process or customer service | C71: number | D71: 359
B72: Complaint - connection or augmentation | C72: number | D72: 307
B73: Complaint - other | C73: number | D73: 426
B74: Total number of complaints | C74: number | D74: 1262

Sheet 3.6.8 Network-feeders
B1: ANNUAL REPORTING STATEMENT
B2: AusNet (D)
B3: Annual Reporting RIN Response 2017
B4: 3.6 QUALITY OF SERVICES
B6: Did the MAIFI parameter of the STPIS apply during the period? | F6: Yes | G6: ** IMPORTANT Please ensure this question is answered correctly. Your response will affect other tables throughout this workbook and will determine which cells are grey and which are input cells.
B10: 3.6.8 - NETWORK FEEDER RELIABILITY
B11: Feeder ID / name | C11: Description of the service area for the feeder | D11: Feeder classification (drop down) | E11: Number of distribution customers | F11: Length of high voltage distribution lines | H11: Maximum demand (MVA) | I11: Energy not supplied (MWh) | K11: Unplanned Outages | P11: Planned Outages | U11: Momentary feeder outages
F12: Overhead | G12: Underground | I12: Unplanned | J12: Planned | K12: Total number of unplanned outages | L12: Unplanned customer minutes off-supply (SAIDI) | N12: Unplanned interruptions (SAIFI) | P12: Total number of planned outages | Q12: Planned customer minutes off-supply (SAIDI) | S12: Planned interruptions (SAIFI) | U12: Total number of momentary feeder outages | V12: Momentary interruptions due to feeder outages (MAIFI)
L13: Including excluded events and MEDs | M13: After removing excluded events and MED | N13: Including excluded events and MEDs | O13: After removing excluded events and MED | Q13: Including MEDs | R13: After removing MED | S13: Including MEDs | T13: After removing MED | V13: Including excluded events and MEDs | W13: After removing excluded events and MED
B14: BDL2 | C14: East | D14: RURAL SHORT | E14: 3821.5 | F14: 32.01904494 | G14: 3.32077989 | H14: 8.002074731 | I14: 1.498334061 | J14: 12.88370946 | K14: 13 | L14: 108056 | M14: 108056 | N14: 6794 | O14: 6794 | P14: 26 | Q14: 929140 | R14: 910660 | S14: 2744 | T14: 2656 | U14: 1 | V14: 3570 | W14: 3570
B15: BDL4 | C15: East | D15: RURAL SHORT | E15: 2893 | F15: 62.47377539 | G15: 1.067989606 | H15: 8.573651497 | I15: 0.4014760662 | J15: 1.727435278 | K15: 4 | L15: 16676 | M15: 16676 | N15: 1047 | O15: 1047 | P15: 16 | Q15: 71752 | R15: 71752 | S15: 540 | T15: 540 | U15: 1 | V15: 1058 | W15: 1058
B16: BDL41 | C16: East | D16: RURAL LONG | E16: 4093 | F16: 399.5858259 | G16: 3.898486282 | H16: 9.907330619 | I16: 2.867121632 | J16: 34.68439563 | K16: 35 | L16: 179930 | M16: 179475 | N16: 10315 | O16: 10313 | P16: 88 | Q16: 2176665 | R16: 2176665 | S16: 6205 | T16: 6205 | U16: 4 | V16: 15700 | W16: 15700
B17: BDL42 | C17: East | D17: RURAL SHORT | E17: 2357.5 | F17: 88.00818984 | G17: 15.51554885 | H17: 6.858921198 | I17: 14.1916242 | J17: 30.6369104 | K17: 18 | L17: 616194 | M17: 616194 | N17: 18413 | O17: 18413 | P17: 36 | Q17: 1330241 | R17: 1330241 | S17: 3974 | T17: 3974 | U17: 2 | V17: 7632 | W17: 7632
B18: BDL43 | C18: East | D18: URBAN | E18: 1880 | F18: 17.02280169 | G18: 2.09227155 | H18: 11.05048415 | I18: 0.9130548829 | J18: 2.421624378 | K18: 3 | L18: 27946 | M18: 27946 | N18: 1636 | O18: 1636 | P18: 12 | Q18: 74119 | R18: 74119 | S18: 256 | T18: 256 | U18: 0 | V18: 0 | W18: 0
B19: BDL44 | C19: East | D19: RURAL LONG | E19: 2368 | F19: 657.9922965 | G19: 6.960450254 | H19: 6.858921198 | I19: 18.49855112 | J19: 23.33947619 | K19: 64 | L19: 886580 | M19: 876845 | N19: 6601 | O19: 6568 | P19: 98 | Q19: 1118591 | R19: 1118591 | S19: 2768 | T19: 2768 | U19: 0 | V19: 0 | W19: 0
B20: BDL6 | C20: East | D20: RURAL SHORT | E20: 3216.5 | F20: 164.1441253 | G20: 14.46369617 | H20: 8.726071969 | I20: 3.263702403 | J20: 20.20762526 | K20: 35 | L20: 216771 | M20: 216771 | N20: 9052 | O20: 9052 | P20: 45 | Q20: 1342165 | R20: 1342165 | S20: 3724 | T20: 3724 | U20: 0 | V20: 0 | W20: 0
B21: BDL8 | C21: East | D21: RURAL LONG | E21: 2064.5 | F21: 583.8522421 | G21: 3.804097302 | H21: 3.658091306 | I21: 8.026562266 | J21: 14.6405186 | K21: 53 | L21: 595370 | M21: 595370 | N21: 10443 | O21: 10443 | P21: 135 | Q21: 1085960 | R21: 1085960 | S21: 4790 | T21: 4790 | U21: 1 | V21: 2049 | W21: 2049
B22: BGE11 | C22: Central | D22: RURAL SHORT | E22: 3146.5 | F22: 47.66069934 | G22: 15.11815474 | H22: 7.201867258 | I22: 22.9522235 | J22: 8.23850745 | K22: 60 | L22: 1257199 | M22: 1245737 | N22: 9971 | O22: 9949 | P22: 25 | Q22: 451261 | R22: 451261 | S22: 1883 | T22: 1883 | U22: 7 | V22: 19093 | W22: 19093
B23: BGE12 | C23: Central | D23: RURAL SHORT | E23: 2254 | F23: 96.2818193 | G23: 5.547272228 | H23: 5.067980663 | I23: 10.67066311 | J23: 17.8583595 | K23: 37 | L23: 587995 | M23: 549206 | N23: 4023 | O23: 3589 | P23: 26 | Q23: 984065 | R23: 983925 | S23: 2091 | T23: 2090 | U23: 6 | V23: 13422 | W23: 13422
B24: BGE21 | C24: Central | D24: RURAL SHORT | E24: 16 | F24: 7.79142865 | G24: 1.309141471 | H24: 0.07621023553 | I24: 0 | J24: 0.4540245785 | K24: 0 | L24: 0 | M24: 0 | N24: 0 | O24: 0 | P24: 3 | Q24: 10269 | R24: 10269 | S24: 33 | T24: 33 | U24: 3 | V24: 48 | W24: 48
B25: BGE22 | C25: Central | D25: RURAL SHORT | E25: 3275.5 | F25: 80.75163886 | G25: 21.32585313 | H25: 6.47787002 | I25: 9.173679272 | J25: 17.49270258 | K25: 36 | L25: 680800 | M25: 679542 | N25: 6488 | O25: 6486 | P25: 21 | Q25: 1298174 | R25: 1298174 | S25: 3954 | T25: 3954 | U25: 5 | V25: 16266 | W25: 16266
B26: BGE23 | C26: Central | D26: URBAN | E26: 1858 | F26: 18.71392059 | G26: 2.022692414 | H26: 8.002074731 | I26: 7.433696509 | J26: 4.254307131 | K26: 22 | L26: 468663 | M26: 468663 | N26: 2830 | O26: 2830 | P26: 11 | Q26: 268216 | R26: 268216 | S26: 1502 | T26: 1502 | U26: 10 | V26: 16932 | W26: 16932
B27: BGE24 | C27: Central | D27: RURAL SHORT | E27: 1550 | F27: 24.78141282 | G27: 19.15939972 | H27: 4.115352719 | I27: 41.57002607 | J27: 37.34777821 | K27: 50 | L27: 1502173 | M27: 1502173 | N27: 8380 | O27: 8380 | P27: 34 | Q27: 1349598 | R27: 1330968 | S27: 3501 | T27: 3420 | U27: 11 | V27: 14313 | W27: 14313
B28: BM8B31 | C28: East | D28: RURAL SHORT | E28: 126 | F28: 134.9600981 | G28: 6.482826746 | H28: 0.4652508026 | I28: 1.604725381 | J28: 1.025743346 | K28: 5 | L28: 225306 | M28: 225306 | N28: 433 | O28: 433 | P28: 6 | Q28: 144016 | R28: 144016 | S28: 387 | T28: 387 | U28: 0 | V28: 0 | W28: 0
B29: BM8B32 | C29: East | D29: RURAL SHORT | E29: 75.5 | F29: 45.10978402 | G29: 0 | H29: 0.4956906088 | I29: 0.6312527118 | J29: 0.6509578084 | K29: 3 | L29: 55837 | M29: 55837 | N29: 142 | O29: 142 | P29: 3 | Q29: 57580 | R29: 57580 | S29: 142 | T29: 142 | U29: 0 | V29: 0 | W29: 0
B30: BM8B33 | C30: East | D30: RURAL SHORT | E30: 22.5 | F30: 14.48414547 | G30: 0 | H30: 0.6789905649 | I30: 0.0696456648 | J30: 0.0573517718 | K30: 4 | L30: 8237 | M30: 8237 | N30: 71 | O30: 71 | P30: 1 | Q30: 6783 | R30: 6783 | S30: 21 | T30: 21 | U30: 0 | V30: 0 | W30: 0
B31: BN1 | C31: North | D31: RURAL LONG | E31: 4587.5 | F31: 1198.751685 | G31: 4.463517658 | H31: 10.82185345 | I31: 24.76888165 | J31: 7.220451683 | K31: 71 | L31: 1737840 | M31: 718770 | N31: 8215 | O31: 4690 | P31: 88 | Q31: 506603 | R31: 506603 | S31: 1908 | T31: 1908 | U31: 2 | V31: 9053 | W31: 9053
B32: BN2 | C32: North | D32: RURAL LONG | E32: 1083 | F32: 381.5877592 | G32: 1.662657397 | H32: 10.09785621 | I32: 96.41843243 | J32: 7.982719338 | K32: 29 | L32: 1101308 | M32: 330260 | N32: 2911 | O32: 1884 | P32: 11 | Q32: 91180 | R32: 91180 | S32: 264 | T32: 264 | U32: 1 | V32: 42 | W32: 0
B33: BN3 | C33: North | D33: RURAL SHORT | E33: 657 | F33: 151.1999845 | G33: 1.644895113 | H33: 4.343983425 | I33: 12.26851509 | J33: 9.917540074 | K33: 10 | L33: 341920 | M33: 36026 | N33: 417 | O33: 275 | P33: 34 | Q33: 276399 | R33: 276399 | S33: 778 | T33: 778 | U33: 0 | V33: 0 | W33: 0
B34: BN4 | C34: North | D34: URBAN | E34: 3359.5 | F34: 17.07963037 | G34: 2.32098924 | H34: 8.459336144 | I34: 20.40532811 | J34: 3.224239729 | K34: 12 | L34: 1313489 | M34: 129090 | N34: 6267 | O34: 3751 | P34: 32 | Q34: 207544 | R34: 207544 | S34: 756 | T34: 756 | U34: 6 | V34: 17224 | W34: 16437
B35: BN6 | C35: North | D35: RURAL LONG | E35: 2332 | F35: 502.1570523 | G35: 3.127493427 | H35: 5.906293254 | I35: 7.411122596 | J35: 6.770134629 | K35: 52 | L35: 505122 | M35: 505122 | N35: 5433 | O35: 5433 | P35: 38 | Q35: 461434 | R35: 461434 | S35: 1401 | T35: 1401 | U35: 0 | V35: 0 | W35: 0
B36: BRA11 | C36: Central | D36: URBAN | E36: 2278 | F36: 9.265851184 | G36: 2.17945376 | H36: 8.954702675 | I36: 2.50230582 | J36: 8.196130283 | K36: 9 | L36: 136978 | M36: 119596 | N36: 327 | O36: 265 | P36: 12 | Q36: 448662 | R36: 448662 | S36: 1442 | T36: 1442 | U36: 3 | V36: 6780 | W36: 6780
B37: BRA12 | C37: Central | D37: URBAN | E37: 214 | F37: 2.721833806 | G37: 1.11685706 | H37: 4.725034603 | I37: 0.04365760355 | J37: 0.9715754258 | K37: 1 | L37: 169 | M37: 169 | N37: 1 | O37: 1 | P37: 3 | Q37: 3761 | R37: 3761 | S37: 32 | T37: 32 | U37: 2 | V37: 420 | W37: 420
B38: BRA13 | C38: Central | D38: URBAN | E38: 1660 | F38: 7.914084754 | G38: 4.103877209 | H38: 6.058713725 | I38: 0.4303047858 | J38: 4.021034161 | K38: 2 | L38: 19317 | M38: 19317 | N38: 105 | O38: 105 | P38: 4 | Q38: 180510 | R38: 180510 | S38: 528 | T38: 528 | U38: 1 | V38: 1637 | W38: 1637
B39: BRA14 | C39: Central | D39: URBAN | E39: 3960 | F39: 15.75237669 | G39: 0.6641116563 | H39: 6.858921198 | I39: 2.197305423 | J39: 10.23724837 | K39: 11 | L39: 271256 | M39: 271256 | N39: 2041 | O39: 2041 | P39: 32 | Q39: 1263782 | R39: 1263782 | S39: 3915 | T39: 3915 | U39: 2 | V39: 7787 | W39: 7787
B40: BRA21 | C40: Central | D40: URBAN | E40: 5122 | F40: 17.99113493 | G40: 13.38385258 | H40: 14.25131404 | I40: 7.796321322 | J40: 9.5763193 | K40: 13 | L40: 578422 | M40: 578422 | N40: 3619 | O40: 3619 | P40: 23 | Q40: 710483 | R40: 710483 | S40: 2638 | T40: 2638 | U40: 4 | V40: 19675 | W40: 14540
B41: BRA22 | C41: Central | D41: URBAN | E41: 1 | F41: 0.003001053065 | G41: 1.05879687 | H41: 4.191562954 | I41: 14.55173573 | J41: 0 | K41: 1 | L41: 565 | M41: 565 | N41: 1 | O41: 1 | P41: 0 | Q41: 0 | R41: 0 | S41: 0 | T41: 0 | U41: 0 | V41: 0 | W41: 0
B42: BRA23 | C42: Central | D42: URBAN | E42: 1801 | F42: 7.647559043 | G42: 4.599309588 | H42: 5.715767665 | I42: 2.994309529 | J42: 0.6170279654 | K42: 10 | L42: 148248 | M42: 148248 | N42: 3698 | O42: 3698 | P42: 3 | Q42: 30549 | R42: 30549 | S42: 191 | T42: 191 | U42: 1 | V42: 1789 | W42: 1789
B43: BRA24 | C43: Central | D43: URBAN | E43: 1790 | F43: 9.172393169 | G43: 2.182571615 | H43: 4.572614132 | I43: 1.383842189 | J43: 0.0360856033 | K43: 8 | L43: 102008 | M43: 102008 | N43: 2204 | O43: 2204 | P43: 1 | Q43: 2660 | R43: 2660 | S43: 95 | T43: 95 | U43: 0 | V43: 0 | W43: 0
B44: BRA31 | C44: Central | D44: URBAN | E44: 772.5 | F44: 1.395506898 | G44: 4.073737592 | H44: 6.13492396 | I44: 0.06541291503 | J44: 0.5326014154 | K44: 1 | L44: 1604 | M44: 1604 | N44: 767 | O44: 767 | P44: 3 | Q44: 13060 | R44: 13060 | S44: 43 | T44: 43 | U44: 0 | V44: 0 | W44: 0
B45: BRA32 | C45: Central | D45: URBAN | E45: 2163.5 | F45: 8.599861749 | G45: 2.074226587 | H45: 5.29661137 | I45: 1.898202118 | J45: 6.579244539 | K45: 7 | L45: 123837 | M45: 123541 | N45: 2380 | O45: 2379 | P45: 13 | Q45: 429224 | R45: 429224 | S45: 1250 | T45: 1250 | U45: 2 | V45: 4278 | W45: 4278
B46: BRA33 | C46: Central | D46: URBAN | E46: 4000.5 | F46: 13.9933927 | G46: 7.589098547 | H46: 9.107123146 | I46: 0.5361712945 | J46: 10.65658281 | K46: 7 | L46: 40965 | M46: 40873 | N46: 295 | O46: 294 | P46: 6 | Q46: 814193 | R46: 814193 | S46: 2034 | T46: 2034 | U46: 2 | V46: 8012 | W46: 8012
B47: BRA34 | C47: Central | D47: URBAN | E47: 42.5 | F47: 0.003001451669 | G47: 1.789618978 | H47: 3.92482713 | I47: 0 | J47: 0 | K47: 0 | L47: 0 | M47: 0 | N47: 0 | O47: 0 | P47: 0 | Q47: 0 | R47: 0 | S47: 0 | T47: 0 | U47: 0 | V47: 0 | W47: 0
B48: BRT11 | C48: North | D48: RURAL SHORT | E48: 1082.5 | F48: 25.30742758 | G48: 1.777649399 | H48: 3.543775952 | I48: 1.725840619 | J48: 0.1590088468 | K48: 4 | L48: 97955 | M48: 97955 | N48: 734 | O48: 734 | P48: 2 | Q48: 9025 | R48: 9025 | S48: 69 | T48: 69 | U48: 2 | V48: 1430 | W48: 1430
B49: BRT21 | C49: North | D49: RURAL SHORT | E49: 1494.5 | F49: 43.57754932 | G49: 46.03165313 | H49: 6.058713725 | I49: 1.415950577 | J49: 3.765021752 | K49: 14 | L49: 75368 | M49: 75368 | N49: 191 | O49: 191 | P49: 1 | Q49: 200404 | R49: 200404 | S49: 409 | T49: 409 | U49: 4 | V49: 5907 | W49: 5907
B50: BRT22 | C50: North | D50: RURAL SHORT | E50: 1570.5 | F50: 92.61960377 | G50: 3.3352718 | H50: 5.868188136 | I50: 11.6588716 | J50: 1.825310905 | K50: 11 | L50: 495440 | M50: 78330 | N50: 1563 | O50: 231 | P50: 24 | Q50: 77566 | R50: 77566 | S50: 308 | T50: 308 | U50: 2 | V50: 1820 | W50: 1577
B51: BWA21 | C51: North | D51: URBAN | E51: 4.5 | F51: 1.557472375 | G51: 2.881073199 | H51: 3.543775952 | I51: 0.02958366376 | J51: 0.9733025376 | K51: 1 | L51: 10 | M51: 10 | N51: 5 | O51: 5 | P51: 2 | Q51: 329 | R51: 329 | S51: 2 | T51: 2 | U51: 0 | V51: 0 | W51: 0
B52: BWA22 | C52: North | D52: RURAL LONG | E52: 1419 | F52: 222.9954853 | G52: 11.74556225 | H52: 4.115352719 | I52: 1.181281164 | J52: 6.962711136 | K52: 35 | L52: 67847 | M52: 67847 | N52: 1791 | O52: 1791 | P52: 108 | Q52: 399904 | R52: 399904 | S52: 2759 | T52: 2759 | U52: 1 | V52: 1404 | W52: 1404
B53: BWA23 | C53: North | D53: RURAL SHORT | E53: 429.5 | F53: 174.2333147 | G53: 1.738731157 | H53: 6.935131434 | I53: 3.369156408 | J53: 49.82134299 | K53: 15 | L53: 30087 | M53: 30087 | N53: 634 | O53: 634 | P53: 69 | Q53: 444911 | R53: 444911 | S53: 1517 | T53: 1517 | U53: 1 | V53: 423 | W53: 423
B54: BWA24 | C54: North | D54: URBAN | E54: 0.5 | F54: 1.257470274 | G54: 1.676815307 | H54: 3.619986188 | I54: 0.001656416992 | J54: 0 | K54: 1 | L54: 2 | M54: 2 | N54: 1 | O54: 1 | P54: 0 | Q54: 0 | R54: 0 | S54: 0 | T54: 0 | U54: 0 | V54: 0 | W54: 0
B55: BWN11 | C55: Central | D55: URBAN | E55: 2911.5 | F55: 8.311599848 | G55: 14.89340438 | H55: 10.66943297 | I55: 0.8355918242 | J55: 1.361015101 | K55: 5 | L55: 47716 | M55: 47716 | N55: 1581 | O55: 1581 | P55: 7 | Q55: 77720 | R55: 77720 | S55: 285 | T55: 285 | U55: 3 | V55: 7902 | W55: 7902
B56: BWN12 | C56: Central | D56: URBAN | E56: 1133.5 | F56: 3.749115463 | G56: 7.194339673 | H56: 6.668395609 | I56: 0.5309600825 | J56: 9.78892877 | K56: 4 | L56: 11527 | M56: 11527 | N56: 73 | O56: 73 | P56: 10 | Q56: 212515 | R56: 212515 | S56: 737 | T56: 737 | U56: 1 | V56: 1097 | W56: 1097
B57: BWN13 | C57: Central | D57: URBAN | E57: 1775 | F57: 10.68193874 | G57: 4.823200523 | H57: 6.630290491 | I57: 1.579013766 | J57: 8.747240771 | K57: 7 | L57: 82346 | M57: 82346 | N57: 401 | O57: 401 | P57: 11 | Q57: 456171 | R57: 456171 | S57: 1365 | T57: 1365 | U57: 3 | V57: 5258 | W57: 5258
B58: BWN14 | C58: Central | D58: RURAL SHORT | E58: 2722.5 | F58: 72.99612823 | G58: 8.996627561 | H58: 7.239972376 | I58: 0.6820834931 | J58: 20.66339809 | K58: 24 | L58: 40193 | M58: 40193 | N58: 315 | O58: 315 | P58: 17 | Q58: 1217628 | R58: 1217628 | S58: 3464 | T58: 3464 | U58: 3 | V58: 8109 | W58: 8109
B59: BWR12 | C59: Central | D59: URBAN | E59: 787.5 | F59: 6.079118521 | G59: 0.4349499071 | H59: 6.363554667 | I59: 1.0803311 | J59: 0.5224502819 | K59: 4 | L59: 25186 | M59: 25186 | N59: 77 | O59: 77 | P59: 5 | Q59: 12180 | R59: 12180 | S59: 74 | T59: 74 | U59: 1 | V59: 775 | W59: 775
B60: BWR13 | C60: Central | D60: URBAN | E60: 4458 | F60: 33.11340224 | G60: 5.78540568 | H60: 11.77448139 | I60: 0.6369414958 | J60: 8.565092328 | K60: 11 | L60: 43397 | M60: 43328 | N60: 331 | O60: 330 | P60: 18 | Q60: 583569 | R60: 583569 | S60: 1769 | T60: 1769 | U60: 2 | V60: 8838 | W60: 8838
B61: BWR14 | C61: Central | D61: URBAN | E61: 1 | F61: 0.006481209808 | G61: 1.17112962 | H61: 2.857883832 | I61: 0 | J61: 0 | K61: 0 | L61: 0 | M61: 0 | N61: 0 | O61: 0 | P61: 0 | Q61: 0 | R61: 0 | S61: 0 | T61: 0 | U61: 0 | V61: 0 | W61: 0
B62: BWR21 | C62: Central | D62: URBAN | E62: 0 | F62: 0.006833128003 | G62: 1.142843473 | H62: 2.857883832 | I62: 0 | J62: 0 | K62: 0 | L62: 0 | M62: 0 | N62: 0 | O62: 0 | P62: 0 | Q62: 0 | R62: 0 | S62: 0 | T62: 0 | U62: 0 | V62: 0 | W62: 0
B63: BWR22 | C63: Central | D63: URBAN | E63: 1069 | F63: 9.758796699 | G63: 0.5414742857 | H63: 6.592185374 | I63: 0.3544519852 | J63: 3.399810942 | K63: 7 | L63: 8982 | M63: 8982 | N63: 72 | O63: 72 | P63: 8 | Q63: 86153 | R63: 86153 | S63: 440 | T63: 440 | U63: 0 | V63: 0 | W63: 0
B64: BWR23 | C64: Central | D64: URBAN | E64: 3644.5 | F64: 17.45141044 | G64: 2.26612419 | H64: 8.573651497 | I64: 4.969193881 | J64: 7.52052459 | K64: 8 | L64: 213597 | M64: 213597 | N64: 4059 | O64: 4059 | P64: 7 | Q64: 323264 | R64: 323264 | S64: 836 | T64: 836 | U64: 11 | V64: 39878 | W64: 39878
B65: BWR24 | C65: Central | D65: URBAN | E65: 750 | F65: 5.714693781 | G65: 3.479060327 | H65: 9.564384559 | I65: 4.034761584 | J65: 3.158045053 | K65: 8 | L65: 45851 | M65: 44885 | N65: 402 | O65: 388 | P65: 3 | Q65: 35888 | R65: 35888 | S65: 114 | T65: 114 | U65: 4 | V65: 7448 | W65: 7448
B66: BWR32 | C66: Central | D66: URBAN | E66: 2864.5 | F66: 12.9841447 | G66: 0.9119783131 | H66: 7.354287729 | I66: 2.038575237 | J66: 6.792659861 | K66: 9 | L66: 116186 | M66: 116186 | N66: 541 | O66: 541 | P66: 16 | Q66: 387139 | R66: 387139 | S66: 1106 | T66: 1106 | U66: 5 | V66: 17080 | W66: 11336
B67: BWR33 | C67: Central | D67: URBAN | E67: 95.5 | F67: 1.677071571 | G67: 1.191888971 | H67: 6.401659785 | I67: 1.147720434 | J67: 0.1170071805 | K67: 1 | L67: 7651 | M67: 7651 | N67: 16 | O67: 16 | P67: 2 | Q67: 780 | R67: 780 | S67: 3 | T67: 3 | U67: 0 | V67: 0 | W67: 0
B68: BWR34 | C68: Central | D68: URBAN | E68: 3121.5 | F68: 10.4750886 | G68: 1.552092436 | H68: 7.239972376 | I68: 3.141936116 | J68: 23.49356666 | K68: 4 | L68: 206461 | M68: 206461 | N68: 2874 | O68: 2874 | P68: 23 | Q68: 1543795 | R68: 1543795 | S68: 5085 | T68: 5085 | U68: 3 | V68: 7342 | W68: 7342
B69: CF1 | C69: North | D69: RURAL SHORT | E69: 68 | F69: 6.334078887 | G69: 18.86768777 | H69: 5.410926723 | I69: 1.42192793 | J69: 0 | K69: 3 | L69: 18982 | M69: 18982 | N69: 134 | O69: 134 | P69: 0 | Q69: 0 | R69: 0 | S69: 0 | T69: 0 | U69: 4 | V69: 264 | W69: 264
B70: CF2 | C70: North | D70: RURAL SHORT | E70: 645.5 | F70: 15.74594762 | G70: 5.460979485 | H70: 5.563347194 | I70: 3.101467038 | J70: 0.8821241353 | K70: 2 | L70: 86087 | M70: 86087 | N70: 631 | O70: 631 | P70: 4 | Q70: 24485 | R70: 24485 | S70: 20 | T70: 20 | U70: 0 | V70: 0 | W70: 0
B71: CLN12 | C71: Central | D71: RURAL SHORT | E71: 4540 | F71: 6.807282638 | G71: 21.93394295 | H71: 8.230705438 | I71: 0.3911591852 | J71: 0 | K71: 4 | L71: 37228 | M71: 36811 | N71: 284 | O71: 283 | P71: 0 | Q71: 0 | R71: 0 | S71: 0 | T71: 0 | U71: 0 | V71: 0 | W71: 0
B72: CLN13 | C72: Central | D72: RURAL SHORT | E72: 4691 | F72: 7.566413367 | G72: 33.94696568 | H72: 6.935131434 | I72: 16.12666843 | J72: 5.214253995 | K72: 10 | L72: 1493005 | M72: 16739 | N72: 5217 | O72: 148 | P72: 10 | Q72: 482735 | R72: 482735 | S72: 1065 | T72: 1065 | U72: 1 | V72: 5070 | W72: 0
B73: CLN14 | C73: Central | D73: URBAN | E73: 4192 | F73: 3.339995807 | G73: 21.86512501 | H73: 9.183333382 | I73: 1.033085263 | J73: 2.770677388 | K73: 2 | L73: 82014 | M73: 82014 | N73: 109 | O73: 109 | P73: 9 | Q73: 219957 | R73: 219957 | S73: 472 | T73: 472 | U73: 0 | V73: 0 | W73: 0
B74: CLN21 | C74: Central | D74: RURAL SHORT | E74: 3859 | F74: 9.637363399 | G74: 24.29333281 | H74: 8.649861733 | I74: 0.06273773181 | J74: 0.0289507626 | K74: 7 | L74: 3775 | M74: 3775 | N74: 32 | O74: 32 | P74: 1 | Q74: 1742 | R74: 1742 | S74: 2 | T74: 2 | U74: 1 | V74: 3790 | W74: 3790
B75: CLN22 | C75: Central | D75: RURAL SHORT | E75: 1273.5 | F75: 79.03424239 | G75: 6.105354534 | H75: 6.554080256 | I75: 5.365292681 | J75: 11.4269268 | K75: 36 | L75: 146695 | M75: 146695 | N75: 1269 | O75: 1269 | P75: 21 | Q75: 312429 | R75: 308958 | S75: 793 | T75: 780 | U75: 2 | V75: 2480 | W75: 2480
B76: CLN23 | C76: Central | D76: RURAL SHORT | E76: 5837.5 | F76: 23.4740749 | G76: 39.04623124 | H76: 10.13596133 | I76: 3.749190872 | J76: 0.8654685955 | K76: 12 | L76: 380339 | M76: 380339 | N76: 3543 | O76: 3543 | P76: 14 | Q76: 87798 | R76: 87538 | S76: 469 | T76: 467 | U76: 1 | V76: 5423 | W76: 5423
B77: CNR1 | C77: East | D77: RURAL SHORT | E77: 144 | F77: 9.036520536 | G77: 2.025285612 | H77: 0.2286307066 | I77: 3.158032626 | J77: 0 | K77: 6 | L77: 173447 | M77: 173447 | N77: 570 | O77: 570 | P77: 0 | Q77: 0 | R77: 0 | S77: 0 | T77: 0 | U77: 0 | V77: 0 | W77: 0
B78: CNR2 | C78: East | D78: RURAL SHORT | E78: 1191.5 | F78: 143.3924248 | G78: 1.00328459 | H78: 2.591148008 | I78: 16.33582496 | J78: 0.4428933286 | K78: 10 | L78: 1431149 | M78: 1431149 | N78: 4783 | O78: 4783 | P78: 8 | Q78: 38801 | R78: 38801 | S78: 129 | T78: 129 | U78: 0 | V78: 0 | W78: 0
B79: CNR3 | C79: East | D79: RURAL SHORT | E79: 59.5 | F79: 86.25020283 | G79: 0.1259676554 | H79: 0.1905255888 | I79: 0.799025086 | J79: 0 | K79: 6 | L79: 63354 | M79: 63354 | N79: 238 | O79: 238 | P79: 0 | Q79: 0 | R79: 0 | S79: 0 | T79: 0 | U79: 2 | V79: 118 | W79: 118
B80: CPK11 | C80: Central | D80: URBAN | E80: 3521.5 | F80: 25.50711135 | G80: 5.059242366 | H80: 9.373858971 | I80: 18.86479601 | J80: 1.632107804 | K80: 13 | L80: 1361019 | M80: 743528 | N80: 10952 | O80: 7432 | P80: 10 | Q80: 117750 | R80: 117750 | S80: 805 | T80: 805 | U80: 9 | V80: 35251 | W80: 35251
B81: CPK12 | C81: Central | D81: RURAL SHORT | E81: 2303.5 | F81: 119.3785914 | G81: 14.71737258 | H81: 6.363554667 | I81: 0.3312936106 | J81: 8.795355913 | K81: 15 | L81: 21186 | M81: 21186 | N81: 126 | O81: 126 | P81: 19 | Q81: 562457 | R81: 562457 | S81: 1767 | T81: 1767 | U81: 0 | V81: 0 | W81: 0
B82: CPK13 | C82: Central | D82: URBAN | E82: 4674 | F82: 18.97173802 | G82: 3.927979873 | H82: 10.36459203 | I82: 4.706548398 | J82: 21.92722534 | K82: 17 | L82: 422471 | M82: 422471 | N82: 6313 | O82: 6313 | P82: 34 | Q82: 1968240 | R82: 1968240 | S82: 4489 | T82: 4489 | U82: 8 | V82: 34170 | W82: 34170
B83: CPK21 | C83: Central | D83: URBAN | E83: 1759 | F83: 10.49835137 | G83: 2.271830142 | H83: 6.935131434 | I83: 5.993033522 | J83: 18.06452108 | K83: 5 | L83: 246820 | M83: 246820 | N83: 3158 | O83: 3158 | P83: 12 | Q83: 743978 | R83: 743978 | S83: 1837 | T83: 1837 | U83: 0 | V83: 0 | W83: 0
B84: CPK22 | C84: Central | D84: URBAN | E84: 1515 | F84: 16.02577408 | G84: 3.390576593 | H84: 6.13492396 | I84: 0.1202523966 | J84: 0.4194262943 | K84: 4 | L84: 4993 | M84: 4993 | N84: 33 | O84: 33 | P84: 4 | Q84: 17415 | R84: 17415 | S84: 67 | T84: 67 | U84: 1 | V84: 1517 | W84: 1517
B85: CPK23 | C85: Central | D85: URBAN | E85: 2266.5 | F85: 12.16911588 | G85: 1.974034383 | H85: 5.067980663 | I85: 0.3131962786 | J85: 2.63611691 | K85: 6 | L85: 24351 | M85: 24351 | N85: 263 | O85: 263 | P85: 6 | Q85: 204958 | R85: 204958 | S85: 1200 | T85: 1200 | U85: 1 | V85: 2076 | W85: 2076
B86: CRE21 | C86: Central | D86: RURAL SHORT | E86: 2877 | F86: 16.08383206 | G86: 14.48800881 | H86: 6.096818843 | I86: 0.2060854427 | J86: 1.511927293 | K86: 4 | L86: 13543 | M86: 13543 | N86: 53 | O86: 53 | P86: 6 | Q86: 99357 | R86: 99357 | S86: 616 | T86: 616 | U86: 2 | V86: 5736 | W86: 5736
B87: CRE22 | C87: Central | D87: URBAN | E87: 2613 | F87: 8.690000655 | G87: 2.537566826 | H87: 7.544813318 | I87: 4.268734266 | J87: 10.05303621 | K87: 4 | L87: 215841 | M87: 215841 | N87: 670 | O87: 670 | P87: 18 | Q87: 508314 | R87: 508314 | S87: 2659 | T87: 2659 | U87: 3 | V87: 7133 | W87: 7133
B88: CRE23 | C88: Central | D88: URBAN | E88: 2979 | F88: 4.683872946 | G88: 12.72297018 | H88: 7.392392847 | I88: 10.76536517 | J88: 0.04446567402 | K88: 3 | L88: 663610 | M88: 663610 | N88: 3189 | O88: 3189 | P88: 2 | Q88: 2741 | R88: 2741 | S88: 11 | T88: 11 | U88: 2 | V88: 3551 | W88: 3551
B89: CRE31 | C89: Central | D89: RURAL SHORT | E89: 6131 | F89: 14.06581978 | G89: 27.01456853 | H89: 10.55511762 | I89: 0.3381111742 | J89: 4.508960151 | K89: 6 | L89: 33068 | M89: 33068 | N89: 734 | O89: 734 | P89: 14 | Q89: 440986 | R89: 440986 | S89: 1230 | T89: 1230 | U89: 4 | V89: 25174 | W89: 25174
B90: CRE32 | C90: Central | D90: URBAN | E90: 1975 | F90: 11.36884311 | G90: 4.1599162 | H90: 8.916597557 | I90: 1.380338347 | J90: 11.58096957 | K90: 12 | L90: 56079 | M90: 56079 | N90: 491 | O90: 491 | P90: 9 | Q90: 470500 | R90: 470500 | S90: 1364 | T90: 1364 | U90: 5 | V90: 9753 | W90: 9753
B91: CRE33 | C91: Central | D91: RURAL SHORT | E91: 2587.5 | F91: 76.37402549 | G91: 7.329498093 | H91: 6.401659785 | I91: 2.190837392 | J91: 16.55587673 | K91: 23 | L91: 127577 | M91: 122233 | N91: 2234 | O91: 2218 | P91: 22 | Q91: 964083 | R91: 964083 | S91: 2683 | T91: 2683 | U91: 1 | V91: 1163 | W91: 1163
B92: CYN11 | C92: Central | D92: URBAN | E92: 1494 | F92: 5.288908247 | G92: 3.379056637 | H92: 7.430497964 | I92: 2.169208122 | J92: 0.894617984 | K92: 6 | L92: 78925 | M92: 78925 | N92: 2191 | O92: 2191 | P92: 3 | Q92: 32550 | R92: 32550 | S92: 131 | T92: 131 | U92: 8 | V92: 11365 | W92: 11365
B93: CYN12 | C93: Central | D93: URBAN | E93: 2783.5 | F93: 9.9192077 | G93: 3.531754936 | H93: 8.802282204 | I93: 2.933076611 | J93: 5.214276729 | K93: 10 | L93: 183514 | M93: 183514 | N93: 6339 | O93: 6339 | P93: 7 | Q93: 326242 | R93: 326242 | S93: 1205 | T93: 1205 | U93: 4 | V93: 11099 | W93: 11099
B94: CYN13 | C94: Central | D94: URBAN | E94: 1090 | F94: 9.9688642 | G94: 1.90613511 | H94: 7.735338907 | I94: 5.264940979 | J94: 24.30103795 | K94: 11 | L94: 122084 | M94: 122084 | N94: 2604 | O94: 2604 | P94: 6 | Q94: 563495 | R94: 563495 | S94: 1244 | T94: 1244 | U94: 8 | V94: 7641 | W94: 7641
B95: CYN14 | C95: Central | D95: URBAN | E95: 2074 | F95: 6.638327517 | G95: 0.2336287237 | H95: 4.115352719 | I95: 6.397295579 | J95: 17.16966747 | K95: 7 | L95: 585365 | M95: 585365 | N95: 6056 | O95: 6056 | P95: 24 | Q95: 1571058 | R95: 1571058 | S95: 3927 | T95: 3927 | U95: 1 | V95: 2074 | W95: 2074
B96: CYN21 | C96: Central | D96: URBAN | E96: 2342 | F96: 12.9026669 | G96: 4.081454599 | H96: 5.563347194 | I96: 2.5276569 | J96: 7.648361701 | K96: 12 | L96: 162117 | M96: 162117 | N96: 3738 | O96: 3738 | P96: 12 | Q96: 490545 | R96: 490545 | S96: 1295 | T96: 1295 | U96: 0 | V96: 0 | W96: 0
B97: CYN22 | C97: Central | D97: URBAN | E97: 2080 | F97: 10.70501956 | G97: 1.640751643 | H97: 6.13492396 | I97: 2.208835182 | J97: 7.071954446 | K97: 10 | L97: 117585 | M97: 117585 | N97: 4521 | O97: 4521 | P97: 5 | Q97: 376468 | R97: 376468 | S97: 1134 | T97: 1134 | U97: 0 | V97: 0 | W97: 0
B98: CYN23 | C98: Central | D98: URBAN | E98: 1752 | F98: 8.651410585 | G98: 0.4678275443 | H98: 5.258506252 | I98: 1.293862732 | J98: 7.342561696 | K98: 6 | L98: 76051 | M98: 76051 | N98: 2275 | O98: 2275 | P98: 9 | Q98: 431583 | R98: 431583 | S98: 1489 | T98: 1489 | U98: 4 | V98: 6926 | W98: 6926
B99: CYN24 | C99: Central | D99: URBAN | E99: 1273 | F99: 12.1003532 | G99: 2.237388725 | H99: 10.5170125 | I99: 9.096638689 | J99: 6.121762023 | K99: 5 | L99: 166587 | M99: 166587 | N99: 3317 | O99: 3317 | P99: 5 | Q99: 112108 | R99: 112108 | S99: 351 | T99: 351 | U99: 4 | V99: 2996 | W99: 2996
B100: CYN31 | C100: Central | D100: URBAN | E100: 1906 | F100: 9.588620569 | G100: 0.6720938136 | H100: 3.658091306 | I100: 2.011470003 | J100: 12.84569718 | K100: 12 | L100: 221030 | M100: 221030 | N100: 5649 | O100: 5649 | P100: 20 | Q100: 1411547 | R100: 1411547 | S100: 4121 | T100: 4121 | U100: 2 | V100: 2601 | W100: 2601
B101: CYN32 | C101: Central | D101: URBAN | E101: 4006.5 | F101: 18.62369347 | G101: 1.541212119 | H101: 10.47890739 | I101: 2.417863326 | J101: 29.86150114 | K101: 9 | L101: 167661 | M101: 167462 | N101: 4820 | O101: 4819 | P101: 24 | Q101: 2070675 | R101: 2070675 | S101: 5206 | T101: 5206 | U101: 5 | V101: 19316 | W101: 19316
B102: CYN33 | C102: Central | D102: RURAL SHORT | E102: 3412.5 | F102: 23.18706175 | G102: 2.746701819 | H102: 7.735338907 | I102: 8.637928354 | J102: 25.52916183 | K102: 26 | L102: 787877 | M102: 782927 | N102: 9592 | O102: 9562 | P102: 21 | Q102: 2328549 | R102: 2328549 | S102: 5134 | T102: 5134 | U102: 1 | V102: 5333 | W102: 5333
B103: DRN11 | C103: Central | D103: RURAL SHORT | E103: 5073.5 | F103: 10.45458292 | G103: 25.38976413 | H103: 10.70753809 | I103: 3.223016316 | J103: 2.865213662 | K103: 10 | L103: 433978 | M103: 433978 | N103: 12416 | O103: 12416 | P103: 9 | Q103: 385800 | R103: 385800 | S103: 771 | T103: 771 | U103: 1 | V103: 4089 | W103: 4089
B104: DRN12 | C104: Central | D104: RURAL SHORT | E104: 4725 | F104: 9.20629782 | G104: 26.62272483 | H104: 10.59322274 | I104: 0.3246288249 | J104: 2.192617408 | K104: 5 | L104: 20336 | M104: 20336 | N104: 52 | O104: 52 | P104: 10 | Q104: 137354 | R104: 137354 | S104: 547 | T104: 547 | U104: 0 | V104: 0 | W104: 0
B105: DRN13 | C105: Central | D105: RURAL SHORT | E105: 3130.5 | F105: 23.11081934 | G105: 15.49574227 | H105: 6.287344431 | I105: 0.8065695946 | J105: 3.341855893 | K105: 9 | L105: 56750 | M105: 45678 | N105: 165 | O105: 133 | P105: 13 | Q105: 235132 | R105: 235132 | S105: 731 | T105: 731 | U105: 1 | V105: 2784 | W105: 2784
B106: DRN14 | C106: Central | D106: RURAL SHORT | E106: 3937.5 | F106: 69.23359095 | G106: 19.64698561 | H106: 8.954702675 | I106: 4.00773715 | J106: 1.793277463 | K106: 16 | L106: 314162 | M106: 202452 | N106: 3026 | O106: 2987 | P106: 17 | Q106: 140573 | R106: 140298 | S106: 560 | T106: 557 | U106: 1 | V106: 3932 | W106: 3932
B107: DRN21 | C107: Central | D107: RURAL SHORT | E107: 3439.5 | F107: 14.45662722 | G107: 22.35465507 | H107: 5.182296016 | I107: 2.835614346 | J107: 1.417437629 | K107: 14 | L107: 187995 | M107: 187995 | N107: 9799 | O107: 9799 | P107: 5 | Q107: 93973 | R107: 93973 | S107: 361 | T107: 361 | U107: 1 | V107: 4441 | W107: 4441
B108: DRN22 | C108: Central | D108: RURAL SHORT | E108: 3909.5 | F108: 79.93844456 | G108: 20.76600215 | H108: 8.802282204 | I108: 16.14082045 | J108: 4.767001481 | K108: 32 | L108: 1096238 | M108: 1020280 | N108: 24985 | O108: 24938 | P108: 27 | Q108: 323761 | R108: 323761 | S108: 1161 | T108: 1161 | U108: 5 | V108: 22518 | W108: 22518
B109: DRN23 | C109: Central | D109: RURAL LONG | E109: 2623.5 | F109: 227.1279487 | G109: 4.905231986 | H109: 10.2883818 | I109: 3.944320986 | J109: 6.433371552 | K109: 51 | L109: 211894 | M109: 164533 | N109: 3034 | O109: 2977 | P109: 35 | Q109: 345609 | R109: 345609 | S109: 1592 | T109: 1592 | U109: 3 | V109: 7762 | W109: 7762
B110: ELM11 | C110: Central | D110: URBAN | E110: 2297.5 | F110: 6.874688327 | G110: 4.27189465 | H110: 9.145228264 | I110: 2.726497948 | J110: 3.483545586 | K110: 4 | L110: 133608 | M110: 133608 | N110: 1887 | O110: 1887 | P110: 10 | Q110: 170706 | R110: 170706 | S110: 910 | T110: 910 | U110: 2 | V110: 4054 | W110: 4054
B111: ELM12 | C111: Central | D111: RURAL SHORT | E111: 2921.5 | F111: 20.35748515 | G111: 7.141254079 | H111: 7.201867258 | I111: 0.632388962 | J111: 6.473990773 | K111: 9 | L111: 46879 | M111: 46879 | N111: 1104 | O111: 1104 | P111: 14 | Q111: 479917 | R111: 479917 | S111: 1858 | T111: 1858 | U111: 3 | V111: 8746 | W111: 8746
B112: ELM13 | C112: Central | D112: URBAN | E112: 2095.5 | F112: 9.133378668 | G112: 1.988295696 | H112: 6.668395609 | I112: 4.643543145 | J112: 4.338727449 | K112: 10 | L112: 365843 | M112: 365843 | N112: 6285 | O112: 6285 | P112: 5 | Q112: 341828 | R112: 341828 | S112: 999 | T112: 999 | U112: 8 | V112: 14397 | W112: 12339
B113: ELM15 | C113: Central | D113: RURAL SHORT | E113: 6134 | F113: 79.85347106 | G113: 13.07241129 | H113: 18.09993094 | I113: 6.839901996 | J113: 10.08886241 | K113: 24 | L113: 491220 | M113: 484032 | N113: 9892 | O113: 9888 | P113: 24 | Q113: 724550 | R113: 724550 | S113: 2485 | T113: 2485 | U113: 2 | V113: 10474 | W113: 10474
B114: ELM31 | C114: Central | D114: URBAN | E114: 4092.5 | F114: 14.53545566 | G114: 5.168574944 | H114: 9.831120384 | I114: 2.676175993 | J114: 24.35200651 | K114: 13 | L114: 206251 | M114: 205021 | N114: 3430 | O114: 3429 | P114: 31 | Q114: 1876792 | R114: 1876792 | S114: 5143 | T114: 5143 | U114: 3 | V114: 9189 | W114: 9189
B115: ELM32 | C115: Central | D115: URBAN | E115: 3344 | F115: 21.03079622 | G115: 5.509425017 | H115: 9.450069206 | I115: 12.98818763 | J115: 2.307395973 | K115: 23 | L115: 841847 | M115: 841483 | N115: 8595 | O115: 8594 | P115: 10 | Q115: 149557 | R115: 149557 | S115: 806 | T115: 806 | U115: 9 | V115: 30119 | W115: 30119
B116: ELM33 | C116: Central | D116: RURAL SHORT | E116: 2241 | F116: 112.5732722 | G116: 6.578519923 | H116: 6.173029078 | I116: 5.280202816 | J116: 3.94954329 | K116: 22 | L116: 260431 | M116: 260431 | N116: 4187 | O116: 4187 | P116: 32 | Q116: 194800 | R116: 194800 | S116: 853 | T116: 853 | U116: 3 | V116: 5152 | W116: 5152
B117: ELM34 | C117: Central | D117: RURAL SHORT | E117: 3224 | F117: 30.31721927 | G117: 2.184375101 | H117: 9.335753853 | I117: 9.072077101 | J117: 32.52509636 | K117: 32 | L117: 566193 | M117: 566193 | N117: 10423 | O117: 10423 | P117: 38 | Q117: 2029908 | R117: 2029908 | S117: 4878 | T117: 4878 | U117: 7 | V117: 16973 | W117: 16973
B118: EPG11 | C118: Central | D118: URBAN | E118: 1502 | F118: 2.69019762 | G118: 4.692092442 | H118: 6.287344431 | I118: 0.08638180528 | J118: 0 | K118: 1 | L118: 3557 | M118: 3557 | N118: 61 | O118: 61 | P118: 0 | Q118: 0 | R118: 0 | S118: 0 | T118: 0 | U118: 0 | V118: 0 | W118: 0
B119: EPG12 | C119: Central | D119: URBAN | E119: 1602.5 | F119: 5.928589377 | G119: 2.600082976 | H119: 2.819778715 | I119: 1.403596161 | J119: 2.136980035 | K119: 2 | L119: 158931 | M119: 158931 | N119: 977 | O119: 977 | P119: 6 | Q119: 241973 | R119: 241973 | S119: 817 | T119: 817 | U119: 0 | V119: 0 | W119: 0
B120: EPG13 | C120: Central | D120: RURAL SHORT | E120: 5732 | F120: 26.65800419 | G120: 33.01973257 | H120: 10.2883818 | I120: 11.73469212 | J120: 4.813982259 | K120: 8 | L120: 994932 | M120: 508617 | N120: 9126 | O120: 4581 | P120: 16 | Q120: 408156 | R120: 408156 | S120: 1406 | T120: 1406 | U120: 4 | V120: 18820 | W120: 18820
B121: EPG14 | C121: Central | D121: URBAN | E121: 2247.5 | F121: 10.73357139 | G121: 0.7737056693 | H121: 4.915560192 | I121: 0.1651527979 | J121: 5.236085544 | K121: 1 | L121: 13580 | M121: 13580 | N121: 138 | O121: 138 | P121: 10 | Q121: 430547 | R121: 430547 | S121: 1472 | T121: 1472 | U121: 1 | V121: 2223 | W121: 2223
B122: EPG21 | C122: Central | D122: URBAN | E122: 2 | F122: 0.001999049469 | G122: 2.967001108 | H122: 2.781673597 | I122: 0.1997446229 | J122: 0 | K122: 1 | L122: 14 | M122: 14 | N122: 2 | O122: 2 | P122: 0 | Q122: 0 | R122: 0 | S122: 0 | T122: 0 | U122: 0 | V122: 0 | W122: 0
B123: EPG22 | C123: Central | D123: URBAN | E123: 135 | F123: 1.611381606 | G123: 1.717018943 | H123: 7.925864495 | I123: 0.3688162606 | J123: 11.88935219 | K123: 1 | L123: 1057 | M123: 1057 | N123: 133 | O123: 133 | P123: 3 | Q123: 34074 | R123: 34074 | S123: 78 | T123: 78 | U123: 0 | V123: 0 | W123: 0
B124: EPG23 | C124: Central | D124: URBAN | E124: 902 | F124: 10.11561293 | G124: 5.223335511 | H124: 7.239972376 | I124: 0.6514161591 | J124: 2.954415247 | K124: 4 | L124: 14545 | M124: 14545 | N124: 907 | O124: 907 | P124: 4 | Q124: 65967 | R124: 65967 | S124: 234 | T124: 234 | U124: 0 | V124: 0 | W124: 0
B125: EPG24 | C125: Central | D125: URBAN | E125: 0 | F125: 0.004875478679 | G125: 0.2282466111 | H125: 8.19260032 | I125: 0 | J125: 0 | K125: 0 | L125: 0 | M125: 0 | N125: 0 | O125: 0 | P125: 0 | Q125: 0 | R125: 0 | S125: 0 | T125: 0 | U125: 0 | V125: 0 | W125: 0
B126: EPG31 | C126: Central | D126: URBAN | E126: 3089.5 | F126: 13.27354588 | G126: 1.935936523 | H126: 5.525242076 | I126: 0.318739268 | J126: 7.733379585 | K126: 3 | L126: 34093 | M126: 34093 | N126: 3185 | O126: 3185 | P126: 10 | Q126: 827178 | R126: 827178 | S126: 2389 | T126: 2389 | U126: 1 | V126: 3057 | W126: 3057
B127: EPG32 | C127: Central | D127: RURAL SHORT | E127: 3258.5 | F127: 25.19822168 | G127: 13.62024752 | H127: 7.697233789 | I127: 10.40738839 | J127: 1.026053276 | K127: 13 | L127: 752549 | M127: 625966 | N127: 14592 | O127: 9889 | P127: 5 | Q127: 74193 | R127: 74193 | S127: 201 | T127: 201 | U127: 3 | V127: 9762 | W127: 9762
B128: EPG33 | C128: Central | D128: URBAN | E128: 1 | F128: 0.002500254754 | G128: 3.386777319 | H128: 3.200829892 | I128: 0.1953752121 | J128: 0 | K128: 1 | L128: 7 | M128: 7 | N128: 1 | O128: 1 | P128: 0 | Q128: 0 | R128: 0 | S128: 0 | T128: 0 | U128: 0 | V128: 0 | W128: 0
B129: EPG34 | C129: Central | D129: URBAN | E129: 3332.5 | F129: 8.170361566 | G129: 8.699778185 | H129: 5.753872783 | I129: 2.001564734 | J129: 8.146773067 | K129: 5 | L129: 196447 | M129: 195338 | N129: 6766 | O129: 6765 | P129: 7 | Q129: 799579 | R129: 799579 | S129: 1860 | T129: 1860 | U129: 2 | V129: 6644 | W129: 6644
B130: EPG35 | C130: Central | D130: URBAN | E130: 181 | F130: 2.146132684 | G130: 16.92616551 | H130: 8.840387322 | I130: 1.892829584 | J130: 1.420425596 | K130: 2 | L130: 4712 | M130: 4712 | N130: 183 | O130: 183 | P130: 5 | Q130: 3536 | R130: 3536 | S130: 15 | T130: 15 | U130: 1 | V130: 148 | W130: 148
B131: FGY12 | C131: Central | D131: URBAN | E131: 4107.5 | F131: 2.149100003 | G131: 24.24845523 | H131: 9.373858971 | I131: 3.212148035 | J131: 0.3313239297 | K131: 9 | L131: 284225 | M131: 284225 | N131: 2354 | O131: 2354 | P131: 2 | Q131: 29317 | R131: 29317 | S131: 129 | T131: 129 | U131: 3 | V131: 10331 | W131: 10331
B132: FGY13 | C132: Central | D132: RURAL SHORT | E132: 1561.5 | F132: 18.07515496 | G132: 1.386631431 | H132: 2.972199186 | I132: 0.5907012318 | J132: 7.380283399 | K132: 3 | L132: 46737 | M132: 46737 | N132: 424 | O132: 424 | P132: 17 | Q132: 583937 | R132: 583937 | S132: 2241 | T132: 2241 | U132: 3 | V132: 4503 | W132: 4503
B133: FGY14 | C133: Central | D133: URBAN | E133: 2570.5 | F133: 11.02055584 | G133: 0.1956531603 | H133: 9.71680503 | I133: 1.674015399 | J133: 12.85371945 | K133: 8 | L133: 102455 | M133: 102455 | N133: 1454 | O133: 1454 | P133: 11 | Q133: 786688 | R133: 786688 | S133: 2551 | T133: 2551 | U133: 4 | V133: 9321 | W133: 9321
B134: FGY21 | C134: Central | D134: URBAN | E134: 2507 | F134: 20.61311837 | G134: 12.78354673 | H134: 11.43153533 | I134: 0.03293438773 | J134: 0.6143668608 | K134: 2 | L134: 1371 | M134: 1371 | N134: 10 | O134: 10 | P134: 2 | Q134: 25575 | R134: 25575 | S134: 69 | T134: 69 | U134: 3 | V134: 7484 | W134: 7484
B135: FGY22 | C135: Central | D135: URBAN | E135: 3362 | F135: 6.120743067 | G135: 15.0439499 | H135: 9.526279442 | I135: 1.791719961 | J135: 1.423741037 | K135: 5 | L135: 93092 | M135: 93092 | N135: 911 | O135: 911 | P135: 10 | Q135: 73973 | R135: 73973 | S135: 440 | T135: 440 | U135: 3 | V135: 8325 | W135: 8325
B136: FGY23 | C136: Central | D136: URBAN | E136: 1142 | F136: 10.39342574 | G136: 0.3799300598 | H136: 3.543775952 | I136: 0.9290441522 | J136: 7.961173857 | K136: 4 | L136: 42422 | M136: 42422 | N136: 640 | O136: 640 | P136: 15 | Q136: 363523 | R136: 363523 | S136: 1588 | T136: 1588 | U136: 2 | V136: 2267 | W136: 2267
B137: FGY31 | C137: Central | D137: URBAN | E137: 1181 | F137: 10.33893789 | G137: 6.276739676 | H137: 10.47890739 | I137: 1.154767074 | J137: 5.676137675 | K137: 4 | L137: 19940 | M137: 19940 | N137: 163 | O137: 163 | P137: 5 | Q137: 98013 | R137: 98013 | S137: 1461 | T137: 1461 | U137: 3 | V137: 3672 | W137: 3672
B138: FGY32 | C138: Central | D138: URBAN | E138: 1379.5 | F138: 8.854093827 | G138: 0.6373349971 | H138: 5.29661137 | I138: 12.40713841 | J138: 6.808655006 | K138: 9 | L138: 512742 | M138: 234044 | N138: 4228 | O138: 2835 | P138: 6 | Q138: 281377 | R138: 281377 | S138: 1022 | T138: 1022 | U138: 4 | V138: 4724 | W138: 4724
B139: FGY33 | C139: Central | D139: URBAN | E139: 1886 | F139: 12.57468915 | G139: 3.402387562 | H139: 6.554080256 | I139: 21.04374266 | J139: 23.84760527 | K139: 21 | L139: 1031314 | M139: 1029851 | N139: 6040 | O139: 6037 | P139: 25 | Q139: 1168726 | R139: 1123256 | S139: 3330 | T139: 3213 | U139: 3 | V139: 2606 | W139: 2606
B140: FGY34 | C140: Central | D140: URBAN | E140: 3648 | F140: 22.33834648 | G140: 3.198859404 | H140: 8.268810555 | I140: 11.80282103 | J140: 20.34242844 | K140: 20 | L140: 1145334 | M140: 1141674 | N140: 11684 | O140: 11664 | P140: 22 | Q140: 1974009 | R140: 1974009 | S140: 5196 | T140: 5196 | U140: 2 | V140: 4000 | W140: 4000
B141: FTR12 | C141: East | D141: RURAL LONG | E141: 1644.5 | F141: 465.1499842 | G141: 1.149904234 | H141: 4.382088543 | I141: 9.4536791 | J141: 16.56625048 | K141: 95 | L141: 460459 | M141: 386783 | N141: 6458 | O141: 6132 | P141: 52 | Q141: 806890 | R141: 806890 | S141: 2842 | T141: 2842 | U141: 4 | V141: 6042 | W141: 6042
B142: FTR21 | C142: East | D142: RURAL LONG | E142: 2421 | F142: 400.893069 | G142: 0.6581550227 | H142: 4.725034603 | I142: 8.283828289 | J142: 28.34276351 | K142: 92 | L142: 684639 | M142: 681172 | N142: 12084 | O142: 12069 | P142: 75 | Q142: 2342463 | R142: 2342171 | S142: 6508 | T142: 6507 | U142: 2 | V142: 4796 | W142: 4796
B143: FTR22 | C143: East | D143: RURAL SHORT | E143: 1310 | F143: 126.0862197 | G143: 1.643188465 | H143: 2.89598895 | I143: 4.668267928 | J143: 2.934928002 | K143: 36 | L143: 249904 | M143: 249904 | N143: 4600 | O143: 4600 | P143: 16 | Q143: 157114 | R143: 157114 | S143: 565 | T143: 565 | U143: 4 | V143: 5157 | W143: 5157
B144: FTR23 | C144: East | D144: RURAL LONG | E144: 3413.5 | F144: 417.3166903 | G144: 3.68702006 | H144: 8.154495202 | I144: 19.04506546 | J144: 20.22420576 | K144: 72 | L144: 1065250 | M144: 1038822 | N144: 17456 | O144: 14807 | P144: 74 | Q144: 1131203 | R144: 1131203 | S144: 3527 | T144: 3527 | U144: 3 | V144: 6822 | W144: 6822
B145: HPK11 | C145: Central | D145: URBAN | E145: 5112 | F145: 4.886973253 | G145: 15.02957238 | H145: 9.183333382 | I145: 0.5222633949 | J145: 4.469086988 | K145: 2 | L145: 56254 | M145: 56254 | N145: 401 | O145: 401 | P145: 11 | Q145: 481374 | R145: 481374 | S145: 2354 | T145: 2354 | U145: 0 | V145: 0 | W145: 0
B146: HPK12 | C146: Central | D146: URBAN | E146: 1545.5 | F146: 7.363854439 | G146: 8.503467699 | H146: 8.306915673 | I146: 0.3252317629 | J146: 0.09070926522 | K146: 2 | L146: 10828 | M146: 10828 | N146: 136 | O146: 136 | P146: 4 | Q146: 3020 | R146: 3020 | S146: 128 | T146: 128 | U146: 1 | V146: 1544 | W146: 1544
B147: HPK13 | C147: Central | D147: URBAN | E147: 2048.5 | F147: 8.66333597 | G147: 8.05162674 | H147: 7.201867258 | I147: 3.940102067 | J147: 2.425779175 | K147: 3 | L147: 229864 | M147: 225843 | N147: 3093 | O147: 3031 | P147: 8 | Q147: 141519 | R147: 141519 | S147: 703 | T147: 703 | U147: 2 | V147: 3239 | W147: 3239
B148: HPK14 | C148: Central | D148: URBAN | E148: 4021.5 | F148: 8.955935405 | G148: 12.35495432 | H148: 8.230705438 | I148: 0.5172641538 | J148: 0.7262947229 | K148: 2 | L148: 46641 | M148: 46641 | N148: 492 | O148: 492 | P148: 3 | Q148: 65489 | R148: 65489 | S148: 224 | T148: 224 | U148: 1 | V148: 4007 | W148: 4007
B149: HPK21 | C149: Central | D149: RURAL SHORT | E149: 3036.5 | F149: 9.175904408 | G149: 11.66777878 | H149: 5.601452312 | I149: 0.5591002788 | J149: 0.6917522818 | K149: 4 | L149: 53178 | M149: 53178 | N149: 439 | O149: 439 | P149: 6 | Q149: 65795 | R149: 65795 | S149: 383 | T149: 383 | U149: 1 | V149: 3036 | W149: 3036
B150: HPK22 | C150: Central | D150: URBAN | E150: 4384 | F150: 8.387816285 | G150: 20.17693758 | H150: 8.802282204 | I150: 1.245920239 | J150: 14.89703011 | K150: 4 | L150: 115082 | M150: 115082 | N150: 596 | O150: 596 | P150: 14 | Q150: 1375995 | R150: 1375995 | S150: 1382 | T150: 1382 | U150: 0 | V150: 0 | W150: 0
B151: HPK23 | C151: Central | D151: URBAN | E151: 3238.5 | F151: 8.439160163 | G151: 13.39577564 | H151: 8.459336144 | I151: 2.552343585 | J151: 2.461336884 | K151: 4 | L151: 144323 | M151: 143999 | N151: 4260 | O151: 4254 | P151: 5 | Q151: 139177 | R151: 139177 | S151: 466 | T151: 466 | U151: 1 | V151: 2176 | W151: 2176
B152: HPK24 | C152: Central | D152: URBAN | E152: 1507.5 | F152: 8.564765535 | G152: 3.787201422 | H152: 7.773444024 | I152: 0.2659233894 | J152: 4.670720452 | K152: 7 | L152: 7388 | M152: 7388 | N152: 83 | O152: 83 | P152: 4 | Q152: 129764 | R152: 129764 | S152: 450 | T152: 450 | U152: 1 | V152: 1491 | W152: 1491
B153: KLK1 | C153: Central | D153: RURAL SHORT | E153: 1461 | F153: 179.8568806 | G153: 19.78524707 | H153: 2.934094068 | I153: 14.45727137 | J153: 34.97417668 | K153: 43 | L153: 795124 | M153: 795124 | N153: 2434 | O153: 2434 | P153: 72 | Q153: 1923517 | R153: 1923517 | S153: 5960 | T153: 5960 | U153: 1 | V153: 69 | W153: 69
B154: KLK2 | C154: Central | D154: RURAL SHORT | E154: 797.5 | F154: 86.21584682 | G154: 1.92427458 | H154: 1.295574004 | I154: 1.532180168 | J154: 15.17157313 | K154: 9 | L154: 91281 | M154: 91281 | N154: 1339 | O154: 1339 | P154: 40 | Q154: 903860 | R154: 903860 | S154: 3071 | T154: 3071 | U154: 0 | V154: 0 | W154: 0
B155: KLK3 | C155: Central | D155: RURAL SHORT | E155: 141.5 | F155: 58.61211206 | G155: 0 | H155: 0.5334716487 | I155: 0.5285483772 | J155: 2.690061186 | K155: 9 | L155: 27690 | M155: 27690 | N155: 156 | O155: 156 | P155: 18 | Q155: 140929 | R155: 119545 | S155: 391 | T155: 327 | U155: 0 | V155: 0 | W155: 0
B156: KLO11 | C156: Central | D156: RURAL SHORT | E156: 1 | F156: 0.003677511246 | G156: 0.1297291528 | H156: 0.01691 | I156: 0.01300375463 | J156: 0 | K156: 1 | L156: 174 | M156: 0 | N156: 1 | O156: 0 | P156: 0 | Q156: 0 | R156: 0 | S156: 0 | T156: 0 | U156: 0 | V156: 0 | W156: 0
B157: KLO12 | C157: Central | D157: URBAN | E157: 2 | F157: 0.003473357835 | G157: 0.860831221 | H157: 1.143153533 | I157: 0.3056935503 | J157: 0 | K157: 1 | L157: 348 | M157: 0 | N157: 2 | O157: 0 | P157: 0 | Q157: 0 | R157: 0 | S157: 0 | T157: 0 | U157: 0 | V157: 0 | W157: 0
B158: KLO14 | C158: Central | D158: RURAL LONG | E158: 3504 | F158: 250.7137072 | G158: 23.03316038 | H158: 7.468603082 | I158: 17.99906731 | J158: 23.32702222 | K158: 80 | L158: 917619 | M158: 584464 | N158: 14923 | O158: 11452 | P158: 67 | Q158: 1189246 | R158: 1189246 | S158: 3647 | T158: 3647 | U158: 2 | V158: 6763 | W158: 6763
B159: KLO24 | C159: Central | D159: RURAL SHORT | E159: 4382 | F159: 75.16026972 | G159: 31.85492804 | H159: 9.373858971 | I159: 41.08088298 | J159: 19.99221427 | K159: 25 | L159: 2744347 | M159: 547902 | N159: 10970 | O159: 6445 | P159: 16 | Q159: 1335550 | R159: 1335550 | S159: 4065 | T159: 4065 | U159: 3 | V159: 11056 | W159: 11056
B160: KMS1 | C160: North | D160: RURAL SHORT | E160: 1885 | F160: 111.6334931 | G160: 5.877089712 | H160: 5.944398372 | I160: 4.412747115 | J160: 3.383432299 | K160: 14 | L160: 244869 | M160: 221217 | N160: 4224 | O160: 2336 | P160: 17 | Q160: 187751 | R160: 187751 | S160: 574 | T160: 574 | U160: 0 | V160: 0 | W160: 0
B161: KMS21 | C161: North | D161: RURAL SHORT | E161: 3178 | F161: 169.0229045 | G161: 12.94911049 | H161: 10.74564321 | I161: 23.32574216 | J161: 4.831661542 | K161: 22 | L161: 1340151 | M161: 72827 | N161: 9229 | O161: 4006 | P161: 64 | Q161: 277597 | R161: 277597 | S161: 935 | T161: 935 | U161: 5 | V161: 18915 | W161: 18915
B162: LDL11 | C162: Central | D162: URBAN | E162: 1353 | F162: 5.915763209 | G162: 2.056279792 | H162: 3.886722012 | I162: 0.6070888699 | J162: 7.465217613 | K162: 2 | L162: 38629 | M162: 38629 | N162: 1330 | O162: 1330 | P162: 10 | Q162: 475011 | R162: 475011 | S162: 1514 | T162: 1514 | U162: 2 | V162: 1352 | W162: 1352
B163: LDL12 | C163: Central | D163: URBAN | E163: 460.5 | F163: 3.625282985 | G163: 0.5821844745 | H163: 7.16376214 | I163: 0.8731271029 | J163: 16.27763738 | K163: 3 | L163: 6990 | M163: 6990 | N163: 162 | O163: 162 | P163: 3 | Q163: 130314 | R163: 130314 | S163: 257 | T163: 257 | U163: 0 | V163: 0 | W163: 0
B164: LDL13 | C164: Central | D164: RURAL SHORT | E164: 3998 | F164: 133.8452549 | G164: 1.402434467 | H164: 8.230705438 | I164: 7.010922398 | J164: 19.33448744 | K164: 45 | L164: 485156 | M164: 485026 | N164: 3816 | O164: 3815 | P164: 37 | Q164: 1337947 | R164: 1337947 | S164: 4040 | T164: 4040 | U164: 2 | V164: 1631 | W164: 1631
B165: LDL14 | C165: Central | D165: RURAL SHORT | E165: 2245 | F165: 133.60547 | G165: 3.978680558 | H165: 7.963969613 | I165: 13.43562119 | J165: 32.39642888 | K165: 39 | L165: 528210 | M165: 520994 | N165: 5046 | O165: 4998 | P165: 40 | Q165: 1273638 | R165: 1273638 | S165: 3188 | T165: 3188 | U165: 3 | V165: 6688 | W165: 6688
B166: LDL21 | C166: Central | D166: RURAL SHORT | E166: 2352.5 | F166: 24.22712549 | G166: 12.05782818 | H166: 6.325449549 | I166: 3.536067576 | J166: 23.88206439 | K166: 33 | L166: 190533 | M166: 190533 | N166: 1584 | O166: 1584 | P166: 37 | Q166: 1286831 | R166: 1286831 | S166: 3860 | T166: 3860 | U166: 0 | V166: 0 | W166: 0
B167: LDL22 | C167: Central | D167: URBAN | E167: 1784 | F167: 10.85307524 | G167: 4.365244343 | H167: 7.621023553 | I167: 0.1343986404 | J167: 3.891330004 | K167: 4 | L167: 5328 | M167: 5328 | N167: 71 | O167: 71 | P167: 9 | Q167: 154265 | R167: 154265 | S167: 568 | T167: 568 | U167: 3 | V167: 5356 | W167: 5356
B168: LDL23 | C168: Central | D168: RURAL LONG | E168: 4656.5 | F168: 210.6014978 | G168: 10.19240215 | H168: 13.56542192 | I168: 15.23842741 | J168: 63.42938977 | K168: 75 | L168: 764525 | M168: 750254 | N168: 7214 | O168: 7147 | P168: 143 | Q168: 3182307 | R168: 3164450 | S168: 9095 | T168: 9015 | U168: 5 | V168: 23062 | W168: 23062
B169: LDL24 | C169: Central | D169: URBAN | E169: 3775 | F169: 14.3588093 | G169: 10.60311869 | H169: 10.85995856 | I169: 6.037355389 | J169: 3.57080021 | K169: 7 | L169: 517982 | M169: 517982 | N169: 5416 | O169: 5416 | P169: 13 | Q169: 306361 | R169: 306361 | S169: 954 | T169: 954 | U169: 2 | V169: 7520 | W169: 3774
B170: LGA11 | C170: East | D170: RURAL LONG | E170: 1681.5 | F170: 251.6374549 | G170: 0.1998271907 | H170: 3.810511777 | I170: 6.138084791 | J170: 8.941429335 | K170: 38 | L170: 376674 | M170: 185386 | N170: 4354 | O170: 2683 | P170: 45 | Q170: 548706 | R170: 548706 | S170: 2364 | T170: 2364 | U170: 4 | V170: 5294 | W170: 5294
B171: LGA12 | C171: East | D171: RURAL SHORT | E171: 983.5 | F171: 182.1315077 | G171: 1.679343053 | H171: 3.505670835 | I171: 3.126748213 | J171: 2.520687384 | K171: 22 | L171: 101119 | M171: 101119 | N171: 1340 | O171: 1340 | P171: 11 | Q171: 81519 | R171: 81519 | S171: 396 | T171: 396 | U171: 1 | V171: 980 | W171: 980
B172: LGA13 | C172: East | D172: RURAL LONG | E172: 910.5 | F172: 288.9979664 | G172: 0.140354096 | H172: 2.514937773 | I172: 5.163741381 | J172: 6.232047216 | K172: 37 | L172: 294307 | M172: 255033 | N172: 1931 | O172: 1891 | P172: 24 | Q172: 355195 | R172: 355195 | S172: 1240 | T172: 1240 | U172: 4 | V172: 2355 | W172: 2355
B173: LGA14 | C173: East | D173: RURAL LONG | E173: 1529 | F173: 210.6005858 | G173: 1.162254728 | H173: 3.429460599 | I173: 3.000222098 | J173: 5.736527189 | K173: 36 | L173: 171578 | M173: 158724 | N173: 4959 | O173: 4941 | P173: 31 | Q173: 328063 | R173: 328063 | S173: 1260 | T173: 1260 | U173: 8 | V173: 10844 | W173: 10844
B174: LGA21 | C174: East | D174: RURAL SHORT | E174: 1779 | F174: 82.92996945 | G174: 1.953537555 | H174: 2.248201948 | I174: 11.27809359 | J174: 6.423067414 | K174: 19 | L174: 718154 | M174: 545820 | N174: 3244 | O174: 3096 | P174: 28 | Q174: 409001 | R174: 409001 | S174: 1589 | T174: 1589 | U174: 3 | V174: 4408 | W174: 4408
B175: LGA22 | C175: East | D175: RURAL SHORT | E175: 2001 | F175: 56.82376428 | G175: 1.240235439 | H175: 5.144190898 | I175: 1.474470569 | J175: 1.220953611 | K175: 12 | L175: 64378 | M175: 64002 | N175: 578 | O175: 574 | P175: 6 | Q175: 53309 | R175: 53309 | S175: 263 | T175: 263 | U175: 0 | V175: 0 | W175: 0
B176: LGA23 | C176: East | D176: RURAL LONG | E176: 1513 | F176: 323.8757355 | G176: 0.5698528954 | H176: 3.810511777 | I176: 9.007688189 | J176: 4.44751533 | K176: 44 | L176: 439920 | M176: 439777 | N176: 1642 | O176: 1629 | P176: 44 | Q176: 217209 | R176: 217209 | S176: 874 | T176: 874 | U176: 4 | V176: 3052 | W176: 3052
B177: LGA24 | C177: East | D177: RURAL SHORT | E177: 1075.5 | F177: 174.4232738 | G177: 17.22652772 | H177: 6.020608607 | I177: 14.53677998 | J177: 49.52483304 | K177: 30 | L177: 282603 | M177: 274453 | N177: 2640 | O177: 2630 | P177: 53 | Q177: 962790 | R177: 962790 | S177: 2895 | T177: 2895 | U177: 0 | V177: 0 | W177: 0
B178: LGA25 | C178: East | D178: URBAN | E178: 1 | F178: 0.002499542794 | G178: 1.305267447 | H178: 0.7054666069 | I178: 0 | J178: 0 | K178: 0 | L178: 0 | M178: 0 | N178: 0 | O178: 0 | P178: 0 | Q178: 0 | R178: 0 | S178: 0 | T178: 0 | U178: 0 | V178: 0 | W178: 0
B179: LGA41 | C179: East | D179: URBAN | E179: 2 | F179: 0.002000075533 | G179: 1.320191987 | H179: 6.858921198 | I179: 0 | J179: 17.84173688 | K179: 0 | L179: 0 | M179: 0 | N179: 0 | O179: 0 | P179: 1 | Q179: 540 | R179: 540 | S179: 1 | T179: 1 | U179: 0 | V179: 0 | W179: 0
B180: LLG11 | C180: Central | D180: RURAL SHORT | E180: 967 | F180: 156.7550768 | G180: 0.4641218822 | H180: 2.400622419 | I180: 6.354482616 | J180: 4.949870067 | K180: 49 | L180: 271599 | M180: 125955 | N180: 1238 | O180: 505 | P180: 16 | Q180: 211564 | R180: 211564 | S180: 769 | T180: 769 | U180: 1 | V180: 957 | W180: 957
B181: LLG12 | C181: East | D181: RURAL SHORT | E181: 1466.5 | F181: 188.0902289 | G181: 3.931520652 | H181: 4.458298779 | I181: 2.267262022 | J181: 13.75392439 | K181: 27 | L181: 81581 | M181: 81581 | N181: 573 | O181: 573 | P181: 42 | Q181: 494896 | R181: 494896 | S181: 6316 | T181: 6316 | U181: 0 | V181: 0 | W181: 0
B182: LLG13 | C182: East | D182: RURAL SHORT | E182: 1317.5 | F182: 111.8285994 | G182: 3.440430336 | H182: 5.144190898 | I182: 3.385981829 | J182: 28.23359067 | K182: 24 | L182: 85201 | M182: 82408 | N182: 694 | O182: 687 | P182: 69 | Q182: 710438 | R182: 710438 | S182: 7510 | T182: 7510 | U182: 2 | V182: 2582 | W182: 2582
B183: LLG14 | C183: Central | D183: RURAL SHORT | E183: 2542 | F183: 134.6246676 | G183: 4.810680155 | H183: 7.011341669 | I183: 6.719643485 | J183: 13.19475711 | K183: 36 | L183: 310907 | M183: 307345 | N183: 5990 | O183: 5984 | P183: 28 | Q183: 610500 | R183: 610500 | S183: 1958 | T183: 1958 | U183: 1 | V183: 2507 | W183: 2507
B184: LYD11 | C184: Central | D184: RURAL SHORT | E184: 2408.5 | F184: 10.679316 | G184: 10.00223033 | H184: 4.686929485 | I184: 0.004941061327 | J184: 1.43456252 | K184: 0 | L184: 427 | M184: 427 | N184: 1 | O184: 1 | P184: 7 | Q184: 123973 | R184: 123973 | S184: 643 | T184: 643 | U184: 3 | V184: 7171 | W184: 7171
B185: LYD12 | C185: Central | D185: URBAN | E185: 2066 | F185: 0.002246391004 | G185: 10.10745371 | H185: 3.810511777 | I185: 1.218276375 | J185: 0 | K185: 1 | L185: 144127 | M185: 144127 | N185: 2247 | O185: 2247 | P185: 0 | Q185: 0 | R185: 0 | S185: 0 | T185: 0 | U185: 0 | V185: 0 | W185: 0
B186: LYD13 | C186: Central | D186: URBAN | E186: 2010.5 | F186: 10.16245484 | G186: 9.624158336 | H186: 6.058713725 | I186: 2.138177525 | J186: 10.4884211 | K186: 9 | L186: 139654 | M186: 139654 | N186: 1531 | O186: 1531 | P186: 13 | Q186: 685046 | R186: 685046 | S186: 1995 | T186: 1995 | U186: 1 | V186: 2002 | W186: 2002
B187: LYD14 | C187: Central | D187: RURAL SHORT | E187: 1187.5 | F187: 31.15023506 | G187: 10.49961313 | H187: 4.686929485 | I187: 3.082942943 | J187: 20.79780083 | K187: 10 | L187: 123877 | M187: 95483 | N187: 663 | O187: 567 | P187: 13 | Q187: 835685 | R187: 835685 | S187: 2470 | T187: 2470 | U187: 5 | V187: 5401 | W187: 5401
B188: LYS36 | C188: East | D188: RURAL SHORT | E188: 2 | F188: 3.896603006 | G188: 1.299529648 | H188: 0.1369800064 | I188: 0 | J188: 1.38392723 | K188: 0 | L188: 0 | M188: 0 | N188: 0 | O188: 0 | P188: 1 | Q188: 1171 | R188: 1171 | S188: 2 | T188: 2 | U188: 0 | V188: 0 | W188: 0
B189: MBY11 | C189: North | D189: RURAL SHORT | E189: 1149 | F189: 107.8481343 | G189: 1.488674397 | H189: 3.429460599 | I189: 1.340560866 | J189: 10.48674583 | K189: 16 | L189: 96321 | M189: 96321 | N189: 3740 | O189: 3740 | P189: 20 | Q189: 753486 | R189: 753486 | S189: 2287 | T189: 2287 | U189: 2 | V189: 2265 | W189: 2265
B190: MBY12 | C190: North | D190: RURAL SHORT | E190: 712 | F190: 22.01758277 | G190: 0.5649524351 | H190: 2.057676359 | I190: 0.8186691373 | J190: 13.34687352 | K190: 5 | L190: 51195 | M190: 51195 | N190: 1526 | O190: 1526 | P190: 7 | Q190: 834639 | R190: 834639 | S190: 1902 | T190: 1902 | U190: 0 | V190: 0 | W190: 0
B191: MBY13 | C191: North | D191: RURAL SHORT | E191: 252.5 | F191: 0.0160819038 | G191: 52.0029977 | H191: 4.572614132 | I191: 0.7378480036 | J191: 0.2007871933 | K191: 4 | L191: 16011 | M191: 16011 | N191: 527 | O191: 527 | P191: 3 | Q191: 4357 | R191: 4357 | S191: 12 | T191: 12 | U191: 0 | V191: 0 | W191: 0
B192: MBY14 | C192: North | D192: RURAL SHORT | E192: 1 | F192: 8.660858862 | G192: 0.09873153535 | H192: 1.447994475 | I192: 0 | J192: 0 | K192: 3 | L192: 47 | M192: 47 | N192: 3 | O192: 3 | P192: 0 | Q192: 0 | R192: 0 | S192: 0 | T192: 0 | U192: 0 | V192: 0 | W192: 0
B193: MDG1 | C193: Central | D193: RURAL SHORT | E193: 754.5 | F193: 7.43995062 | G193: 4.084928799 | H193: 1.154585068 | I193: 6.41013446 | J193: 3.363508604 | K193: 11 | L193: 476872 | M193: 476872 | N193: 2206 | O193: 2206 | P193: 9 | Q193: 250223 | R193: 250223 | S193: 1682 | T193: 1682 | U193: 1 | V193: 3084 | W193: 3084
B194: MDI1 | C194: North | D194: RURAL SHORT | E194: 54.5 | F194: 24.79085931 | G194: 0 | H194: 0.3048409421 | I194: 0.1171863277 | J194: 0.5362608247 | K194: 1 | L194: 7644 | M194: 7644 | N194: 52 | O194: 52 | P194: 3 | Q194: 34980 | R194: 34980 | S194: 107 | T194: 107 | U194: 0 | V194: 0 | W194: 0
B195: MFA14 | C195: East | D195: URBAN | E195: 30.5 | F195: 0.8726968167 | G195: 0.07772063423 | H195: 7.925864495 | I195: 1.804299586 | J195: 0 | K195: 2 | L195: 1056 | M195: 1056 | N195: 31 | O195: 31 | P195: 0 | Q195: 0 | R195: 0 | S195: 0 | T195: 0 | U195: 0 | V195: 0 | W195: 0
B196: MFA21 | C196: East | D196: RURAL LONG | E196: 2502 | F196: 435.0444642 | G196: 1.946678403 | H196: 7.468603082 | I196: 4.329071832 | J196: 48.31231977 | K196: 57 | L196: 213125 | M196: 211856 | N196: 5335 | O196: 5332 | P196: 90 | Q196: 2378469 | R196: 2378469 | S196: 7352 | T196: 7352 | U196: 2 | V196: 4941 | W196: 4941
B197: MFA22 | C197: East | D197: RURAL LONG | E197: 1579 | F197: 321.2221585 | G197: 0.2458819155 | H197: 6.706500727 | I197: 3.736569618 | J197: 8.395626621 | K197: 46 | L197: 126636 | M197: 126336 | N197: 1561 | O197: 1558 | P197: 28 | Q197: 284536 | R197: 284536 | S197: 1736 | T197: 1736 | U197: 1 | V197: 1555 | W197: 1555
B198: MFA23 | C198: East | D198: RURAL SHORT | E198: 480.5 | F198: 126.9410072 | G198: 1.944953215 | H198: 2.133886595 | I198: 1.447845399 | J198: 5.480571562 | K198: 23 | L198: 39330 | M198: 39330 | N198: 618 | O198: 618 | P198: 16 | Q198: 148877 | R198: 148877 | S198: 448 | T198: 448 | U198: 9 | V198: 4222 | W198: 4222
B199: MFA31 | C199: East | D199: RURAL SHORT | E199: 2181 | F199: 25.89802378 | G199: 1.156161274 | H199: 4.801244839 | I199: 0.5055751971 | J199: 5.224824893 | K199: 8 | L199: 42450 | M199: 42450 | N199: 249 | O199: 249 | P199: 33 | Q199: 438696 | R199: 438696 | S199: 1535 | T199: 1535 | U199: 1 | V199: 2156 | W199: 2156
B200: MFA34 | C200: East | D200: RURAL SHORT | E200: 1530.5 | F200: 188.6016584 | G200: 1.451977072 | H200: 7.392392847 | I200: 5.579728657 | J200: 14.31079237 | K200: 39 | L200: 154686 | M200: 154686 | N200: 4882 | O200: 4882 | P200: 27 | Q200: 396736 | R200: 396736 | S200: 1231 | T200: 1231 | U200: 2 | V200: 3023 | W200: 3023
B201: MJG11 | C201: North | D201: RURAL SHORT | E201: 1359.5 | F201: 77.06232343 | G201: 22.94139941 | H201: 14.09889357 | I201: 10.6830138 | J201: 3.676153477 | K201: 19 | L201: 312654 | M201: 312654 | N201: 3152 | O201: 3152 | P201: 17 | Q201: 107588 | R201: 107588 | S201: 760 | T201: 760 | U201: 4 | V201: 5360 | W201: 5360
B202: MOE13 | C202: East | D202: RURAL SHORT | E202: 3054.5 | F202: 32.67965874 | G202: 0.3709355547 | H202: 6.058713725 | I202: 0.5090729872 | J202: 2.538292242 | K202: 13 | L202: 44266 | M202: 44266 | N202: 402 | O202: 402 | P202: 6 | Q202: 220715 | R202: 220715 | S202: 654 | T202: 654 | U202: 3 | V202: 9146 | W202: 9146
B203: MOE14 | C203: East | D203: RURAL SHORT | E203: 1806 | F203: 151.2655052 | G203: 10.0801787 | H203: 3.162724775 | I203: 8.491747755 | J203: 6.594807589 | K203: 45 | L203: 557138 | M203: 557138 | N203: 10630 | O203: 10630 | P203: 55 | Q203: 432681 | R203: 432681 | S203: 1778 | T203: 1778 | U203: 9 | V203: 14613 | W203: 14613
B204: MOE21 | C204: East | D204: RURAL SHORT | E204: 692.5 | F204: 186.1999345 | G204: 0.7167995368 | H204: 2.857883832 | I204: 6.047509062 | J204: 6.615389746 | K204: 42 | L204: 253282 | M204: 249117 | N204: 2493 | O204: 2476 | P204: 35 | Q204: 277066 | R204: 277066 | S204: 1260 | T204: 1260 | U204: 2 | V204: 959 | W204: 959
... 162 more rows

Sheet 3.6.9 Network-reliability
B1: ANNUAL REPORTING STATEMENT
B2: AusNet (D)
B3: Annual Reporting RIN Response 2017
B4: 3.6 QUALITY OF SERVICES
B7: 3.6.9 - NETWORK FEEDER RELIABILITY - PLANNED OUTAGES
C8: 2017
B9: 3.6.9.1 - PLANNED MINUTES OFF SUPPLY (SAIDI)
B10: CBD | C10: 0
B11: Urban | C11: 180.1611699
B12: Short rural | C12: 247.0013667
B13: Long rural | C13: 381.6096652
C16: 2017
B17: 3.6.9.2 - PLANNED INTERRUPTIONS TO SUPPLY (SAIFI)
B18: CBD | C18: 0
B19: Urban | C19: 0.5484840031
B20: Short rural | C20: 0.7989813329
B21: Long rural | C21: 1.330193703

Sheet 4.1 Public lighting
B1: ANNUAL REPORTING STATEMENT
B2: AusNet (D)
B3: Annual Reporting RIN Response 2017
B4: 4.1 PUBLIC LIGHTING
B6: Tables 4.1.1 - 4.1.3 deliberately omitted.
B8: 4.1.4 - PUBLIC LIGHTING METRICS BY TARIFF
C9: Number of Lights | D9: Public Lighting Revenue
B10: Tariff categories | C10: 0's | D10: $0's, nominal
B11: 50W Colour Corrected Mercury Vapour C | C11: 71 | D11: 4108.66
B12: 80W Colour Corrected Mercury Vapour C | C12: 19501 | D12: 713713.83
B13: 125W Colour Corrected Mercury Vapour C | C13: 332 | D13: 18367.06
B14: 250W Colour Corrected Mercury Vapour C | C14: 668 | D14: 67054.55
B15: 400W Colour Corrected Mercury Vapour C | C15: 141 | D15: 14740.44
B16: 50W High Pressure Sodium C | C16: 0 | D16: 0
B17: 100W High Pressure Sodium C | C17: 2465 | D17: 240381.21
B18: 150W High Pressure Sodium C | C18: 14457 | D18: 1317991.59
B19: 250W High Pressure Sodium C | C19: 7048 | D19: 657202.63
B20: 400W High Pressure Sodium C | C20: 281 | D20: 38127.11
B21: 32W Compact Fluorescent C | C21: 2707 | D21: 90769.99
B22: 42W Compact Fluorescent C | C22: 1336 | D22: 37593.16
B23: 2x14W T5 Fluorescent C | C23: 21271 | D23: 693779.08
B24: 2x24W T5 Fluorescent C | C24: 1584 | D24: 61328.23
B25: 18W LED C | C25: 23946 | D25: 344520.68
B26: 70W Metal Halide C | C26: 31 | D26: 4984.8
B27: 100W Metal Halide C | C27: 34 | D27: 7540.2
B28: 150W Metal Halide C | C28: 33 | D28: 8314.32
B29: 50W Colour Corrected Mercury Vapour NE | C29: 128 | D29: 8459.08
B30: 80W Colour Corrected Mercury Vapour NE | C30: 8177 | D30: 398145.35
B31: 125W Colour Corrected Mercury Vapour NE | C31: 21 | D31: 1772.67
B32: 250W Colour Corrected Mercury Vapour NE | C32: 275 | D32: 30191.11
B33: 400W Colour Corrected Mercury Vapour NE | C33: 91 | D33: 10200.17
B34: 50W High Pressure Sodium NE | C34: 0 | D34: 0
B35: 100W High Pressure Sodium NE | C35: 729 | D35: 86230.21
B36: 150W High Pressure Sodium NE | C36: 7159 | D36: 769262.11
B37: 250W High Pressure Sodium NE | C37: 5363 | D37: 558082.52
B38: 400W High Pressure Sodium NE | C38: 361 | D38: 53385.78
B39: 32W Compact Fluorescent NE | C39: 718 | D39: 24337.49
B40: 42W Compact Fluorescent NE | C40: 3222 | D40: 106446
B41: 2x14W T5 Fluorescent NE | C41: 8015 | D41: 302571.44
B42: 2x24W T5 Fluorescent NE | C42: 1159 | D42: 51756.25
B43: 18W LED NE | C43: 19876 | D43: 287496.38
B44: 70W Metal Halide C NE | C44: 0 | D44: 0
B45: 100W Metal Halide C NE | C45: 0 | D45: 0
B46: 150W Metal Halide C NE | C46: 0 | D46: 0
B52: To enter further tariff categories - please insert new lines above this line.
B53: Total | C53: 151200 | D53: 7008854.1

Sheet 6.2 STPIS Reliability
B1: ANNUAL REPORTING STATEMENT
B2: AusNet (D)
B3: Annual Reporting RIN Response 2017
B4: 6.2 RELIABILITY AND CUSTOMER SERVICE PERFORMANCE
B6: Did the MAIFI parameter of the STPIS apply during the period? NB:This flag is set from the response on worksheet 3.6.8 Network feeders | D6: Yes
B9: 6.2.1 - UNPLANNED MINUTES OFF SUPPLY (SAIDI)
D10: 2017
B11: Total sustained minutes off supply | C11: CBD | D11: 0
C12: Urban | D12: 90.15488276
C13: Short rural | D13: 153.5642686
C14: Long rural | D14: 280.1545547
C16: Whole Network | D16: 148.7324435
B17: Total of excluded events* *see 3.3 of STPIS | C17: CBD | D17: 0
C18: Urban | D18: 8.92801056
C19: Short rural | D19: 29.37276254
C20: Long rural | D20: 68.04846735
C22: Whole Network | D22: 27.45188984
B23: Total sustained minutes off supply after removing excluded events | C23: CBD | D23: 0
C24: Urban | D24: 81.2268722
C25: Short rural | D25: 124.191506
C26: Long rural | D26: 212.1060873
C28: Whole Network | D28: 121.2805536
B31: 6.2.2 - UNPLANNED INTERRUPTIONS TO SUPPLY (SAIFI)
D32: 2017
B33: Total sustained interruptions | C33: CBD | D33: 0
C34: Urban | D34: 1.001581999
C35: Short rural | D35: 1.763329683
C36: Long rural | D36: 2.743451707
C38: Whole Network | D38: 1.613591799
B39: Total of excluded events* *see 3.3 of STPIS | C39: CBD | D39: 0
C40: Urban | D40: 0.03454200291
C41: Short rural | D41: 0.138324802
C42: Long rural | D42: 0.2464720761
C44: Whole Network | D44: 0.1136182586
B45: Total sustained interruptions after removing excluded events | C45: CBD | D45: 0
C46: Urban | D46: 0.9670399956
C47: Short rural | D47: 1.625004881
C48: Long rural | D48: 2.496979631
C50: Whole Network | D50: 1.49997354
B53: 6.2.3 - UNPLANNED MOMENTARY INTERRUPTIONS TO SUPPLY (MAIFI)
D54: 2017
B55: Total momentary interruptions | C55: CBD | D55: 0
C56: Urban | D56: 2.932038703
C57: Short rural | D57: 5.051933345
C58: Long rural | D58: 9.988950276
C60: Whole Network | D60: 5.009943997
B61: Total of excluded events* *see 3.3 of STPIS | C61: CBD | D61: 0
C62: Urban | D62: 0.1059802948
C63: Short rural | D63: 0.1333944534
C64: Long rural | D64: 0.3207997737
C66: Whole Network | D66: 0.1538077259
B67: Total momentary interruptions after removing excluded events | C67: CBD | D67: 0
C68: Urban | D68: 2.826058408
C69: Short rural | D69: 4.918538892
C70: Long rural | D70: 9.668150503
C72: Whole Network | D72: 4.856136271
B75: 6.2.4 - DISTRIBUTION CUSTOMER NUMBERS
D76: 2017
B77: Customer numbers at the start of the period | C77: CBD | D77: 0
C78: Urban | D78: 293720
C79: Short rural | D79: 288985
C80: Long rural | D80: 119221
C82: Whole Network | D82: 701926
B83: Customer numbers at the end of the period | C83: CBD | D83: 0
C84: Urban | D84: 294144
C85: Short rural | D85: 300020
C86: Long rural | D86: 121147
C88: Whole Network | D88: 715311
B89: Average customer numbers | C89: CBD | D89: 0
C90: Urban | D90: 293932
C91: Short rural | D91: 294503
C92: Long rural | D92: 120184
C94: Whole Network | D94: 708619

Sheet 6.6 STPIS Customer Service
B1: ANNUAL REPORTING STATEMENT
B2: AusNet (D)
B3: Annual Reporting RIN Response 2017
B4: 6.6 STPIS CUSTOMER SERVICE
B7: 6.6.1 - TELEPHONE ANSWERING
C8: Number of calls after removing excluded events | D8: Total number of calls
C9: 2017 | D9: 2017
B10: Number of calls received | C10: 85073 | D10: 88282
B11: Number of calls answered within 30 seconds | C11: 72566
B12: Percentage of calls answered within 30 seconds | C12: 0.8529850834

Sheet 6.7 STPIS Daily Performance
B1: ANNUAL REPORTING STATEMENT | I1: 1-Jan-2017
B2: AusNet (D)
B3: Annual Reporting RIN Response 2017
B4: 6.7 STPIS DAILY PERFORMANCE
B7: Did the MAIFI parameter of the STPIS apply during the period? This flag is set from the response on worksheet 3.6.8 Network feeders | G7: Yes
B9: The excluded events to be removed from the data refer only to events listed in clause 3.3(a) of the STPIS, with respect to reliability data, and in clause 5.4 of the STPIS with respect to customer service parameters. *Customer service information must be reported as per the definitions in the STPIS, that is excluding: • calls to payment lines and automated interactive services • calls abandoned by the customer within 30 seconds of the call being queued for response by a human operator (where the time in which a telephone call is abandoned is not measured, then an estimate of the number of calls abandoned within 30 seconds will be determined by taking 20 per cent of all calls abandoned).
B11: 6.7.1 - DAILY PERFORMANCE DATA - UNPLANNED
B12: Date | C12: Customer service* | E12: MAIFI
C13: Number of calls received (after removing excluded events) | D13: Number of calls answered in 30 seconds (after removing excluded events) | E13: CBD | G13: Urban | I13: Short rural | K13: Long rural | M13: Network
E14: All events | F14: After removing excluded events | G14: All events | H14: After removing excluded events | I14: All events | J14: After removing excluded events | K14: All events | L14: After removing excluded events | M14: All events | N14: After removing excluded events
B15: 1-Jan-2017 | C15: 98 | D15: 91 | E15: N/A | F15: N/A | G15: 0.008066491569 | H15: 0.008066491569 | I15: 0.02246500454 | J15: 0.02246500454 | K15: 0.02098449045 | L15: 0.02098449045 | M15: 0.01624146138 | N15: 0.01624146138
B16: 2017-01-02 | C16: 92 | D16: 86 | E16: N/A | F16: N/A | G16: 0.010083965 | H16: 0.010083965 | I16: 0.008410794475 | J16: 0.008410794475 | K16: 0.008212407642 | L16: 0.008212407642 | M16: 0.009071171582 | N16: 0.009071171582
B17: 2017-01-03 | C17: 164 | D17: 160 | E17: N/A | F17: N/A | G17: 0.01825252099 | H17: 0.01825252099 | I17: 0.01958896784 | J17: 0.01958896784 | K17: 0.02378852426 | L17: 0.02378852426 | M17: 0.01974687367 | N17: 0.01974687367
B18: 2017-01-04 | C18: 235 | D18: 199 | E18: N/A | F18: N/A | G18: 0.009172189486 | H18: 0.009172189486 | I18: 0.07363944279 | J18: 0.07363944279 | K18: 0.1335868335 | L18: 0.1335868335 | M18: 0.05706596709 | N18: 0.05706596709
B19: 2017-01-05 | C19: 251 | D19: 212 | E19: N/A | F19: N/A | G19: 0 | H19: 0 | I19: 0.00151781394 | J19: 0.00151781394 | K19: 0.04491446449 | L19: 0.04491446449 | M19: 0.008248443979 | N19: 0.008248443979
B20: 2017-01-06 | C20: 446 | D20: 315 | E20: N/A | F20: N/A | G20: 0.008811561858 | H20: 0.008811561858 | I20: 0.01896758092 | J20: 0.01896758092 | K20: 0.0492245224 | L20: 0.0492245224 | M20: 0.01988658213 | N20: 0.01988658213
B21: 2017-01-07 | C21: 379 | D21: 358 | E21: N/A | F21: N/A | G21: 0.008998679967 | H21: 0.008998679967 | I21: 0.002909992275 | J21: 0.002909992275 | K21: 0.0265176729 | L21: 0.0265176729 | M21: 0.009439493888 | N21: 0.009439493888
B22: 2017-01-08 | C22: 152 | D22: 147 | E22: N/A | F22: N/A | G22: 0.005480859519 | H22: 0.005480859519 | I22: 0.02668907734 | J22: 0.02668907734 | K22: 0.008237369367 | L22: 0.008237369367 | M22: 0.01476252737 | N22: 0.01476252737
B23: 2017-01-09 | C23: 271 | D23: 233 | E23: N/A | F23: N/A | G23: 0.01599349509 | H23: 0.01599349509 | I23: 0.01217646709 | J23: 0.01217646709 | K23: 0.04354156959 | L23: 0.04354156959 | M23: 0.01907937769 | N23: 0.01907937769
B24: 2017-01-10 | C24: 232 | D24: 193 | E24: N/A | F24: N/A | G24: 0.01315270199 | H24: 0.01315270199 | I24: 0.009561888269 | J24: 0.009561888269 | K24: 0.05682952806 | L24: 0.05682952806 | M24: 0.01906808812 | N24: 0.01906808812
B25: 2017-01-11 | C25: 178 | D25: 160 | E25: N/A | F25: N/A | G25: 0.002170570064 | H25: 0.002170570064 | I25: 0.009195168123 | J25: 0.009195168123 | K25: 0 | L25: 0 | M25: 0.004721863739 | N25: 0.004721863739
B26: 2017-01-12 | C26: 203 | D26: 186 | E26: N/A | F26: N/A | G26: 0 | H26: 0 | I26: 0.007670563068 | J26: 0.007670563068 | K26: 0.01780603075 | L26: 0.01780603075 | M26: 0.006207853732 | N26: 0.006207853732
B27: 2017-01-13 | C27: 395 | D27: 307 | E27: N/A | F27: N/A | G27: 0.01546276009 | H27: 0.01546276009 | I27: 0.01464843253 | J27: 0.01464843253 | K27: 0.04711941689 | L27: 0.04711941689 | M27: 0.02049339666 | N27: 0.02049339666
B28: 2017-01-14 | C28: 115 | D28: 104 | E28: N/A | F28: N/A | G28: 0 | H28: 0 | I28: 0.02010848804 | J28: 0.02010848804 | K28: 0.02054349997 | L28: 0.02054349997 | M28: 0.01184135046 | N28: 0.01184135046
B29: 2017-01-15 | C29: 160 | D29: 151 | E29: N/A | F29: N/A | G29: 0.001881387532 | H29: 0.001881387532 | I29: 0.03658373019 | J29: 0.03658373019 | K29: 0.02823171138 | L29: 0.02823171138 | M29: 0.02077281358 | N29: 0.02077281358
B30: 2017-01-16 | C30: 211 | D30: 178 | E30: N/A | F30: N/A | G30: 0 | H30: 0 | I30: 0.01066204871 | J30: 0.01066204871 | K30: 0.007030885975 | L30: 0.007030885975 | M30: 0.00562361835 | N30: 0.00562361835
B31: 2017-01-17 | C31: 385 | D31: 268 | E31: N/A | F31: N/A | G31: 0.006066028877 | H31: 0.006066028877 | I31: 0.006838651624 | J31: 0.006838651624 | K31: 0.01942022233 | L31: 0.01942022233 | M31: 0.0086520462 | N31: 0.0086520462
B32: 2017-01-18 | C32: 294 | D32: 241 | E32: N/A | F32: N/A | G32: 0.005389001538 | H32: 0.005389001538 | I32: 0.002454987649 | J32: 0.002454987649 | K32: 0.01346269054 | L32: 0.01346269054 | M32: 0.005538946556 | N32: 0.005538946556
B33: 2017-01-19 | C33: 197 | D33: 152 | E33: N/A | F33: N/A | G33: 0 | H33: 0 | I33: 0.008400607805 | J33: 0.008400607805 | K33: 0.01621680091 | L33: 0.01621680091 | M33: 0.00624172245 | N33: 0.00624172245
B34: 2017-01-20 | C34: 509 | D34: 420 | E34: N/A | F34: N/A | G34: 0.00315719282 | H34: 0.00315719282 | I34: 0.03967029142 | J34: 0.03967029142 | K34: 0.140784131 | L34: 0.140784131 | M34: 0.04167404605 | N34: 0.04167404605
B35: 2017-01-21 | C35: 144 | D35: 122 | E35: N/A | F35: N/A | G35: 0 | H35: 0 | I35: 0.00251950323 | J35: 0.00251950323 | K35: 0.01129934101 | L35: 0.01129934101 | M35: 0.002963512807 | N35: 0.002963512807
B36: 2017-01-22 | C36: 140 | D36: 131 | E36: N/A | F36: N/A | G36: 0 | H36: 0 | I36: 0.026101646 | J36: 0.026101646 | K36: 0.02155861013 | L36: 0.02155861013 | M36: 0.0145042784 | N36: 0.0145042784
B37: 2017-01-23 | C37: 318 | D37: 272 | E37: N/A | F37: N/A | G37: 0 | H37: 0 | I37: 0.001646845103 | J37: 0.001646845103 | K37: 0.01396192505 | L37: 0.01396192505 | M37: 0.003052418191 | N37: 0.003052418191
B38: 2017-01-24 | C38: 296 | D38: 249 | E38: N/A | F38: N/A | G38: 0.003572254807 | H38: 0.003572254807 | I38: 0.01044133751 | J38: 0.01044133751 | K38: 0.004734407242 | L38: 0.004734407242 | M38: 0.006624156722 | N38: 0.006624156722
B39: 2017-01-25 | C39: 333 | D39: 217 | E39: N/A | F39: N/A | G39: 0.01234639304 | H39: 0.01234639304 | I39: 0.01850238962 | J39: 0.01850238962 | K39: 0.003552885575 | L39: 0.003552885575 | M39: 0.01341342344 | N39: 0.01341342344
B40: 2017-01-26 | C40: 109 | D40: 103 | E40: N/A | F40: N/A | G40: 0.01396581522 | H40: 0.01396581522 | I40: 0.018614443 | J40: 0.018614443 | K40: 0.05035612062 | L40: 0.05035612062 | M40: 0.02206970323 | N40: 0.02206970323
B41: 2017-01-27 | C41: 200 | D41: 155 | E41: N/A | F41: N/A | G41: 0.02556713798 | H41: 0.02556713798 | I41: 0.001524605054 | J41: 0.001524605054 | K41: 0.005058909672 | L41: 0.005058909672 | M41: 0.01209677704 | N41: 0.01209677704
B42: 2017-01-28 | C42: 129 | D42: 113 | E42: N/A | F42: N/A | G42: 0 | H42: 0 | I42: 0.02176551982 | J42: 0.02176551982 | K42: 0.04556346935 | L42: 0.04556346935 | M42: 0.01677348249 | N42: 0.01677348249
B43: 2017-01-29 | C43: 97 | D43: 91 | E43: N/A | F43: N/A | G43: 0.01428221493 | H43: 0.01428221493 | I43: 0.03439359598 | J43: 0.03439359598 | K43: 0.0637023231 | L43: 0.0637023231 | M43: 0.0310223343 | N43: 0.0310223343
B44: 2017-01-30 | C44: 327 | D44: 285 | E44: N/A | F44: N/A | G44: 0.03752908836 | H44: 0.03752908836 | I44: 0.066104702 | J44: 0.066104702 | K44: 0.05667143713 | L44: 0.05667143713 | M44: 0.0526517442 | N44: 0.0526517442
B45: 2017-01-31 | C45: 260 | D45: 179 | E45: N/A | F45: N/A | G45: 0.002068505641 | H45: 0.002068505641 | I45: 0.004794526362 | J45: 0.004794526362 | K45: 0.0371513679 | L45: 0.0371513679 | M45: 0.009151609787 | N45: 0.009151609787
B46: 2017-02-01 | C46: 263 | D46: 185 | E46: N/A | F46: N/A | G46: 0.003762775064 | H46: 0.003762775064 | I46: 0.05514044872 | J46: 0.05514044872 | K46: 0.00845370432 | L46: 0.00845370432 | M46: 0.02591098031 | N46: 0.02591098031
B47: 2017-02-02 | C47: 275 | D47: 209 | E47: N/A | F47: N/A | G47: 0 | H47: 0 | I47: 0.006509282604 | J47: 0.006509282604 | K47: 0.0352459562 | L47: 0.0352459562 | M47: 0.008683092524 | N47: 0.008683092524
B48: 2017-02-03 | C48: 204 | D48: 152 | E48: N/A | F48: N/A | G48: 0.01825932529 | H48: 0.01825932529 | I48: 0.004689264098 | J48: 0.004689264098 | K48: 0.02596019437 | L48: 0.02596019437 | M48: 0.0139256878 | N48: 0.0139256878
B49: 2017-02-04 | C49: 182 | D49: 158 | E49: N/A | F49: N/A | G49: 0.01186669025 | H49: 0.01186669025 | I49: 0.01132078675 | J49: 0.01132078675 | K49: 0.05633029355 | L49: 0.05633029355 | M49: 0.01918098384 | N49: 0.01918098384
B50: 2017-02-05 | C50: 186 | D50: 158 | E50: N/A | F50: N/A | G50: 0 | H50: 0 | I50: 0.01354148097 | J50: 0.01354148097 | K50: 0.05385076216 | L50: 0.05385076216 | M50: 0.01476111617 | N50: 0.01476111617
B51: 2017-02-06 | C51: 294 | D51: 253 | E51: N/A | F51: N/A | G51: 0.005800661377 | H51: 0.005800661377 | I51: 0.01796589163 | J51: 0.01796589163 | K51: 0.07422785063 | L51: 0.07422785063 | M51: 0.02246201588 | N51: 0.02246201588
B52: 2017-02-07 | C52: 253 | D52: 214 | E52: N/A | F52: N/A | G52: 0 | H52: 0 | I52: 0.01989796351 | J52: 0.01989796351 | K52: 0.06470079212 | L52: 0.06470079212 | M52: 0.01924307649 | N52: 0.01924307649
B53: 2017-02-08 | C53: 316 | D53: 234 | E53: N/A | F53: N/A | G53: 0.0186403658 | H53: 0.0186403658 | I53: 0.01822734951 | J53: 0.01822734951 | K53: 0.02281501697 | L53: 0.02281501697 | M53: 0.01917675025 | N53: 0.01917675025
B54: 2017-02-09 | C54: 502 | D54: 341 | E54: N/A | F54: N/A | G54: 0.02425731121 | H54: 0.02425731121 | I54: 0.02056688823 | J54: 0.02056688823 | K54: 0.06516674433 | L54: 0.06516674433 | M54: 0.0296619408 | N54: 0.0296619408
B55: 2017-02-10 | C55: 330 | D55: 284 | E55: N/A | F55: N/A | G55: 0 | H55: 0 | I55: 0.0247536099 | J55: 0.0247536099 | K55: 0.02556080676 | L55: 0.02556080676 | M55: 0.01462281891 | N55: 0.01462281891
B56: 2017-02-11 | C56: 252 | D56: 172 | E56: N/A | F56: N/A | G56: 0.01245526176 | H56: 0.01245526176 | I56: 0.001813227392 | J56: 0.001813227392 | K56: 0.007821340611 | L56: 0.007821340611 | M56: 0.007246494411 | N56: 0.007246494411
B57: 2017-02-12 | C57: 125 | D57: 122 | E57: N/A | F57: N/A | G57: 0 | H57: 0 | I57: 0.00851605674 | J57: 0.00851605674 | K57: 0.08011049724 | L57: 0.08011049724 | M57: 0.01712628163 | N57: 0.01712628163
B58: 2017-02-13 | C58: 268 | D58: 189 | E58: N/A | F58: N/A | G58: 0.02466556891 | H58: 0.02466556891 | I58: 0.008145941036 | J58: 0.008145941036 | K58: 0.004110364108 | L58: 0.004110364108 | M58: 0.01431376686 | N58: 0.01431376686
B59: 2017-02-14 | C59: 199 | D59: 172 | E59: N/A | F59: N/A | G59: 0.0250023815 | H59: 0.0250023815 | I59: 0.01591837081 | J59: 0.01591837081 | K59: 0.03061971643 | L59: 0.03061971643 | M59: 0.02217977657 | N59: 0.02217977657
B60: 2017-02-15 | C60: 261 | D60: 228 | E60: N/A | F60: N/A | G60: 0.0292482615 | H60: 0.0292482615 | I60: 0.0231543026 | J60: 0.0231543026 | K60: 0.04087898556 | L60: 0.04087898556 | M60: 0.02868821517 | N60: 0.02868821517
B61: 2017-02-16 | C61: 256 | D61: 221 | E61: N/A | F61: N/A | G61: 0.01973585727 | H61: 0.01973585727 | I61: 0.009602634952 | J61: 0.009602634952 | K61: 0.006498369167 | L61: 0.006498369167 | M61: 0.01327935977 | N61: 0.01327935977
B62: 2017-02-17 | C62: 196 | D62: 175 | E62: N/A | F62: N/A | G62: 0.01626566689 | H62: 0.01626566689 | I62: 0.007840340914 | J62: 0.007840340914 | K62: 0.03375657325 | L62: 0.03375657325 | M62: 0.01573060822 | N62: 0.01573060822
B63: 2017-02-18 | C63: 140 | D63: 119 | E63: N/A | F63: N/A | G63: 0 | H63: 0 | I63: 0 | J63: 0 | K63: 0.01293849431 | L63: 0.01293849431 | M63: 0.002194410674 | N63: 0.002194410674
B64: 2017-02-19 | C64: 176 | D64: 142 | E64: N/A | F64: N/A | G64: 0.02720697304 | H64: 0.02720697304 | I64: 0.02446498756 | J64: 0.02446498756 | K64: 0.07684051122 | L64: 0.07684051122 | M64: 0.0344854107 | N64: 0.0344854107
B65: 2017-02-20 | C65: 215 | D65: 175 | E65: N/A | F65: N/A | G65: 0 | H65: 0 | I65: 0.0003191823499 | J65: 0.0003191823499 | K65: 0.0596918059 | L65: 0.0596918059 | M65: 0.01025657671 | N65: 0.01025657671
B66: 2017-02-21 | C66: 222 | D66: 192 | E66: N/A | F66: N/A | G66: 0 | H66: 0 | I66: 0.01674009558 | J66: 0.01674009558 | K66: 0.02424615589 | L66: 0.02424615589 | M66: 0.01106942593 | N66: 0.01106942593
B67: 2017-02-22 | C67: 336 | D67: 275 | E67: N/A | F67: N/A | G67: 0 | H67: 0 | I67: 0.02261101349 | J67: 0.02261101349 | K67: 0.08197430606 | L67: 0.08197430606 | M67: 0.02330026665 | N67: 0.02330026665
B68: 2017-02-23 | C68: 290 | D68: 237 | E68: N/A | F68: N/A | G68: 0 | H68: 0 | I68: 0.008261389971 | J68: 0.008261389971 | K68: 0.03805831059 | L68: 0.03805831059 | M68: 0.009888254399 | N68: 0.009888254399
B69: 2017-02-24 | C69: 222 | D69: 186 | E69: N/A | F69: N/A | G69: 0 | H69: 0 | I69: 0.01295065407 | J69: 0.01295065407 | K69: 0.002221593557 | L69: 0.002221593557 | M69: 0.005759093222 | N69: 0.005759093222
B70: 2017-02-25 | C70: 94 | D70: 88 | E70: N/A | F70: N/A | G70: 0 | H70: 0 | I70: 0.0293953362 | J70: 0.0293953362 | K70: 0.0390567796 | L70: 0.0390567796 | M70: 0.01884088547 | N70: 0.01884088547
B71: 2017-02-26 | C71: 101 | D71: 92 | E71: N/A | F71: N/A | G71: 0.01390117442 | H71: 0.01390117442 | I71: 0.01422059235 | J71: 0.01422059235 | K71: 0.01235605405 | L71: 0.01235605405 | M71: 0.01377186737 | N71: 0.01377186737
B72: 2017-02-27 | C72: 217 | D72: 184 | E72: N/A | F72: N/A | G72: 0.009359307595 | H72: 0.009359307595 | I72: 0.01338528535 | J72: 0.01338528535 | K72: 0.02266524662 | L72: 0.02266524662 | M72: 0.01328923814 | N72: 0.01328923814
B73: 2017-02-28 | C73: 416 | D73: 322 | E73: N/A | F73: N/A | G73: 0.01465645115 | H73: 0.01465645115 | I73: 0.01275031621 | J73: 0.01275031621 | K73: 0.0385908274 | L73: 0.0385908274 | M73: 0.0179236077 | N73: 0.0179236077
B74: 2017-03-01 | C74: 401 | D74: 302 | E74: N/A | F74: N/A | G74: 0 | H74: 0 | I74: 0.01205083149 | J74: 0.01205083149 | K74: 0.01299673833 | L74: 0.01299673833 | M74: 0.007212625694 | N74: 0.007212625694
B75: 2017-03-02 | C75: 296 | D75: 232 | E75: N/A | F75: N/A | G75: 0.01992637753 | H75: 0.01992637753 | I75: 0.01238699162 | J75: 0.01238699162 | K75: 0.02919689809 | L75: 0.02919689809 | M75: 0.01836531222 | N75: 0.01836531222
B76: 2017-03-03 | C76: 361 | D76: 276 | E76: N/A | F76: N/A | G76: 0.01406787965 | H76: 0.01406787965 | I76: 0.001660427331 | J76: 0.001660427331 | K76: 0.04901650802 | L76: 0.04901650802 | M76: 0.01483873198 | N76: 0.01483873198
B77: 2017-03-04 | C77: 105 | D77: 99 | E77: N/A | F77: N/A | G77: 0.006287168461 | H77: 0.006287168461 | I77: 0.0004074668297 | J77: 0.0004074668297 | K77: 0.04309225854 | L77: 0.04309225854 | M77: 0.01008582192 | N77: 0.01008582192
B78: 2017-03-05 | C78: 107 | D78: 104 | E78: N/A | F78: N/A | G78: 0.0003708340705 | H78: 0.0003708340705 | I78: 0.005860731233 | J78: 0.005860731233 | K78: 0.01651634161 | L78: 0.01651634161 | M78: 0.005390770916 | N78: 0.005390770916
B79: 2017-03-06 | C79: 323 | D79: 281 | E79: N/A | F79: N/A | G79: 0.02363471823 | H79: 0.02363471823 | I79: 0.0100168929 | J79: 0.0100168929 | K79: 0.04125341144 | L79: 0.04125341144 | M79: 0.02096332512 | N79: 0.02096332512
B80: 2017-03-07 | C80: 221 | D80: 182 | E80: N/A | F80: N/A | G80: 0.01573493189 | H80: 0.01573493189 | I80: 0.02500148556 | J80: 0.02500148556 | K80: 0.0004825933569 | L80: 0.0004825933569 | M80: 0.01699927394 | N80: 0.01699927394
B81: 2017-03-08 | C81: 199 | D81: 158 | E81: N/A | F81: N/A | G81: 0.01599689724 | H81: 0.01599689724 | I81: 0.01781309157 | J81: 0.01781309157 | K81: 0.01724023164 | L81: 0.01724023164 | M81: 0.01696258283 | N81: 0.01696258283
B82: 2017-03-09 | C82: 275 | D82: 209 | E82: N/A | F82: N/A | G82: 0 | H82: 0 | I82: 0.001993191908 | J82: 0.001993191908 | K82: 0.07212274512 | L82: 0.07212274512 | M82: 0.0130606243 | N82: 0.0130606243
B83: 2017-03-10 | C83: 215 | D83: 178 | E83: N/A | F83: N/A | G83: 0 | H83: 0 | I83: 0.00434631285 | J83: 0.00434631285 | K83: 0.02011915064 | L83: 0.02011915064 | M83: 0.005218604933 | N83: 0.005218604933
B84: 2017-03-11 | C84: 195 | D84: 163 | E84: N/A | F84: N/A | G84: 0.002568621314 | H84: 0.002568621314 | I84: 0.02755494436 | J84: 0.02755494436 | K84: 0.03745922918 | L84: 0.03745922918 | M84: 0.0188705206 | N84: 0.0188705206
B85: 2017-03-12 | C85: 227 | D85: 220 | E85: N/A | F85: N/A | G85: 0 | H85: 0 | I85: 0.02633254387 | J85: 0.02633254387 | K85: 0.04692804367 | L85: 0.04692804367 | M85: 0.01890297812 | N85: 0.01890297812
B86: 2017-03-13 | C86: 168 | D86: 162 | E86: N/A | F86: N/A | G86: 0.009760760992 | H86: 0.009760760992 | I86: 0.0150287349 | J86: 0.0150287349 | K86: 0.0547077814 | L86: 0.0547077814 | M86: 0.01957329649 | N86: 0.01957329649
B87: 2017-03-14 | C87: 296 | D87: 276 | E87: N/A | F87: N/A | G87: 0 | H87: 0 | I87: 0.03884856665 | J87: 0.03884856665 | K87: 0.01991113626 | L87: 0.01991113626 | M87: 0.01952249342 | N87: 0.01952249342
B88: 2017-03-15 | C88: 315 | D88: 285 | E88: N/A | F88: N/A | G88: 0.03793734605 | H88: 0.03793734605 | I88: 0.01566370404 | J88: 0.01566370404 | K88: 0.001822205951 | L88: 0.001822205951 | M88: 0.02255515485 | N88: 0.02255515485
B89: 2017-03-16 | C89: 241 | D89: 224 | E89: N/A | F89: N/A | G89: 0.006290570608 | H89: 0.006290570608 | I89: 0.002634952165 | J89: 0.002634952165 | K89: 0.02435432337 | L89: 0.02435432337 | M89: 0.007834963383 | N89: 0.007834963383
B90: 2017-03-17 | C90: 207 | D90: 172 | E90: N/A | F90: N/A | G90: 0.01392158731 | H90: 0.01392158731 | I90: 0.0003327645776 | J90: 0.0003327645776 | K90: 0.006772948146 | L90: 0.006772948146 | M90: 0.00706162766 | N90: 0.00706162766
B91: 2017-03-18 | C91: 150 | D91: 130 | E91: N/A | F91: N/A | G91: 0 | H91: 0 | I91: 0.01436320575 | J91: 0.01436320575 | K91: 0.04211043067 | L91: 0.04211043067 | M91: 0.01311142738 | N91: 0.01311142738
B92: 2017-03-19 | C92: 123 | D92: 116 | E92: N/A | F92: N/A | G92: 0.001054665705 | H92: 0.001054665705 | I92: 0.02223071111 | J92: 0.02223071111 | K92: 0.04639552686 | L92: 0.04639552686 | M92: 0.01754540701 | N92: 0.01754540701
B93: 2017-03-20 | C93: 321 | D93: 268 | E93: N/A | F93: N/A | G93: 0.01283970442 | H93: 0.01283970442 | I93: 0.01214590708 | J93: 0.01214590708 | K93: 0.07661585569 | L93: 0.07661585569 | M93: 0.02336800408 | N93: 0.02336800408
B94: 2017-03-21 | C94: 428 | D94: 304 | E94: N/A | F94: N/A | G94: 0.01616360247 | H94: 0.01616360247 | I94: 0.01838014957 | J94: 0.01838014957 | K94: 0.05980829395 | L94: 0.05980829395 | M94: 0.02448708296 | N94: 0.02448708296
B95: 2017-03-22 | C95: 295 | D95: 252 | E95: N/A | F95: N/A | G95: 0 | H95: 0 | I95: 0.01299479631 | J95: 0.01299479631 | K95: 0.03699327698 | L95: 0.03699327698 | M95: 0.01167482926 | N95: 0.01167482926
B96: 2017-03-23 | C96: 240 | D96: 222 | E96: N/A | F96: N/A | G96: 0.02352925166 | H96: 0.02352925166 | I96: 0.02150406193 | J96: 0.02150406193 | K96: 0.03771716701 | L96: 0.03771716701 | M96: 0.02509389749 | N96: 0.02509389749
B97: 2017-03-24 | C97: 233 | D97: 186 | E97: N/A | F97: N/A | G97: 0.01256072833 | H97: 0.01256072833 | I97: 0.01698118013 | J97: 0.01698118013 | K97: 0.02892231911 | L97: 0.02892231911 | M97: 0.01717285112 | N97: 0.01717285112
B98: 2017-03-25 | C98: 157 | D98: 140 | E98: N/A | F98: N/A | G98: 0.02418586612 | H98: 0.02418586612 | I98: 0.006685851563 | J98: 0.006685851563 | K98: 0.02821507023 | L98: 0.02821507023 | M98: 0.01759621009 | N98: 0.01759621009
B99: 2017-03-26 | C99: 220 | D99: 192 | E99: N/A | F99: N/A | G99: 0.01397261952 | H99: 0.01397261952 | I99: 0.02533425013 | J99: 0.02533425013 | K99: 0.01074186248 | L99: 0.01074186248 | M99: 0.01814657675 | N99: 0.01814657675
B100: 2017-03-27 | C100: 1425 | D100: 858 | E100: N/A | F100: N/A | G100: 0.06340241961 | H100: 0.06340241961 | I100: 0.09318766394 | J100: 0.09318766394 | K100: 0.1001963656 | L100: 0.1001963656 | M100: 0.08202156732 | N100: 0.08202156732
B101: 2017-03-28 | C101: 381 | D101: 281 | E101: N/A | F101: N/A | G101: 0 | H101: 0 | I101: 0.000196942301 | J101: 0.000196942301 | K101: 0.005000665646 | L101: 0.005000665646 | M101: 0.0009299785428 | N101: 0.0009299785428
B102: 2017-03-29 | C102: 301 | D102: 248 | E102: N/A | F102: N/A | G102: 0.0001701073718 | H102: 0.0001701073718 | I102: 0.02170100424 | J102: 0.02170100424 | K102: 0.02462890235 | L102: 0.02462890235 | M102: 0.013266659 | N102: 0.013266659
B103: 2017-03-30 | C103: 313 | D103: 284 | E103: N/A | F103: N/A | G103: 0.01659567519 | H103: 0.01659567519 | I103: 0.02253291568 | J103: 0.02253291568 | K103: 0.01146575251 | L103: 0.01146575251 | M103: 0.01819314624 | N103: 0.01819314624
B104: 2017-03-31 | C104: 229 | D104: 203 | E104: N/A | F104: N/A | G104: 0 | H104: 0 | I104: 6.791113828e-05 | J104: 6.791113828e-05 | K104: 0.02338913666 | L104: 0.02338913666 | M104: 0.003995097503 | N104: 0.003995097503
B105: 2017-04-01 | C105: 126 | D105: 115 | E105: N/A | F105: N/A | G105: 0.01443190942 | H105: 0.01443190942 | I105: 0.03306593323 | J105: 0.03306593323 | K105: 0.008803168475 | L105: 0.008803168475 | M105: 0.02122157409 | N105: 0.02122157409
B106: 2017-04-02 | C106: 112 | D106: 104 | E106: N/A | F106: N/A | G106: 0.00262645782 | H106: 0.00262645782 | I106: 0.004336126179 | J106: 0.004336126179 | K106: 0.001306330294 | L106: 0.001306330294 | M106: 0.003113099644 | N106: 0.003113099644
B107: 2017-04-03 | C107: 221 | D107: 192 | E107: N/A | F107: N/A | G107: 0.01128832519 | H107: 0.01128832519 | I107: 0.00797616319 | J107: 0.00797616319 | K107: 0.0279238501 | L107: 0.0279238501 | M107: 0.01273322669 | N107: 0.01273322669
B108: 2017-04-04 | C108: 239 | D108: 219 | E108: N/A | F108: N/A | G108: 0.03027911218 | H108: 0.03027911218 | I108: 0.01806775834 | J108: 0.01806775834 | K108: 0.01102476203 | L108: 0.01102476203 | M108: 0.02193846195 | N108: 0.02193846195
B109: 2017-04-05 | C109: 406 | D109: 287 | E109: N/A | F109: N/A | G109: 0 | H109: 0 | I109: 0.02182324428 | J109: 0.02182324428 | K109: 0.01078346535 | L109: 0.01078346535 | M109: 0.01089867115 | N109: 0.01089867115
B110: 2017-04-06 | C110: 259 | D110: 245 | E110: N/A | F110: N/A | G110: 0.01113522856 | H110: 0.01113522856 | I110: 0.02344292493 | J110: 0.02344292493 | K110: 0.05842707848 | L110: 0.05842707848 | M110: 0.02427116989 | N110: 0.02427116989
B111: 2017-04-07 | C111: 268 | D111: 253 | E111: N/A | F111: N/A | G111: 0.0237401848 | H111: 0.0237401848 | I111: 0.01397611226 | J111: 0.01397611226 | K111: 0.007521799907 | L111: 0.007521799907 | M111: 0.0169315365 | N111: 0.0169315365
B112: 2017-04-08 | C112: 313 | D112: 274 | E112: N/A | F112: N/A | G112: 0 | H112: 0 | I112: 0.04516090695 | J112: 0.04516090695 | K112: 0.05013146509 | L112: 0.05013146509 | M112: 0.02727137381 | N112: 0.02727137381
B113: 2017-04-09 | C113: 325 | D113: 252 | E113: N/A | F113: N/A | G113: 0.03060912048 | H113: 0.03060912048 | I113: 0.05574825341 | J113: 0.05574825341 | K113: 0.174016508 | L113: 0.174016508 | M113: 0.06537932611 | N113: 0.06537932611
B114: 2017-04-10 | C114: 519 | D114: 400 | E114: N/A | F114: N/A | G114: 0.006675013268 | H114: 0.006675013268 | I114: 0.02950399402 | J114: 0.02950399402 | K114: 0.07571723358 | L114: 0.07571723358 | M114: 0.02787254355 | N114: 0.02787254355
B115: 2017-04-11 | C115: 325 | D115: 264 | E115: N/A | F115: N/A | G115: 0 | H115: 0 | I115: 0.01464843253 | J115: 0.01464843253 | K115: 0.0120398722 | L115: 0.0120398722 | M115: 0.008129903467 | N115: 0.008129903467
B116: 2017-04-12 | C116: 409 | D116: 290 | E116: N/A | F116: N/A | G116: 0 | H116: 0 | I116: 0.003986383817 | J116: 0.003986383817 | K116: 0.01315482926 | L116: 0.01315482926 | M116: 0.003887846563 | N116: 0.003887846563
B117: 2017-04-13 | C117: 285 | D117: 197 | E117: N/A | F117: N/A | G117: 0.01040376686 | H117: 0.01040376686 | I117: 0.00609502466 | J117: 0.00609502466 | K117: 0.05343473341 | L117: 0.05343473341 | M117: 0.01591124138 | N117: 0.01591124138
B118: 2017-04-14 | C118: 125 | D118: 119 | E118: N/A | F118: N/A | G118: 0 | H118: 0 | I118: 0.00123258716 | J118: 0.00123258716 | K118: 0.0299956733 | L118: 0.0299956733 | M118: 0.005599628009 | N118: 0.005599628009
B119: 2017-04-15 | C119: 83 | D119: 73 | E119: N/A | F119: N/A | G119: 0 | H119: 0 | I119: 0.005249530989 | J119: 0.005249530989 | K119: 0.01531817879 | L119: 0.01531817879 | M119: 0.004779722799 | N119: 0.004779722799
B120: 2017-04-16 | C120: 224 | D120: 130 | E120: N/A | F120: N/A | G120: 0 | H120: 0 | I120: 0.0167231178 | J120: 0.0167231178 | K120: 0.02647607003 | L120: 0.02647607003 | M120: 0.01144057063 | N120: 0.01144057063
B121: 2017-04-17 | C121: 113 | D121: 109 | E121: N/A | F121: N/A | G121: 0.04020657839 | H121: 0.04020657839 | I121: 0.01779271823 | J121: 0.01779271823 | K121: 0.01011781934 | L121: 0.01011781934 | M121: 0.02578820621 | N121: 0.02578820621
B122: 2017-04-18 | C122: 258 | D122: 208 | E122: N/A | F122: N/A | G122: 0.01130533593 | H122: 0.01130533593 | I122: 0.03137155033 | J122: 0.03137155033 | K122: 0.00495906277 | L122: 0.00495906277 | M122: 0.01856852453 | N122: 0.01856852453
B123: 2017-04-19 | C123: 284 | D123: 230 | E123: N/A | F123: N/A | G123: 0.008818366153 | H123: 0.008818366153 | I123: 0.03817285082 | J123: 0.03817285082 | K123: 0.03428909006 | L123: 0.03428909006 | M123: 0.0253380345 | N123: 0.0253380345
B124: 2017-04-20 | C124: 213 | D124: 184 | E124: N/A | F124: N/A | G124: 0 | H124: 0 | I124: 0.02006774136 | J124: 0.02006774136 | K124: 0.00635691939 | L124: 0.00635691939 | M124: 0.00941832594 | N124: 0.00941832594
B125: 2017-04-21 | C125: 245 | D125: 188 | E125: N/A | F125: N/A | G125: 0.009022494999 | H125: 0.009022494999 | I125: 0.04477381347 | J125: 0.04477381347 | K125: 0.01917892565 | L125: 0.01917892565 | M125: 0.02560333946 | N125: 0.02560333946
B126: 2017-04-22 | C126: 126 | D126: 114 | E126: N/A | F126: N/A | G126: 0 | H126: 0 | I126: 0.01214251152 | J126: 0.01214251152 | K126: 0.04971543633 | L126: 0.04971543633 | M126: 0.01347833849 | N126: 0.01347833849
B127: 2017-04-23 | C127: 86 | D127: 82 | E127: N/A | F127: N/A | G127: 0 | H127: 0 | I127: 0 | J127: 0 | K127: 0.007613326233 | L127: 0.007613326233 | M127: 0.001291244866 | N127: 0.001291244866
B128: 2017-04-24 | C128: 232 | D128: 214 | E128: N/A | F128: N/A | G128: 0.01050583128 | H128: 0.01050583128 | I128: 0.01134455565 | J128: 0.01134455565 | K128: 0.002313119883 | L128: 0.002313119883 | M128: 0.009464895427 | N128: 0.009464895427
B129: 2017-04-25 | C129: 160 | D129: 159 | E129: N/A | F129: N/A | G129: 0.006086441762 | H129: 0.006086441762 | I129: 0.004359895077 | J129: 0.004359895077 | K129: 0.003727617653 | L129: 0.003727617653 | M129: 0.00496882314 | N129: 0.00496882314
B130: 2017-04-26 | C130: 403 | D130: 233 | E130: N/A | F130: N/A | G130: 0.008461140672 | H130: 0.008461140672 | I130: 0.02030543034 | J130: 0.02030543034 | K130: 0.01082506823 | L130: 0.01082506823 | M130: 0.01378456814 | N130: 0.01378456814
B131: 2017-04-27 | C131: 312 | D131: 189 | E131: N/A | F131: N/A | G131: 0 | H131: 0 | I131: 0.05936791708 | J131: 0.05936791708 | K131: 0.008944618252 | L131: 0.008944618252 | M131: 0.02619039723 | N131: 0.02619039723
B132: 2017-04-28 | C132: 237 | D132: 191 | E132: N/A | F132: N/A | G132: 0 | H132: 0 | I132: 0.009779203912 | J132: 0.009779203912 | K132: 0 | L132: 0 | M132: 0.004064246135 | N132: 0.004064246135
B133: 2017-04-29 | C133: 134 | D133: 105 | E133: N/A | F133: N/A | G133: 0.005868704326 | H133: 0.005868704326 | I133: 0.01304572966 | J133: 0.01304572966 | K133: 0.005691273381 | L133: 0.005691273381 | M133: 0.008821389789 | N133: 0.008821389789
B134: 2017-04-30 | C134: 127 | D134: 98 | E134: N/A | F134: N/A | G134: 0.01117265218 | H134: 0.01117265218 | I134: 0.002638347722 | J134: 0.002638347722 | K134: 0.04122012914 | L134: 0.04122012914 | M134: 0.01272193712 | N134: 0.01272193712
B135: 2017-05-01 | C135: 317 | D135: 239 | E135: N/A | F135: N/A | G135: 0.0147312984 | H135: 0.0147312984 | I135: 0.02634612609 | J135: 0.02634612609 | K135: 0.00388570858 | L135: 0.00388570858 | M135: 0.01771898419 | N135: 0.01771898419
B136: 2017-05-02 | C136: 316 | D136: 250 | E136: N/A | F136: N/A | G136: 0 | H136: 0 | I136: 0.01677405115 | J136: 0.01677405115 | K136: 0.04353324902 | L136: 0.04353324902 | M136: 0.01435469156 | N136: 0.01435469156
B137: 2017-05-03 | C137: 285 | D137: 224 | E137: N/A | F137: N/A | G137: 0 | H137: 0 | I137: 0.005201993192 | J137: 0.005201993192 | K137: 0.01436963323 | L137: 0.01436963323 | M137: 0.004599089637 | N137: 0.004599089637
B138: 2017-05-04 | C138: 240 | D138: 189 | E138: N/A | F138: N/A | G138: 0.01193133106 | H138: 0.01193133106 | I138: 0.001219004932 | J138: 0.001219004932 | K138: 0.01065033615 | L138: 0.01065033615 | M138: 0.007262017574 | N138: 0.007262017574
B139: 2017-05-05 | C139: 222 | D139: 203 | E139: N/A | F139: N/A | G139: 0.03173182913 | H139: 0.03173182913 | I139: 0.007752056434 | J139: 0.007752056434 | K139: 0.04852559409 | L139: 0.04852559409 | M139: 0.02461409066 | N139: 0.02461409066
B140: 2017-05-06 | C140: 144 | D140: 124 | E140: N/A | F140: N/A | G140: 0 | H140: 0 | I140: 0.0008692625699 | J140: 0.0008692625699 | K140: 0.01531817879 | L140: 0.01531817879 | M140: 0.002959279217 | N140: 0.002959279217
B141: 2017-05-07 | C141: 134 | D141: 126 | E141: N/A | F141: N/A | G141: 0.01231917586 | H141: 0.01231917586 | I141: 0.001235982717 | J141: 0.001235982717 | K141: 0.02159189243 | L141: 0.02159189243 | M141: 0.009285673462 | N141: 0.009285673462
B142: 2017-05-08 | C142: 221 | D142: 192 | E142: N/A | F142: N/A | G142: 0 | H142: 0 | I142: 0 | J142: 0 | K142: 0 | L142: 0 | M142: 0 | N142: 0
B143: 2017-05-09 | C143: 187 | D143: 167 | E143: N/A | F143: N/A | G143: 0.007056053781 | H143: 0.007056053781 | I143: 0.0001935467441 | J143: 0.0001935467441 | K143: 0.004759368968 | L143: 0.004759368968 | M143: 0.003814464342 | N143: 0.003814464342
B144: 2017-05-10 | C144: 228 | D144: 200 | E144: N/A | F144: N/A | G144: 0 | H144: 0 | I144: 0 | J144: 0 | K144: 0.01866304999 | L144: 0.01866304999 | M144: 0.003165313917 | N144: 0.003165313917
B145: 2017-05-11 | C145: 248 | D145: 206 | E145: N/A | F145: N/A | G145: 0.008229794646 | H145: 0.008229794646 | I145: 0.0001120533782 | J145: 0.0001120533782 | K145: 0.01669107369 | L145: 0.01669107369 | M145: 0.00629111433 | N145: 0.00629111433
B146: 2017-05-12 | C146: 173 | D146: 165 | E146: N/A | F146: N/A | G146: 0.01849067131 | H146: 0.01849067131 | I146: 0.004054294955 | J146: 0.004054294955 | K146: 0.006032416961 | L146: 0.006032416961 | M146: 0.01037793961 | N146: 0.01037793961
B147: 2017-05-13 | C147: 104 | D147: 92 | E147: N/A | F147: N/A | G147: 0 | H147: 0 | I147: 0 | J147: 0 | K147: 0.01192338414 | L147: 0.01192338414 | M147: 0.002022244692 | N147: 0.002022244692
B148: 2017-05-14 | C148: 55 | D148: 51 | E148: N/A | F148: N/A | G148: 0 | H148: 0 | I148: 0.01658389997 | J148: 0.01658389997 | K148: 0.03290787459 | L148: 0.03290787459 | M148: 0.01247356652 | N148: 0.01247356652
B149: 2017-05-15 | C149: 184 | D149: 175 | E149: N/A | F149: N/A | G149: 0.00817195814 | H149: 0.00817195814 | I149: 0.007266491795 | J149: 0.007266491795 | K149: 0.009177594355 | L149: 0.009177594355 | M149: 0.007966204664 | N149: 0.007966204664
B150: 2017-05-16 | C150: 240 | D150: 175 | E150: N/A | F150: N/A | G150: 0.02264469333 | H150: 0.02264469333 | I150: 0.005758864526 | J150: 0.005758864526 | K150: 0.004326699061 | L150: 0.004326699061 | M150: 0.01252013601 | N150: 0.01252013601
B151: 2017-05-17 | C151: 268 | D151: 209 | E151: N/A | F151: N/A | G151: 0 | H151: 0 | I151: 0.0005738491184 | J151: 0.0005738491184 | K151: 0.01610863343 | L151: 0.01610863343 | M151: 0.00297056879 | N151: 0.00297056879
B152: 2017-05-18 | C152: 211 | D152: 185 | E152: N/A | F152: N/A | G152: 0 | H152: 0 | I152: 0.00700842947 | J152: 0.00700842947 | K152: 0.003037009918 | L152: 0.003037009918 | M152: 0.00342779648 | N152: 0.00342779648
B153: 2017-05-19 | C153: 198 | D153: 160 | E153: N/A | F153: N/A | G153: 0 | H153: 0 | I153: 0.0005976180168 | J153: 0.0005976180168 | K153: 0.04027990415 | L153: 0.04027990415 | M153: 0.007079973215 | N153: 0.007079973215
B154: 2017-05-20 | C154: 100 | D154: 88 | E154: N/A | F154: N/A | G154: 0 | H154: 0 | I154: 0.004567024049 | J154: 0.004567024049 | K154: 0.02397989749 | L154: 0.02397989749 | M154: 0.005965127921 | N154: 0.005965127921
B155: 2017-05-21 | C155: 70 | D155: 66 | E155: N/A | F155: N/A | G155: 0 | H155: 0 | I155: 0 | J155: 0 | K155: 0.007688211409 | L155: 0.007688211409 | M155: 0.001303945635 | N155: 0.001303945635
B156: 2017-05-22 | C156: 211 | D156: 206 | E156: N/A | F156: N/A | G156: 0 | H156: 0 | I156: 0.004020339386 | J156: 0.004020339386 | K156: 0.0007322106104 | L156: 0.0007322106104 | M156: 0.001795042043 | N156: 0.001795042043
B157: 2017-05-23 | C157: 219 | D157: 207 | E157: N/A | F157: N/A | G157: 0 | H157: 0 | I157: 0.01421380124 | J157: 0.01421380124 | K157: 0.004002196632 | L157: 0.004002196632 | M157: 0.006586054414 | N157: 0.006586054414
B158: 2017-05-24 | C158: 367 | D158: 304 | E158: N/A | F158: N/A | G158: 0 | H158: 0 | I158: 0.02584018811 | J158: 0.02584018811 | K158: 0.02879751048 | L158: 0.02879751048 | M158: 0.01562335728 | N158: 0.01562335728
B159: 2017-05-25 | C159: 262 | D159: 224 | E159: N/A | F159: N/A | G159: 0 | H159: 0 | I159: 0.00659077597 | J159: 0.00659077597 | K159: 0.0158839779 | L159: 0.0158839779 | M159: 0.005433106813 | N159: 0.005433106813
B160: 2017-05-26 | C160: 174 | D160: 165 | E160: N/A | F160: N/A | G160: 0 | H160: 0 | I160: 0.004424410659 | J160: 0.004424410659 | K160: 0.001264727418 | L160: 0.001264727418 | M160: 0.002053291016 | N160: 0.002053291016
B161: 2017-05-27 | C161: 162 | D161: 108 | E161: N/A | F161: N/A | G161: 0.01475171128 | H161: 0.01475171128 | I161: 0.05409122164 | J161: 0.05409122164 | K161: 0.01245590095 | L161: 0.01245590095 | M161: 0.03071187106 | N161: 0.03071187106
B162: 2017-05-28 | C162: 455 | D162: 351 | E162: N/A | F162: N/A | G162: 0.01555121593 | H162: 0.01555121593 | I162: 0.03609137444 | J162: 0.03609137444 | K162: 0.04510583772 | L162: 0.04510583772 | M162: 0.02910028457 | N162: 0.02910028457
B163: 2017-05-29 | C163: 240 | D163: 214 | E163: N/A | F163: N/A | G163: 0 | H163: 0 | I163: 0.01263147172 | J163: 0.01263147172 | K163: 0 | L163: 0 | M163: 0.005249651258 | N163: 0.005249651258
B164: 2017-05-30 | C164: 247 | D164: 232 | E164: N/A | F164: N/A | G164: 0 | H164: 0 | I164: 0.008101798796 | J164: 0.008101798796 | K164: 0.01652466218 | L164: 0.01652466218 | M164: 0.006169751425 | N164: 0.006169751425
B165: 2017-05-31 | C165: 356 | D165: 302 | E165: N/A | F165: N/A | G165: 0 | H165: 0 | I165: 0.01258053837 | J165: 0.01258053837 | K165: 0.01201491047 | L165: 0.01201491047 | M165: 0.007266251163 | N165: 0.007266251163
B166: 2017-06-01 | C166: 266 | D166: 254 | E166: N/A | F166: N/A | G166: 0 | H166: 0 | I166: 0.002685885519 | J166: 0.002685885519 | K166: 0.004052120083 | L166: 0.004052120083 | M166: 0.001803509223 | N166: 0.001803509223
B167: 2017-06-02 | C167: 186 | D167: 164 | E167: N/A | F167: N/A | G167: 0.003633493461 | H167: 0.003633493461 | I167: 0.007405709629 | J167: 0.007405709629 | K167: 0.05072222592 | L167: 0.05072222592 | M167: 0.01318763199 | N167: 0.01318763199
B168: 2017-06-03 | C168: 102 | D168: 95 | E168: N/A | F168: N/A | G168: 0.009093940095 | H168: 0.009093940095 | I168: 0 | J168: 0 | K168: 0.01508520269 | L168: 0.01508520269 | M168: 0.006330627834 | N168: 0.006330627834
B169: 2017-06-04 | C169: 73 | D169: 66 | E169: N/A | F169: N/A | G169: 0 | H169: 0 | I169: 0.004437992886 | J169: 0.004437992886 | K169: 0.007014244825 | L169: 0.007014244825 | M169: 0.003034072636 | N169: 0.003034072636
B170: 2017-06-05 | C170: 224 | D170: 196 | E170: N/A | F170: N/A | G170: 0 | H170: 0 | I170: 0.0120576226 | J170: 0.0120576226 | K170: 0 | L170: 0 | M170: 0.005011159037 | N170: 0.005011159037
B171: 2017-06-06 | C171: 221 | D171: 210 | E171: N/A | F171: N/A | G171: 0 | H171: 0 | I171: 0.0192290388 | J171: 0.0192290388 | K171: 0.03091093656 | L171: 0.03091093656 | M171: 0.01323420148 | N171: 0.01323420148
B172: 2017-06-07 | C172: 185 | D172: 176 | E172: N/A | F172: N/A | G172: 0 | H172: 0 | I172: 0.001283520513 | J172: 0.001283520513 | K172: 0 | L172: 0 | M172: 0.0005334323053 | N172: 0.0005334323053
B173: 2017-06-08 | C173: 223 | D173: 212 | E173: N/A | F173: N/A | G173: 0 | H173: 0 | I173: 0.005144268724 | J173: 0.005144268724 | K173: 0.004409904813 | L173: 0.004409904813 | M173: 0.002885896995 | N173: 0.002885896995
B174: 2017-06-09 | C174: 241 | D174: 196 | E174: N/A | F174: N/A | G174: 0 | H174: 0 | I174: 0.01178258249 | J174: 0.01178258249 | K174: 0.02379684484 | L174: 0.02379684484 | M174: 0.008932874318 | N174: 0.008932874318
B175: 2017-06-10 | C175: 171 | D175: 149 | E175: N/A | F175: N/A | G175: 0 | H175: 0 | I175: 0.004295379496 | J175: 0.004295379496 | K175: 0.007388670705 | L175: 0.007388670705 | M175: 0.003038306225 | N175: 0.003038306225
B176: 2017-06-11 | C176: 101 | D176: 99 | E176: N/A | F176: N/A | G176: 0.001874583237 | H176: 0.001874583237 | I176: 0.0061391669 | J176: 0.0061391669 | K176: 0.002687545763 | L176: 0.002687545763 | M176: 0.003784829213 | N176: 0.003784829213
B177: 2017-06-12 | C177: 90 | D177: 87 | E177: N/A | F177: N/A | G177: 0 | H177: 0 | I177: 0.009952377314 | J177: 0.009952377314 | K177: 0.01174865207 | L177: 0.01174865207 | M177: 0.006128826724 | N177: 0.006128826724
B178: 2017-06-13 | C178: 218 | D178: 200 | E178: N/A | F178: N/A | G178: 0 | H178: 0 | I178: 0.004607770732 | J178: 0.004607770732 | K178: 0.01743992545 | L178: 0.01743992545 | M178: 0.004872861773 | N178: 0.004872861773
B179: 2017-06-14 | C179: 253 | D179: 222 | E179: N/A | F179: N/A | G179: 0.01475511343 | H179: 0.01475511343 | I179: 0 | J179: 0 | K179: 0.01304666179 | L179: 0.01304666179 | M179: 0.008333115774 | N179: 0.008333115774
B180: 2017-06-15 | C180: 238 | D180: 214 | E180: N/A | F180: N/A | G180: 0 | H180: 0 | I180: 0.004668890756 | J180: 0.004668890756 | K180: 0.003486320975 | L180: 0.003486320975 | M180: 0.002531686655 | N180: 0.002531686655
B181: 2017-06-16 | C181: 229 | D181: 198 | E181: N/A | F181: N/A | G181: 0.0194364683 | H181: 0.0194364683 | I181: 0.002689281076 | J181: 0.002689281076 | K181: 0 | L181: 0 | M181: 0.009179833719 | N181: 0.009179833719
B182: 2017-06-17 | C182: 131 | D182: 117 | E182: N/A | F182: N/A | G182: 0.005569315352 | H182: 0.005569315352 | I182: 0.006614544868 | J182: 0.006614544868 | K182: 0.01402848965 | L182: 0.01402848965 | M182: 0.007438417145 | N182: 0.007438417145
B183: 2017-06-18 | C183: 64 | D183: 60 | E183: N/A | F183: N/A | G183: 0 | H183: 0 | I183: 0.008288554427 | J183: 0.008288554427 | K183: 0.01923716967 | L183: 0.01923716967 | M183: 0.00670741732 | N183: 0.00670741732
B184: 2017-06-19 | C184: 229 | D184: 185 | E184: N/A | F184: N/A | G184: 0 | H184: 0 | I184: 0.008563594537 | J184: 0.008563594537 | K184: 0.009701790588 | L184: 0.009701790588 | M184: 0.005204492968 | N184: 0.005204492968
B185: 2017-06-20 | C185: 280 | D185: 247 | E185: N/A | F185: N/A | G185: 0.003858035192 | H185: 0.003858035192 | I185: 0.001307289412 | J185: 0.001307289412 | K185: 0.01214803967 | L185: 0.01214803967 | M185: 0.004203954596 | N185: 0.004203954596
B186: 2017-06-21 | C186: 192 | D186: 169 | E186: N/A | F186: N/A | G186: 0.002738728686 | H186: 0.002738728686 | I186: 0.001303893855 | J186: 0.001303893855 | K186: 0.02328096918 | L186: 0.02328096918 | M186: 0.005626440744 | N186: 0.005626440744
B187: 2017-06-22 | C187: 219 | D187: 212 | E187: N/A | F187: N/A | G187: 0 | H187: 0 | I187: 0.005738491184 | J187: 0.005738491184 | K187: 0.0002579378287 | L187: 0.0002579378287 | M187: 0.002428669305 | N187: 0.002428669305
B188: 2017-06-23 | C188: 272 | D188: 217 | E188: N/A | F188: N/A | G188: 0 | H188: 0 | I188: 0.004709637439 | J188: 0.004709637439 | K188: 0.00495906277 | L188: 0.00495906277 | M188: 0.002798402808 | N188: 0.002798402808
B189: 2017-06-24 | C189: 158 | D189: 125 | E189: N/A | F189: N/A | G189: 0 | H189: 0 | I189: 0.001643449546 | J189: 0.001643449546 | K189: 0.01173201092 | L189: 0.01173201092 | M189: 0.002672806313 | N189: 0.002672806313
B190: 2017-06-25 | C190: 78 | D190: 72 | E190: N/A | F190: N/A | G190: 0 | H190: 0 | I190: 0 | J190: 0 | K190: 0.005150435998 | L190: 0.005150435998 | M190: 0.0008735306798 | N190: 0.0008735306798
B191: 2017-06-26 | C191: 196 | D191: 181 | E191: N/A | F191: N/A | G191: 0.002823782371 | H191: 0.002823782371 | I191: 0 | J191: 0 | K191: 0.004559675165 | L191: 0.004559675165 | M191: 0.00194462888 | N191: 0.00194462888
B192: 2017-06-27 | C192: 215 | D192: 172 | E192: N/A | F192: N/A | G192: 0 | H192: 0 | I192: 0.005106917598 | J192: 0.005106917598 | K192: 0.01119949411 | L192: 0.01119949411 | M192: 0.004021910238 | N192: 0.004021910238
B193: 2017-06-28 | C193: 239 | D193: 200 | E193: N/A | F193: N/A | G193: 0 | H193: 0 | I193: 0.002767378885 | J193: 0.002767378885 | K193: 0.008353857419 | L193: 0.008353857419 | M193: 0.002566966569 | N193: 0.002566966569
B194: 2017-06-29 | C194: 204 | D194: 169 | E194: N/A | F194: N/A | G194: 0.05137923057 | H194: 0.05137923057 | I194: 0 | J194: 0 | K194: 0.02684217533 | L194: 0.02684217533 | M194: 0.02586441082 | N194: 0.02586441082
B195: 2017-06-30 | C195: 191 | D195: 178 | E195: N/A | F195: N/A | G195: 0 | H195: 0 | I195: 0 | J195: 0 | K195: 0.0005741196832 | L195: 0.0005741196832 | M195: 9.737256366e-05 | N195: 9.737256366e-05
B196: 2017-07-01 | C196: 166 | D196: 133 | E196: N/A | F196: N/A | G196: 0 | H196: 0 | I196: 0.003517796963 | J196: 0.003517796963 | K196: 0.0138121547 | L196: 0.0138121547 | M196: 0.003804585966 | N196: 0.003804585966
B197: 2017-07-02 | C197: 199 | D197: 172 | E197: N/A | F197: N/A | G197: 0.003344310929 | H197: 0.003344310929 | I197: 6.791113828e-06 | J197: 6.791113828e-06 | K197: 0.02699194568 | L197: 0.02699194568 | M197: 0.005967950315 | N197: 0.005967950315
B198: 2017-07-03 | C198: 366 | D198: 318 | E198: N/A | F198: N/A | G198: 0.00910074439 | H198: 0.00910074439 | I198: 0 | J198: 0 | K198: 0.03986387539 | L198: 0.03986387539 | M198: 0.01053599363 | N198: 0.01053599363
B199: 2017-07-04 | C199: 245 | D199: 223 | E199: N/A | F199: N/A | G199: 0 | H199: 0 | I199: 0.01177579138 | J199: 0.01177579138 | K199: 0.004376622512 | L199: 0.004376622512 | M199: 0.00563631912 | N199: 0.00563631912
B200: 2017-07-05 | C200: 235 | D200: 212 | E200: N/A | F200: N/A | G200: 0.02115455275 | H200: 0.02115455275 | I200: 0 | J200: 0 | K200: 0.06148072955 | L200: 0.06148072955 | M200: 0.01920215179 | N200: 0.01920215179
B201: 2017-07-06 | C201: 309 | D201: 267 | E201: N/A | F201: N/A | G201: 0.01753126573 | H201: 0.01753126573 | I201: 0 | J201: 0 | K201: 0.02772415629 | L201: 0.02772415629 | M201: 0.01197400294 | N201: 0.01197400294
B202: 2017-07-07 | C202: 197 | D202: 189 | E202: N/A | F202: N/A | G202: 0.006504905897 | H202: 0.006504905897 | I202: 0.008047469886 | J202: 0.008047469886 | K202: 0.004884177594 | L202: 0.004884177594 | M202: 0.006871116122 | N202: 0.006871116122
B203: 2017-07-08 | C203: 104 | D203: 99 | E203: N/A | F203: N/A | G203: 0 | H203: 0 | I203: 0 | J203: 0 | K203: 0 | L203: 0 | M203: 0 | N203: 0
B204: 2017-07-09 | C204: 106 | D204: 86 | E204: N/A | F204: N/A | G204: 0.009665500864 | H204: 0.009665500864 | I204: 0.0007775825333 | J204: 0.0007775825333 | K204: 0.002546095986 | L204: 0.002546095986 | M204: 0.004764199636 | N204: 0.004764199636
... 176 more rows

Sheet 6.8 STPIS Exclusions
B1: ANNUAL REPORTING STATEMENT
B2: AusNet (D)
B3: Annual Reporting RIN Response 2017
B4: 6.8 STPIS EXCLUSIONS
B7: This information is collected to inform the application of the STPIS to AusNet (D) in future regulatory periods. The information is also collected to monitor network performance, and may be used in performance reports.
B9: 6.8.1 - STPIS EXCLUSIONS
B10: Date of event | C10: Outage ID | D10: Feeder ID / name | E10: Feeder classification (drop down) | F10: Cause of event (drop down) | G10: Unplanned | J10: Event category | K10: Effect on unplanned MAIFI | L10: Please provide separate explanation to confirm the outage was not due to inadequate transmission connection planning
B11: DD/MM/YYYY | G11: Number of interruptions | H11: Duration of interruption (mins) | I11: Total unplanned minutes off supply | J11: Use exclusion categories listed in section 3.3(a) of the STPIS (drop down) | K11: by feeder classification | O11: Cause of Event
O12: Weather
O13: Equipment failure
O14: Operational error
O15: Vegetation
O16: Animals
O17: Third party impacts
O18: Transmission failure
O19: Load shedding
O20: Inter-distributor connection failure
O21: Other
B43: To enter further events - please insert new lines above this line.

Sheet 6.9 STPIS - GSL
B1: ANNUAL REPORTING STATEMENT
B2: AusNet (D)
B3: Annual Reporting RIN Response 2017
B4: 6.9 STPIS - GUARANTEED SERVICE LEVEL
B6: Did the AER's GSL Scheme apply at any time during the regulatory year? | D6: No | E6: **IMPORTANT Please ensure this flag is set. Conditional formatting on this worksheet is dependant on this response.
B8: Instructions: Table 6.9.1 collects information relating to jurisdiction GSL scheme parameters. These parameters can be found in the jurisdictonal scheme relevant to NSP. Please identify each parameter in the relevant sub-tables and provide the volume and value of GSL payments. For GSL parameters that do not fit within the provided sub-tables provided, please enter a heading and identify the relevant parameter(s).
B10: 6.9.1 - GUARANTEED SERVICE LEVELS - JURISDICTIONAL GSL SCHEME
D11: 2017 | E11: 2017
D12: Volume | E12: Value of GSL payments
D13: 0's | E13: $0's
B14: Appointments
B15: Total customer arranged appointments | D15: 3782 | E15: 0
B16: Appointments not met within 15 mins of agreed time | C16: 0 | D16: 6 | E16: 180
B17: Appointments - GSL payments | C17: 0 | D17: 6 | E17: 180
B19: To enter further GSL parameters relating to appointments - please copy a row from above and "insert copied cells" above this row.
B21: Connections
B22: Total connections made | D22: 18311 | E22: 0
B23: Connections not made on agreed date | C23: 0 | D23: 587 | E23: 127360
B24: Connections - GSL payments - 1-4 day delay | C24: 0 | D24: 306 | E24: 28030
B25: Connections - GSL payments - 5+ day delay | C25: 0 | D25: 281 | E25: 98350
B27: To enter further GSL parameters relating to connections - please copy a row from above and "insert copied cells" above this row.
B29: Reliability of supply
B30: Low reliability payments - 8 events | D30: 4707 | E30: 564840
B31: Low reliability payments - 12 events | D31: 257 | E31: 46260
B32: Low reliability payments - 24 events | D32: 0 | E32: 0
B33: Low reliability payments - 20 hours | D33: 9133 | E33: 1095960
B34: Low reliability payments - 30 hours | D34: 3362 | E34: 605160
B35: Low reliability payments - 60 hours | D35: 115 | E35: 41400
B36: Low reliability payments - 24 momentary events | D36: 12463 | E36: 373890
B37: Low reliability payments - 36 momentary events | D37: 1830 | E37: 73200
B38: Low reliability payments - Duration per Event (12hrs) Urban | D38: 3776 | E38: 302080
B39: Low reliability payments - Duration per Event (18hrs) Rural | D39: 572 | E39: 45760
D40: 0 | E40: 0
B41: To enter further GSL parameters relating to reliability of supply - please copy a row from above and "insert copied cells" above this row.
B43: Street lights
B44: Street lights | D44: 151414
B45: Street lights "out" during period | D45: 6668
B46: Street lights not repaired by "fix by" date | D46: N/A
B47: Street lights not repaired in 2 business days | D47: 625
B48: Street lights – number of business days to repair | D48: 1.76
B49: Street Light - GSL payments | D49: 33 | E49: 825
B51: To enter further GSL parameters relating to street lights - please copy a row from above and "insert copied cells" above this row.
B53: Planned interruptions
B57: To enter further GSL parameters relating to planned interruptions - please copy a row from above and "insert copied cells" above this row.
B59: <NSP defined parameter category>
B63: To enter further GSL parameters - please identify the parameter and if insufficient rows please copy a row from above and "insert copied cells" above this row.
B65: <NSP defined parameter category>
B69: To enter further GSL parameters - please identify the parameter and if insufficient rows please copy a row from above and "insert copied cells" above this row.
B71: <NSP defined parameter category>
B75: To enter further GSL parameters - please identify the parameter and if insufficient rows please copy a row from above and "insert copied cells" above this row.
B77: <NSP defined parameter category>
B81: To enter further GSL parameters - please identify the parameter and if insufficient rows please copy a row from above and "insert copied cells" above this row.
B84: 6.9.2 - GUARANTEED SERVICE LEVELS - AER GSL SCHEME
B86: Complete Table 6.9.2 if the AER's GSL scheme applied at any time during the regulatory year. Do not complete Table 6.9.2 if the AER's GSL scheme did not apply during the regulatory year.
D88: 2017 | E88: 2017
D89: Volume | E89: Value of GSL payments
D90: 0's | E90: $0's
B91: New connections
B92: Number of connections made
B93: Number of connections not made on or before the day agreed
B94: Connections - GSL payments – 1-6 day delay
B95: Connections - GSL payments – 7+ day delay
B96: Reliability of supply
B97: Frequency of interruptions – CBD feeders – 9 interruptions
B98: Frequency of interruptions – Urban feeders – 9 interruptions
B99: Frequency of interruptions – Rural (short and long) feeders – 15 interruptions
B100: Interruptions – CBD feeders – 12 hours duration
B101: Interruptions – Urban feeders – 12 hours duration
B102: Interruptions – Rural (short and long) feeders – 18 hours duration
B103: Total duration of interruptions Level 1 – 20 hours
B104: Total duration of interruptions Level 2 – 30 hours
B105: Total duration of interruptions Level 3 – 60 hours
B106: Street lights
B107: Streetlight repair 5 days – GSL payments
B108: Planned interruptions
B109: Notice of planned interruptions – 4 business days notice not given
B110: Total | E110: 0

Sheet 7.8 Avoided TUOS Payments
B1: ANNUAL REPORTING STATEMENT
B2: AusNet (D)
B3: Annual Reporting RIN Response 2017
B4: 7.8 - AVOIDED TUOS PAYMENTS
B6: 7.8.1 - AVOIDED TUOS PAYMENTS
C7: Avoided TUOS Payment
C8: $0's, nominal
B9: Embedded generators
B10: Market network service providers
B11: Other

Sheet 7.10 Juris Scheme
B1: ANNUAL REPORTING STATEMENT
B2: AusNet (D)
B3: Annual Reporting RIN Response 2017
B4: 7.10 - JURISDICTIONAL SCHEMES
B6: Instructions Business must list each relevant jurisdictional scheme individually and report information for each scheme separately from other schemes.
B8: 7.10.1 - JURISDICTIONAL SCHEME PAYMENTS
B9: Jurisdictional Scheme Name | C9: Description | D9: Date DNSP Became Subject to Scheme | E9: Description of Cost Recovery Method | F9: Total Scheme Payments
F10: $0's, nominal
B11: PFIT | C11: Premium feed-in tariff payments | D11: 2009-11-01 | E11: Through Jurisdictional Tariffs | F11: 25452097.73
B12: TFIT | C12: Transitional feed-in tariff payments | D12: 2012-01-01 | E12: Through Jurisdictional Tariffs | F12: -517209.5469
E17: Total | F17: 24934888.18

Sheet 7.11 DMIS-DMIA
B1: ANNUAL REPORTING STATEMENT
B2: AusNet (D)
B3: Annual Reporting RIN Response 2017
B4: 7.11 - DEMAND MANAGEMENT INCENTIVE SCHEME
B6: 7.11.1 - DMIA - PROJECTS SUBMITTED FOR APPROVAL
C7: Total amount of the DMIA spent in 2017
C8: Operating expenditure | D8: Capital expenditure | E8: Total
B9: Name of project | C9: $0's, nominal
B10: Grid Energy Storage System Trial | C10: 260556.93 | E10: 260556.93
B11: Mooroolbark Community Mini Grid | D11: 600099.95 | E11: 600099.95
E12: 0
E13: 0
E14: 0
E15: 0
B16: To enter additional projects - please copy a row from above and "insert copied cells" above this row.
B17: Total | C17: 260556.93 | D17: 600099.95 | E17: 860656.88

Sheet 7.12 Safety and Bushfire
B1: ANNUAL REPORTING STATEMENT
B2: AusNet (D)
B3: Annual Reporting RIN Response 2017
B4: 7.12 SAFETY AND BUSHFIRE RELATED EXPENDITURE
B6: These templates collect information from Victorian businesses only. Bushfire and safety related expenditure information is used by the AER to monitor the expenditures throughout the regulatory control period.
B8: CPI applied to convert expected expenditure in real $ to nominal based on lagged September CPI index
B10: Instructions
B11: For "Exclusive of Margins & Overheads" reported expenditure is to EXCLUDE any overheads, profit margins or management fees paid directly or indirectly to related party contractors (not including actual incurred expense of the related party contractor) for the reporting period.
B12: For "Value of Margins & Overheads" reported expenditure is to COMPRISE ONLY the sum of overheads, profit margins or management fees paid directly or indirectly to related party contractors (not including actual incurred expenses of the related party contractor) for the reporting period.
B14: AusNet (D) is to specify each activity in this table in accordance with the definition in Appendix F of the RIN.
B15: All activities must be reported but the Reason for Difference is only required if there is a 10 per cent difference between the expected value and the actual value. Use median unit costs. Where unit costs are not recorded at the asset category level - provide the best estimates of the unit cost using the cost allocation method identified in this table. (As a transitional measure, the unit cost may be based on a statistically significant annual sample of actual work orders at a 5% or better confidence interval.) Provide basis of allocation where applicable.
B17: 7.12.1 - SAFETY AND BUSHFIRE RELATED ASSET GROUP DEFINITIONS AND ALLOCATION BASIS
B18: Activity | C18: Definitions | G18: Basis for allocation of cost to activity
B19: Planned non-preferred services replacements | C19: N/A | G19: N/A
B20: Planned replacement of non-preferred services due to height | C20: N/A | G20: N/A
B21: Removal of public lighting switchwire | C21: N/A | G21: N/A
B22: Replacement of existing SWER lines with 22kV overhead bare conductor | C22: N/A | G22: N/A
B23: Installation of GFN and associated equipment at zone substations | C23: N/A - REFCL Programme works are disclosed in additional categories below. | G23: N/A
B24: Replacement of crossarms/insulator sets – pole top fire mitigation | C24: N/A | G24: N/A
B25: Replacement of crossarms – based on age and condition | C25: Replacement of crossarms – based on age and condition | G25: Projects allocated directly to activity
B26: Replacement of poles – based on age and condition | C26: N/A | G26: N/A
B27: Stake poles – based on age and condition | C27: N/A | G27: N/A
B28: Replacement of undersized poles | C28: N/A | G28: N/A
B29: Stake undersized poles | C29: N/A | G29: N/A
B30: Replacement of overhead conductor – mainly steel | C30: Includes Steel Conductor replacement programme | G30: Projects allocated directly to activity
B31: Service line clearance – overhead services requiring relocation | C31: N/A | G31: N/A
B32: Service line clearance – overhead services requiring undergrounding | C32: N/A | G32: N/A
B33: Replacement of 22kV distribution feeders with ABC/underground cabling | C33: Includes Vibration Dampers & Armour Rods, 56M (overhangs), Jigsaw/ABC projects. This will include works in codified areas (in future periods). | G33: Projects allocated directly to activity
B34: Replacement of SWER with covered carbon core conductor or equivalent | C34: N/A | G34: N/A
B35: Replacement of SWER with ABC | C35: N/A | G35: N/A
B36: Replacement of SWER with underground | C36: N/A | G36: N/A
B37: Replacement of surge diverters (neptune configuration) | C37: N/A | G37: N/A
B38: Replacement of surge diverters (single phase or three phase) | C38: N/A | G38: N/A
B39: REFCL Programme - Surge Arrester Replacements | C39: REFCL Programme - Surge Arrester Replacements | G39: Projects allocated directly to activity
B40: REFCL Programme - Zone Substation Works | C40: REFCL Programme - Zone Substation Works | G40: Projects allocated directly to activity
B41: REFCL Programme - Network Balancing | C41: REFCL Programme - Network Balancing | G41: Projects allocated directly to activity
B42: REFCL Programme - Compatible equipment | C42: REFCL Programme - Compatible equipment | G42: Projects allocated directly to activity
B43: REFCL Programme - Other | C43: REFCL Programme - Other | G43: Projects allocated directly to activity
B44: Other | C44: Other | G44: Projects allocated directly to activity
B45: Other - Environmental works | C45: Other - Environmental works | G45: Projects allocated directly to activity
B46: Other - EDO | C46: Other - EDO | G46: Projects allocated directly to activity
B47: Other - Security | C47: Other - Security | G47: Projects allocated directly to activity
B48: To enter further activities - please copy row from above and "insert copied cells" into a row above this row.
B50: 7.12.2 - BUSHFIRE RELATED
B52: 7.12.2.1 - NUMBER OF ACTIVITIES
B53: Activity | C53: Units | D53: Number of Activities
B54: Planned non-preferred services replacements | C54: number of services
B55: Planned replacement of non-preferred services due to height | C55: number of services
B56: Removal of public lighting switchwire | C56: number of spans removed
B57: Replacement of existing SWER lines with 22kV overhead bare conductor | C57: kms of SWER
B58: Installation of GFN and associated equipment at zone substations | C58: number of zone substations
B59: Replacement of crossarms/insulator sets – pole top fire mitigation | C59: number of crossarms/sets
B60: Replacement of crossarms – based on age and condition | C60: number of crossarms
B61: Replacement of poles – based on age and condition | C61: number of poles
B62: Stake poles – based on age and condition | C62: number of poles
B63: Replacement of undersized poles | C63: number of poles
B64: Stake undersized poles | C64: number of poles
B65: Replacement of overhead conductor – mainly steel | C65: kms
B66: Service line clearance – overhead services requiring relocation | C66: number of services
B67: Service line clearance – overhead services requiring undergrounding | C67: number of services
B68: Replacement of 22kV distribution feeders with ABC/underground cabling | C68: number of feeders
B69: Replacement of SWER with covered carbon core conductor or equivalent | C69: kms
B70: Replacement of SWER with ABC | C70: kms
B71: Replacement of SWER with underground | C71: kms
B72: Replacement of surge diverters (neptune configuration) | C72: number of units
B73: Replacement of surge diverters (single phase or three phase) | C73: number of units
B74: REFCL Programme - Surge Arrester Replacements | C74: number of units
B75: REFCL Programme - Zone Substation Works | C75: number of units
B76: REFCL Programme - Network Balancing | C76: number of units
B77: REFCL Programme - Compatible equipment | C77: number of units
B78: REFCL Programme - Other | C78: number of units
B79: Other | C79: number of units
B80: Other - Environmental works | C80: number of units
B81: Other - EDO | C81: number of units
B82: Other - Security | C82: number of projects
B83: To enter further activities - please copy row from above and "insert copied cells" into a row above this row.
B86: 7.12.2.2 - EXPENDITURE
B87: Activity | C87: Units | D87: Exclusive of Margins & Overheads | E87: Value of Margins & Overheads
D88: Actual Expenditure
D89: $0's, Nominal
B90: Planned non-preferred services replacements | C90: number of services
B91: Planned replacement of non-preferred services due to height | C91: number of services
B92: Removal of public lighting switchwire | C92: number of spans removed
B93: Replacement of existing SWER lines with 22kV overhead bare conductor | C93: kms of SWER
B94: Installation of GFN and associated equipment at zone substations | C94: number of zone substations
B95: Replacement of crossarms/insulator sets – pole top fire mitigation | C95: number of crossarms/sets
B96: Replacement of crossarms – based on age and condition | C96: number of crossarms
B97: Replacement of poles – based on age and condition | C97: number of poles
B98: Stake poles – based on age and condition | C98: number of poles
B99: Replacement of undersized poles | C99: number of poles
B100: Stake undersized poles | C100: number of poles
B101: Replacement of overhead conductor – mainly steel | C101: kms
B102: Service line clearance – overhead services requiring relocation | C102: number of services
B103: Service line clearance – overhead services requiring undergrounding | C103: number of services
B104: Replacement of 22kV distribution feeders with ABC/underground cabling | C104: number of feeders
B105: Replacement of SWER with covered carbon core conductor or equivalent | C105: kms
B106: Replacement of SWER with ABC | C106: kms
B107: Replacement of SWER with underground | C107: kms
B108: Replacement of surge diverters (neptune configuration) | C108: number of units
B109: Replacement of surge diverters (single phase or three phase) | C109: number of units
B110: REFCL Programme - Surge Arrester Replacements | C110: number of units
B111: REFCL Programme - Zone Substation Works | C111: number of units
B112: REFCL Programme - Network Balancing | C112: number of units
B113: REFCL Programme - Compatible equipment | C113: number of units
B114: REFCL Programme - Other | C114: number of units
B115: Other | C115: number of units
B116: Other - Environmental works | C116: number of units
B117: Other - EDO | C117: number of units
B118: Other - Security | C118: number of projects
B119: To enter further activities - please copy row from above and "insert copied cells" into a row above this row.
B123: 7.12.2.3 - UNIT COSTS
B124: Activity | D124: Actual
D125: $0's, Per Unit
B126: Planned non-preferred services replacements
B127: Planned replacement of non-preferred services due to height
B128: Removal of public lighting switchwire
B129: Replacement of existing SWER lines with 22kV overhead bare conductor
B130: Installation of GFN and associated equipment at zone substations
B131: Replacement of crossarms/insulator sets – pole top fire mitigation
B132: Replacement of crossarms – based on age and condition
B133: Replacement of poles – based on age and condition
B134: Stake poles – based on age and condition
B135: Replacement of undersized poles
B136: Stake undersized poles
B137: Replacement of overhead conductor – mainly steel
B138: Service line clearance – overhead services requiring relocation
B139: Service line clearance – overhead services requiring undergrounding
B140: Replacement of 22kV distribution feeders with ABC/underground cabling
B141: Replacement of SWER with covered carbon core conductor or equivalent
B142: Replacement of SWER with ABC
B143: Replacement of SWER with underground
B144: Replacement of surge diverters (neptune configuration)
B145: Replacement of surge diverters (single phase or three phase)
B146: REFCL Programme - Surge Arrester Replacements
B147: REFCL Programme - Zone Substation Works
B148: REFCL Programme - Network Balancing
B149: REFCL Programme - Compatible equipment
B150: REFCL Programme - Other
B151: Other
B152: Other - Environmental works
B153: Other - EDO
B154: Other - Security
B155: To enter further activities - please copy row from above and "insert copied cells" into a row above this row.
B158: 7.12.2.4 - CONTINGENT PROJECT APPLICATIONS - VOLUMES APPROVED
B159: Activity | C159: Units | D159: Volume approved under contingent project applications | E159: Actual volumes | F159: Difference
B160: REFCL Programme - Surge Arrester Replacements | C160: number of units | F160: -2769.4
B161: REFCL Programme - Zone Substation Works | C161: number of units | F161: -2
B162: REFCL Programme - Network Balancing | C162: number of units | F162: -3
B163: REFCL Programme - Compatible equipment | C163: number of units | F163: 3
B164: REFCL Programme - Other | C164: number of units | F164: -5
F165: 0
F166: 0
F167: 0
B168: To enter further activities - please copy row from above and "insert copied cells" into a row above this row.
B170: 7.12.2.5 - CONTINGENT PROJECT APPLICATIONS - EXPENDITURE APPROVED
B171: Activity | C171: Exclusive of Margins & Overheads | D171: Value of Margins & Overheads
C172: Actual Expenditure
C173: $0's, Nominal
B174: REFCL Programme - Surge Arrester Replacements
B175: REFCL Programme - Zone Substation Works
B176: REFCL Programme - Network Balancing
B177: REFCL Programme - Compatible equipment
B178: REFCL Programme - Other
B182: To enter further activities - please copy row from above and "insert copied cells" into a row above this row.
B186: 7.12.3 - SAFETY RELATED
B188: 7.12.3.1 - NUMBER OF ACTIVITIES
B189: Activity | C189: Units | D189: Number of Activities
B190: Planned non-preferred services replacements | C190: number of services
B191: Planned replacement of non-preferred services due to height | C191: number of services
B192: Removal of public lighting switchwire | C192: number of spans removed
B193: Replacement of existing SWER lines with 22kV overhead bare conductor | C193: kms of SWER
B194: Installation of GFN and associated equipment at zone substations | C194: number of zone substations
B195: Replacement of crossarms/insulator sets – pole top fire mitigation | C195: number of crossarms/sets
B196: Replacement of crossarms – based on age and condition | C196: number of crossarms
B197: Replacement of poles – based on age and condition | C197: number of poles
B198: Stake poles – based on age and condition | C198: number of poles
B199: Replacement of undersized poles | C199: number of poles
B200: Stake undersized poles | C200: number of poles
B201: Replacement of overhead conductor – mainly steel | C201: kms
B202: Service line clearance – overhead services requiring relocation | C202: number of services
B203: Service line clearance – overhead services requiring undergrounding | C203: number of services
B204: Replacement of 22kV distribution feeders with ABC/underground cabling | C204: number of feeders
B205: Replacement of SWER with covered carbon core conductor or equivalent | C205: kms
B206: Replacement of SWER with ABC | C206: kms
B207: Replacement of SWER with underground | C207: kms
B208: Replacement of surge diverters (neptune configuration) | C208: number of units
B209: Replacement of surge diverters (single phase or three phase) | C209: number of units
B210: REFCL Programme - Surge Arrester Replacements | C210: number of units
B211: REFCL Programme - Zone Substation Works | C211: number of units
B212: REFCL Programme - Network Balancing | C212: number of units
B213: REFCL Programme - Compatible equipment | C213: number of units
B214: REFCL Programme - Other | C214: number of units
B215: Other | C215: number of units
B216: Other - Environmental works | C216: number of units
B217: Other - EDO | C217: number of units
B218: Other - Security | C218: number of projects
B219: To enter further activities - please copy row from above and "insert copied cells" into a row above this row.
B222: 7.12.3.2 - EXPENDITURE
B223: Activity | C223: Units | D223: Exclusive of Margins & Overheads | E223: Value of Margins & Overheads
D224: Actual Expenditure
... 128 more rows

Sheet 7.13 TARC
B1: ANNUAL REPORTING STATEMENT
B2: AusNet (D)
B3: Annual Reporting RIN Response 2017
B4: 7.13 - TARC
B7: 7.13.1 - TOTAL ANNUAL RETAILER CHARGES
C8: $0's
B9: TARC | C9: 757655955

Sheet 8.1 Income
B1: ANNUAL REPORTING STATEMENT
B2: AusNet (D)
B3: Annual Reporting RIN Response 2017
B4: 8.1 - INCOME
B6: 8.1.1 - INCOME STATEMENT
C7: Audited Statutory Accounts | D7: Adjustments | E7: Distribution business | F7: Standard Control Services | G7: Alternative Control Services | L7: Negotiated Services
G8: Public Lighting | I8: Other
G9: Energy efficient | H9: Non-energy efficient | I9: Connection services | J9: Metering services | K9: Ancillary network services
C10: $0's, nominal
B11: 8.1.1.1 - REVENUE
B12: Distribution revenue | E12: 754515833.2 | F12: 648042240.6 | G12: 1368581.64 | H12: 5640272.46 | I12: 3657181.264 | J12: 89365701.38 | K12: 6441855.862
B13: Cross boundary revenue | E13: 7663260 | F13: 7663260
B14: Contributions | E14: 0 | F14: 0
B15: Interest income | E15: 0 | F15: 0
B16: Jurisdictional scheme amounts | E16: 26384071.28 | F16: 26384071.28
B17: Profit from sale of fixed assets | E17: 1500841.03 | F17: 920123.2 | H17: 129320.91 | J17: 451396.92
B18: TUOS revenue | E18: 83214590.99 | F18: 83214590.99
B19: Pass through revenue (F-factor) | E19: 0 | F19: 0
B20: Other Revenue | E20: 380921 | F20: 0 | K20: 380921
B21: Total revenue | E21: 873659517.5 | F21: 766224286.1 | G21: 1368581.64 | H21: 5769593.37 | I21: 3657181.264 | J21: 89817098.3 | K21: 6822776.862 | L21: 0
B23: 8.1.1.2 - EXPENDITURE
B24: TUOS expenditure | E24: 92551168.87 | F24: 92551168.87
B25: Avoided TUOS expenditure | E25: 708910.13 | F25: 708910.13
B26: Cross boundary expenditure | E26: 205734 | F26: 205734
B27: Depreciation | E27: 138314038.7 | F27: 85372359.34 | G27: 98787.98592 | H27: 990992.7924 | J27: 50795361.13 | K27: 1056537.425
B28: Finance charges | E28: 3084293.151 | F28: 2811112.214 | J28: 273180.9376
B29: Impairment losses | E29: 0
B30: Jurisdictional scheme amounts | E30: 24934888.18 | F30: 24934888.18
B31: Loss from sale of fixed assets | E31: 9685965.03 | F31: 7371373.77 | H31: 204509.21 | J31: 2110082.05
B32: Maintenance expenditure | E32: 82231123.22 | F32: 75773447.93 | G32: 456593.4501 | H32: 1881737.55 | J32: 2051084.824 | K32: 2068259.46
B33: Operating expenditure excluding maintenance expenditure | E33: 165853417.4 | F33: 140955658.8 | I33: 0 | J33: 21278823.8 | K33: 3618934.821
B34: Other | E34: 0
B36: 8.1.1.3 - PROFIT
B37: Profit before tax (PBT) | E37: =E21-SUM(dms_080101_02_dnsp_Values) -> 356089978.8 | F37: 335539632.8 | G37: =G21-G27-G32 -> 813200.204 | H37: =H21-H27-H31-H32 -> 2692353.818 | I37: 3657181.264 | J37: 13308565.56 | K37: 79045.15602 | L37: 0
B38: Income tax expenses (/ benefit)
B39: Profit after tax | E39: =E37 -> 356089978.8 | F39: 335539632.8 | G39: =G37 -> 813200.204 | H39: =H37 -> 2692353.818 | I39: 3657181.264 | J39: 13308565.56 | K39: 79045.15602 | L39: 0

Sheet 8.2 Capex
B1: ANNUAL REPORTING STATEMENT
B2: AusNet (D)
B3: Annual Reporting RIN Response 2017
B4: 8.2 - CAPEX
B6: Instructions
B7: Reported expenditure must EXCLUDE capital contributions (except tables 8.2.1 and 8.2.5 which should include all capital contributions).
B8: Forecast expenditure is to be taken from AusNet (D)'s 2016-20 Distribution Determination.
B9: If allocating based on assumptions then provide method in Basis of Preparation. All adjustments must be explained in Basis of Preparation with supporting documentation attached.
B11: For tables 8.2.1 and 8.2.3: Reported expenditure must INCLUDE any profit margins or management fees paid directly or indirectly to related party contractors (not including actual incurred expenses of the related party contractor) for the regulatory reporting period. 'Related Party Margin Expenditure' must COMPRISE ONLY profit margins or management fees paid directly or indirectly to related party contractors (not including actual incurred expenses of the related party contractor) for the regulatory reporting period.
B13: 8.2.1 - CAPEX BY PURPOSE - STANDARD CONTROL SERVICES
B15: Each line item in this table must INCLUDE the capital contributions. Total capital contributions should also be identified in the last item in the table.
C17: EXPENDITURE
C18: CPI adjusted Forecast | D18: Actual | E18: Difference | F18: Related Party Margin | G18: Voltage level
G19: Subtransmission | H19: HV | I19: LV | J19: Other
B20: Description | C20: $0's, nominal | E20: (%) | F20: $0's, nominal
B21: Augmentation | C21: 76710362.46 | D21: 55367065.95 | E21: -0.2782322469 | G21: 9657740.46 | H21: 34394189.43 | I21: 6022125.744 | J21: 5293010.312
B22: Connections | C22: 81552816.41 | D22: 70091254.4 | E22: -0.1405415841 | G22: 26152.9447 | H22: 27173957.04 | I22: 42891144.41 | J22: 0
B23: Replacement | C23: 143237889.4 | D23: 117291671.1 | E23: -0.1811407474 | G23: 17558737.27 | H23: 74458044.5 | I23: 19667574.85 | J23: 5607314.465
B24: Non-Network | C24: 59755853.42 | D24: 40855125.57 | E24: -0.3162991869 | G24: 0 | H24: 0 | I24: 0 | J24: 40855125.57
B25: Capitalised overheads | C25: 37080722.72 | D25: 35881226.31 | E25: -0.032348248 | G25: 4026772.526 | H25: 20106227.45 | I25: 10137033.6 | J25: 1611192.725
B26: Escalation adjustment | C26: -2473974.726 | D26: 0 | E26: -1 | G26: 0 | H26: 0 | I26: 0 | J26: 0
B27: REFCL | C27: 52800932.2 | D27: 32941186.91 | E27: -0.3761248989 | G27: 0 | H27: 32941186.91 | I27: 0 | J27: 0
B36: Capital contributions included in the above | C36: 39651373.11 | D36: 33484468.71 | E36: -0.1555281423 | G36: 2584603.594 | H36: 16432363.1 | I36: 13054812.62 | J36: 1412689.391
B37: Total | C37: 409013228.8 | D37: 318943061.5 | E37: -0.2202133353 | G37: 31269403.2 | H37: 189073605.3 | I37: 78717878.6 | J37: 53366643.07
B40: 8.2.2 - CAPEX BY PURPOSE - MATERIAL DIFFERENCE EXPLANATION
B42: Where the difference between forecast and actual expenditure shown in table 8.2.1 is a Material Difference please explain the main factors driving the difference.
B44: Description | C44: Reason for material difference
B45: All Categories ±10 % | C45: Refer to commentary provided in Responses to Schedule 1.
B62: 8.2.3 - CAPEX OTHER
C63: EXPENDITURE
C64: CPI adjusted Forecast | D64: Actual | E64: Difference | F64: Related Party Margin | G64: Voltage level
G65: Subtransmission | H65: HV | I65: LV | J65: Other
C66: $0's, nominal | E66: (%) | F66: $0's, nominal
B67: Public lighting
B68: Energy Efficient | D68: 0 | E68: 1 | G68: 0 | H68: 0 | I68: 0 | J68: 0
B69: Non-energy efficient | C69: 1991548.618 | D69: 6969383.606 | E69: 2.499479523 | G69: 0 | H69: 0 | I69: 0 | J69: 6969383.606
B70: Alternative Control Services
B71: Connection services | C71: 0 | D71: 0 | E71: 1 | G71: 0 | H71: 0 | I71: 0 | J71: 0
B72: Metering services | C72: 0 | D72: 0 | E72: 1 | G72: 0 | H72: 0 | I72: 0 | J72: 0
B73: Ancillary network services | C73: 0 | D73: 0 | E73: 1 | G73: 0 | H73: 0 | I73: 0 | J73: 0
B74: Negotiated Services
B75: Negotiated services | C75: 0 | D75: 0 | E75: 1 | G75: 0 | H75: 0 | I75: 0 | J75: 0
B76: Total | C76: 1991548.618 | D76: 6969383.606 | E76: 2.499479523 | G76: 0 | H76: 0 | I76: 0 | J76: 6969383.606
B80: 8.2.4 - CAPEX BY ASSET CLASS
B82: AusNet (D) to enter in Table 8.2.4 each Asset Class specified in its current determination as listed in the AER's final decision in its Roll Forward Model and Post-tax Revenue Model and enter information against that Asset Class.
C84: CPI adjusted Forecast | D84: Actual | E84: Difference | F84: Movements in provisions allocated to as-incurred capex
B85: Asset class | C85: $0's, nominal | E85: (%) | F85: $0's, nominal
B87: Subtransmission | C87: 67360144.6 | D87: 30460629.9 | E87: -0.5477944698 | F87: -588421.7709
B88: Distribution system assets | C88: 260991028.1 | D88: 223964162.8 | E88: -0.1418702611 | F88: -4326417.075
B89: Standard metering | C89: 0 | E89: 1 | F89: 0
B90: Public lighting | C90: 0 | E90: 1 | F90: 0
B91: SCADA/Network control | C91: 19287740.6 | D91: 19423543.49 | E91: 0.00704089169 | F91: -375213.3785
B92: Non-network general assets - IT | C92: 55102111 | D92: 39722228.47 | E92: -0.2791160311 | F92: -767332.2612
B93: Non-network general assets - Other | C93: 6234838.993 | D93: 5319354.15 | E93: -0.1468337585 | F93: -102756.3711
B94: Land | C94: 37365.49259 | D94: 53142.68174 | E94: 0.4222395599 | F94: -1026.58123
B136: Total | C136: 409013228.8 | D136: 318943061.5 | E136: -0.2202133353 | F136: -6161167.437
B139: 8.2.5 - CAPITAL CONTRIBUTIONS BY ASSET CLASS
C140: CPI Adjusted Forecast | D140: Actual | E140: Difference
B141: Asset class | C141: $0's, nominal | E141: (%)
B143: Subtransmission | C143: 0 | D143: 0 | E143: 1
B144: Distribution system assets | C144: 39651373.11 | D144: 33484468.71 | E144: -0.1555281423
B145: Standard metering | C145: 0 | D145: 0 | E145: 1
B146: Public lighting | C146: 0 | D146: 0 | E146: 1
B147: SCADA/Network control | C147: 0 | D147: 0 | E147: 1
B148: Non-network general assets - IT | C148: 0 | D148: 0 | E148: 1
B149: Non-network general assets - Other | D149: 0 | E149: 1
B150: Land
B192: Total | C192: 39651373.11 | D192: 33484468.71 | E192: -0.1555281423
B195: 8.2.6 - DISPOSALS BY ASSET CLASS
C196: CPI Adjusted Forecast | D196: Actual | E196: Difference
B197: Asset class | C197: $0's, nominal | E197: (%)
D198: 0 | E198: 1
B199: Subtransmission | C199: 0 | D199: 0 | E199: 1
B200: Distribution system assets | C200: 0 | D200: 0 | E200: 1
B201: Standard metering | C201: 0 | D201: 0 | E201: 1
B202: Public lighting | C202: 0 | D202: 0 | E202: 1
B203: SCADA/Network control | C203: 0 | D203: 0 | E203: 1
B204: Non-network general assets - IT | C204: 12470.41922 | D204: 0 | E204: -1
B205: Non-network general assets - Other | C205: 1201663.105 | D205: 377795.13 | E205: -0.6856064495
B206: Land
B248: Total | C248: 1214133.524 | D248: 377795.13 | E248: -0.6888355996

Sheet 8.4 Opex
B1: ANNUAL REPORTING STATEMENT
B2: AusNet (D)
B3: Annual Reporting RIN Response 2017
B4: 8.4 OPEX
B6: Instructions
B7: Forecast expenditure is to be taken from AusNet (D)'s 2016-20 Distribution Determination.
B8: If allocating based on assumptions then provide method in Basis of Preparation. All adjustments must be explained in Basis of Preparation with supporting documentation attached.
B10: 8.4.1 - OPERATING & MAINTENANCE EXPENDITURE - BY PURPOSE
B12: AusNet (D) is to list the operating expenditure categories identified in AusNet (D)'s regulatory proposal at table 3.2.1.1 current opex categories and cost allocations.
B13: AusNet (D) must specify any expenditure category where the expense is more than 5 per cent of the total standard control services operating expenditure.
B14: Reported operating expenditure must INCLUDE any profit margins or management fees paid directly or indirectly to related party contractors (not including actual incurred expenditure of the related party contractor) for the regulatory reporting period.
C16: Audited Statutory Accounts | D16: Adjustments | E16: Distribution business | F16: Standard Control Services | I16: Alternative Control Services | N16: Negotiated Services
F17: CPI Adjusted Forecast | G17: Actual | H17: Difference | I17: Public Lighting | K17: Other
I18: Energy efficient | J18: Non-energy efficient | K18: Connection services | L18: Metering services | M18: Ancillary network services
B19: Opex category | C19: $0's, nominal | H19: % | I19: $0's, nominal
B20: OPERATING
B21: Network Operating Costs | E21: 62632775.35 | F21: 54451582.63 | G21: 59013840.53 | H21: 0.08378558846 | M21: 3618934.821
B22: Billing & Revenue Collection | E22: 261355 | F22: 336611.1368 | G22: 261355 | H22: -0.2235699554
B23: Advertising, marketing & promotions | E23: 684289.84 | F23: 700938.1881 | G23: 684289.84 | H23: -0.02375152096
B24: Customer Service | E24: 5404698.681 | F24: 9721794.185 | G24: 5404698.681 | H24: -0.4440636597
B25: Regulatory | E25: 1342751.553 | F25: 2188920.152 | G25: 1342751.553 | H25: -0.3865689657
B26: Regulatory Reset | E26: 0 | F26: 0 | G26: 0 | H26: 0
B27: IT | E27: 40533130.59 | F27: 15351942.33 | G27: 24149214.71 | H27: 0.5730396969 | L27: 16383915.88
B28: Licence fee | E28: 0 | F28: 0 | G28: 0 | H28: 1
B29: GSL payments | E29: 3476640 | F29: 8448035.019 | G29: 3476640 | H29: -0.588467615
B30: Non-network alternatives costs | E30: 9951882.26 | F30: 12388153.68 | G30: 9951882.26 | H30: -0.1966613817
B31: AMI Cost | E31: 11969264.97 | F31: 9386075.823 | G31: 7074357.05 | H31: -0.2462923608 | L31: 4894907.922
B32: Other - Standard Control Services | E32: 29596629.19 | F32: 28609314.82 | G32: 29596629.19 | H32: 0.03451024163
H33: 1
B34: MAINTENANCE | H34: 1
B35: Routine | E35: 11569604.37 | F35: 14811068.6 | G35: 11569604.37 | H35: -0.2188541766
B36: Condition based | E36: 47540327.58 | F36: 56531075.19 | G36: 47540327.58 | H36: -0.1590408032
B37: Emergency | E37: 16516475.28 | F37: 18540419.7 | G37: 16516475.28 | H37: -0.1091638948
B38: SCADA/Network Control | E38: 147040.6993 | F38: 33058.2367 | G38: 147040.6993 | H38: 3.447929291
B39: Other - Standard Control Services | E39: 0 | F39: 0 | G39: 0 | H39: 1
B40: AMI | E40: 2051084.824 | F40: 0 | G40: 0 | H40: 1 | L40: 2051084.824
B41: Public Lighting | E41: =I41+J41 -> 2338331 | F41: 0 | G41: 0 | H41: 1 | I41: 456593.4501 | J41: 1881737.55
B42: Alternative control -other | E42: 2068259.46 | F42: 0 | G42: 0 | H42: 1 | M42: 2068259.46
B43: Negotiated services | E43: 0 | F43: 0 | G43: 0 | H43: 1
B44: Other | E44: 0 | F44: 0 | G44: 0 | H44: 1
B70: Total | E70: =SUM(E21:E44) -> 248084540.7 | F70: 231498989.7 | G70: 216729106.7 | H70: -0.06380106871 | I70: =I41 -> 456593.4501 | J70: =J41 -> 1881737.55 | K70: 0 | L70: 23329908.63 | M70: 5687194.281 | N70: 0
B73: 8.4.2 - OPERATING & MAINTENANCE EXPENDITURE - BY PURPOSE - MARGINS ONLY
B75: "Related party margin expenditure' must COMPRISE ONLY profit margins or management fees paid directly or indirectly to related party contractors (for expenditure that is not an actual incurred expenditure of the related party contractor) for the regulatory reporting period.
C77: Audited Statutory Accounts | D77: Adjustments | E77: Distribution business | F77: Standard Control Services | I77: Alternative Control Services | N77: Negotiated Services
F78: CPI Adjusted Forecast | G78: Actual | H78: Difference | I78: Public Lighting | K78: Other
I79: Energy efficient | J79: Non-energy efficient | K79: Connection services | L79: Metering services | M79: Ancillary network services
B80: Opex category | C80: $0's, nominal | G80: $0's, nominal | H80: per cent | I80: $0's, nominal
B81: OPERATING | H81: 1
B82: Network Operating Costs | H82: 1
B83: Billing & Revenue Collection | H83: 1
B84: Advertising, marketing & promotions | H84: 1
B85: Customer Service | H85: 1
B86: Regulatory | H86: 1
B87: Regulatory Reset | H87: 1
B88: Regulatory Reset | H88: 1
B89: IT | H89: 1
B90: Licence fee | H90: 1
B91: GSL payments | H91: 1
B92: Non-network alternatives costs | H92: 1
B93: AMI Cost | H93: 1
B94: Other - Standard Control Services | H94: 1
H95: 1
B96: MAINTENANCE | H96: 1
B97: Routine | H97: 1
B98: Condition based | H98: 1
B99: Emergency | H99: 1
B100: SCADA/Network Control | H100: 1
B101: Other - Standard Control Services | H101: 1
B102: AMI | H102: 1
B103: Public Lighting | H103: 1
B104: Alternative control -other | H104: 1
B105: Negotiated services | H105: 1
B106: Other | H106: 1
B132: Total | E132: 0 | F132: 0 | G132: 0 | H132: 1 | I132: 0 | J132: 0 | K132: 0 | L132: 0 | M132: 0 | N132: 0
B135: 8.4.3 - OPERATING & MAINTENANCE EXPENDITURE - EXPLANATION OF MATERIAL DIFFERENCE
B137: Where the difference between forecast and actual expenditure shown in table 8.4.1, column I is a Material Difference please explain the main factors driving the difference.
B139: Category | C139: Explanation
B140: Note
B141: Operating Expenditure
B142: Maintenance Expenditure

Sheet 9.5 TUoS
B1: ANNUAL REPORTING STATEMENT
B2: AusNet (D)
B3: Annual Reporting RIN Response 2017
B4: 9.5 - TUoS AUDIT (t-2)
B6: This template collects information for annual pricing proposals from Victorian businesses only.
B8: 9.5.1 - TUOS CHARGES (AEMO)
F9: 2017
E14: Total | F14: 82826522.48
B17: 9.5.2 - TRANSMISSION CONNECTION FEES
F18: 2017
E27: Total | F27: 9809533.124
B30: 9.5.3 - CROSS BOUNDARY NETWORK CHARGES
C31: Amount (payable)/receivable
C32: $0's, nominal
C33: HV crossings | D33: Subtransmission crossings | E33: TUoS Adjustment | F33: Total
B34: Distribution Business | F34: 2017
B35: United Energy (VIC) | C35: 191177.9565 | D35: 170616.98 | E35: 1404658 | F35: 1766452.936
B36: United Energy (VIC) | C36: -52829.79466 | D36: -38314.02 | E36: -128 | F36: -91271.81466
B37: Jemena Elec Nwks (Vic) Ltd | C37: 2965970 | D37: 99216 | E37: 433925 | F37: 3499111
B38: Jemena Elec Nwks (Vic) Ltd | C38: 0 | D38: -196128 | E38: -13868 | F38: -209996
B39: Essential Energy | C39: -296840.8127 | D39: 0 | E39: 0 | F39: -296840.8127
B43: Total | F43: 4667455.309
B46: 9.5.4 - PAYMENTS TO EMBEDDED GENERATORS
B47: 9.5.4.1 - AVOIDED TRANSMISSION COSTS | F47: 2017
B56: Total | F56: 0
B57: 9.5.4.2 - AVOIDED TUoS USAGE CHARGES | F57: 2017
